Workbook

Sheet PO
A2: PLANILHA ORÇAMENTÁRIA
A3: LOCALIDADE SINAPI: PORTO ALEGRE/RS
J5: DATA BASE SINAPI RS: | L5: =+'Planilha_M.O.'!$E$17 -> JUNHO / 2021
A9: OBJETO: | B9: Obras de Aquisição e Instalação de Academias de Ginástica ao ar livre na Praça Professor Emílio Mabilde Rípole (155/02), Praça Irene Elisalde Stricher (145/10) e Praça José Mariano de Freitas Beck (164/09). | D9: =CONCATENATE("Leis Sociais Horistas ",'Planilha_M.O.'!$D$5," (SINAPI)") -> Leis Sociais Horistas s/desoneração (SINAPI) | L9: =+'Planilha_M.O.'!$D$7 -> 1.111
A10: DATA: | B10: 2021-08-10 | D10: =CONCATENATE("Leis Sociais Mensalistas ",'Planilha_M.O.'!$D$5," (SINAP)I") -> Leis Sociais Mensalistas s/desoneração (SINAP)I | L10: =+'Planilha_M.O.'!$D$8 -> 0.6916
A11: ART nº: | D11: BDI: | L11: =+'Planilha_M.O.'!$F$7 -> 22,15%
D12: BDI diferenciado p/ Academia ar Livre: | L12: =IF($L$11="28,21%",19.35%,13.7%) -> 0.137
A13: PRAÇA PROFESSOR EMÍLIO MABILDE RÍPOLE (155/02)
A14: Composição | B14: Item | C14: Descrição | D14: Quantidade | E14: Un | F14: Custo Unit.Mat.+Eq. | G14: Custo Unit. M.O. | H14: Custo Unit. | I14: Preço Unit.Mat.+Eq. | J14: Preço Unit. M.O. | K14: Preço Unit. | L14: Total
B15: 1 | C15: DESPESAS LEGAIS, LICENÇAS, TAXAS, CONTRIBUIÇÕES
A16: SMAMS 450 | B16: 1.1 | C16: ART (ANOTAÇÃO DE RESPONSABILIDADE TÉCNICA PELA EXECUÇÃO TOTAL DO OBJETO) | D16: 1 | E16: un | F16: =Composições!C77 -> 226 | G16: =+[1]Composições!C1026 -> 0 | H16: =+F16+G16 -> 226 | I16: =+K16-J16 -> 276.05 | J16: =+TRUNC((G16*(1+$L$11)),2) -> 0 | K16: =Composições!F83 -> 276.05 | L16: =TRUNC((D16*K16),2) -> 276.05
B17: TOTAL DE DESPESAS LEGAIS, LICENÇAS, TAXAS, CONTRIBUIÇÕES | L17: =SUM(L16:L16) -> 276.05
B18: 2 | C18: INSTALAÇÕES PROVISÓRIAS
A19: SMAMS 500 | B19: 2.1 | C19: TAPUME EM CHAPA DE COMPENSADO RESINADO (L=9,90m; C=15,40m e H=2,20M) | D19: 111.32 | E19: m² | F19: =Composições!C96 -> 26.48 | G19: =Composições!C101 -> 41.09 | H19: =+F19+G19 -> 67.57 | I19: =+K19-J19 -> 32.3386 | J19: =+TRUNC((G19*(1+$L$11)),4) -> 50.1914 | K19: =Composições!F107 -> 82.53 | L19: =TRUNC((D19*K19),2) -> 9187.23
A20: SMAMS 510 | B20: 2.2 | C20: LOCAÇÃO DE BANHEIRO QUÍMICO | D20: 100 | E20: % | F20: =Composições!C112 -> 6.8 | G20: 0 | H20: 6.8 | I20: 8.3062 | J20: =+TRUNC((G20*(1+$L$11)),4) -> 0 | K20: =Composições!F118 -> 8.3062 | L20: 830.62
A21: SMAMS 520 | B21: 2.3 | C21: FRETE P/ BANHEIRO QUÍMICO LOCADO (IDA E VOLTA) | D21: 1 | E21: cj | F21: =Composições!C125 -> 888.65 | G21: 0 | H21: 888.65 | I21: 1085.48 | J21: =+TRUNC((G21*(1+$L$11)),4) -> 0 | K21: =Composições!F131 -> 1085.48 | L21: 1085.48
A22: SMAMS 530 | B22: 2.4 | C22: INSTALAÇÃO PROVISÓRIA DE ENERGIA, AÉREA, BIFÁSICA, COM CAIXA DE EMBUTIR C/ POSTE H=9,00M | D22: 1 | E22: pt | F22: =Composições!C156 -> 2353.62 | G22: =Composições!C159 -> 86 | H22: 2439.62 | I22: 2874.941 | J22: 105.049 | K22: =Composições!F166 -> 2979.99 | L22: 2979.99
A23: SMAMS 535 | B23: 2.5 | C23: INSTALAÇÃO PROVISÓRIA DE ÁGUA | D23: 1 | E23: pt | F23: =Composições!C178 -> 734.47 | G23: 0 | H23: 734.47 | I23: 897.15 | J23: 0 | K23: =Composições!F184 -> 897.15 | L23: 897.15
A24: SMAMS 542 | B24: 2.6 | C24: PLACA DE OBRA EM CHAPA GALVANIZADA | D24: =2*1.25 -> 2.5 | E24: m² | F24: =Composições!C196 -> 281.44 | G24: =Composições!C201 -> 21.64 | H24: =+F24+G24 -> 303.08 | I24: 343.7768 | J24: 26.4332 | K24: =Composições!F207 -> 370.21 | L24: 925.52
A25: SINAPI C 99064 | B25: 2.7 | C25: LOCAÇÃO DE OBRA | D25: 49 | E25: m | F25: =Composições!C228 -> 0.51 | G25: 0 | H25: 0.51 | I25: 0.62 | J25: 0 | K25: =Composições!F234 -> 0.62 | L25: 30.38
A26: SMAMS 565 | B26: 2.8 | C26: NIVELAMENTO | D26: 168.5 | E26: m² | F26: =Composições!C240 -> 0.03 | G26: =Composições!C244 -> 0.22 | H26: 0.25 | I26: 0.04 | J26: =+TRUNC((G26*(1+$L$11)),2) -> 0.26 | K26: =Composições!F250 -> 0.3 | L26: 50.55
B27: TOTAL DE INSTALAÇÕES PROVISÓRIAS | L27: =SUM(L19:L26) -> 15986.92
B28: 3 | C28: ADMINISTRAÇÃO LOCAL
A29: SMAMS 700 | B29: 3.1 | C29: ADMINISTRAÇÃO LOCAL | D29: 100 | E29: % | F29: =Composições!C276 -> 202.7122 | G29: 0 | H29: =+F29+G29 -> 202.7122 | I29: =+K29-J29 -> 247.6129 | J29: =+TRUNC((G29*(1+$L$11)),4) -> 0 | K29: =Composições!F282 -> 247.6129 | L29: =TRUNC((D29*K29),2) -> 24761.29
B30: TOTAL DE ADMINISTRAÇÃO LOCAL | L30: =SUM(L29) -> 24761.29
B31: 4 | C31: MOVIMENTO DE TERRA
A32: SMAMS 1002 | B32: 4.1 | C32: MODELAGEM (MOVIMENTO DE TERRA ATÉ 15CM) | D32: 168.5 | E32: m² | F32: =Composições!C313 -> 0.08 | G32: =Composições!C316 -> 2.34 | H32: =+F32+G32 -> 2.42 | I32: =+K32-J32 -> 0.1 | J32: =+TRUNC((G32*(1+$L$11)),2) -> 2.85 | K32: =Composições!F322 -> 2.95 | L32: =TRUNC((D32*K32),2) -> 497.07
A33: SMAMS 1010 | B33: 4.2 | C33: ATERRO MANUAL C/MATERIAL IMPORTADO C/COMPACTAÇÃO MANUAL | D33: 12 | E33: m³ | F33: =Composições!C338 -> 39.48 | G33: =Composições!C340 -> 41.04 | H33: 80.52 | I33: 48.22 | J33: 50.13 | K33: =Composições!F346 -> 98.35 | L33: 1180.2
B34: TOTAL DE MOVIMENTO DE TERRA | L34: =SUM(L32:L33) -> 1677.27
B35: 5 | C35: PAVIMENTAÇÃO
A36: SINAPI C 94994 | B36: 5.1 | C36: EXECUÇÃO DE PASSEIO (CALÇADA) OU PISO DE CONCRETO COM CONCRETO USINADO, MOLDADO IN LOCO, ACABAMENTO VASSOURADO, ESPESSURA 8 CM, ARMADO | D36: 2.25 | E36: m² | F36: =Composições!C356 -> 97.59 | G36: =Composições!C360 -> 17.25 | H36: =+F36+G36 -> 114.84 | I36: =+K36-J36 -> 119.2 | J36: =+TRUNC((G36*(1+$L$11)),2) -> 21.07 | K36: =Composições!F366 -> 140.27 | L36: =TRUNC((D36*K36),2) -> 315.6
A37: SMAMS 2023 | B37: 5.2 | C37: PISO CONCRETO ARMADO E= 10 cm - ACADEMIA AO AR LIVRE | D37: 116 | E37: m² | F37: =Composições!C385 -> 81.76 | G37: =Composições!C391 -> 15.1 | H37: 96.86 | I37: 99.87 | J37: 18.44 | K37: =Composições!F397 -> 118.31 | L37: 13723.96
A38: SMAMS 2070 | B38: 5.3 | C38: PISO PODOTÁTIL 25x25 cm - E=2,0 cm | D38: 3 | E38: m | F38: =Composições!C427 -> 19.53 | G38: =Composições!C430 -> 8.14 | H38: 27.67 | I38: 23.85 | J38: 9.94 | K38: =Composições!F436 -> 33.79 | L38: 101.37
B39: TOTAL DE PAVIMENTAÇÃO | L39: =SUM(L36:L38) -> 14140.93
B40: 6 | C40: MOBILIÁRIO URBANO
A41: SMAMS 2601 | B41: 6.1 | C41: BANCO B (C/ ENCOSTO) - L=2,00 m - PADRÃO SMAMS | D41: 2 | E41: un | F41: =Composições!C493 -> 1021.84 | G41: =Composições!C500 -> 355.29 | H41: =+F41+G41 -> 1377.13 | I41: =+K41-J41 -> 1248.18 | J41: =+TRUNC((G41*(1+$L$11)),2) -> 433.98 | K41: =Composições!F506 -> 1682.16 | L41: =TRUNC((D41*K41),2) -> 3364.32
A42: SMAMS 2671 | B42: 6.2 | C42: LIXEIRA METÁLICA - V=30 LITROS INSTALADA | D42: 1 | E42: un | F42: =Composições!C603 -> 971.95 | G42: =Composições!C606 -> 52.81 | H42: 1024.76 | I42: 1187.24 | J42: 64.5 | K42: =Composições!F612 -> 1251.74 | L42: 1251.74
B43: TOTAL DE EQUIPAMENTOS/MOBILIÁRIO URBANO | L43: =SUM(L41:L42) -> 4616.06
B44: 7 | C44: ACADEMIA AO AR LIVRE GALVANIZADA
A45: SMAMS 3205 | B45: 7.1 | C45: PLACA ORIENTATIVA - GALVANIZADA | D45: 1 | E45: un | F45: =Composições!C698+Composições!C700 -> 7782.09 | G45: =Composições!C703 -> 44.72 | H45: =+F45+G45 -> 7826.81 | I45: =+K45-J45 -> 8855.57 | J45: =+TRUNC((G45*(1+$L$11)),2) -> 54.62 | K45: =Composições!F710 -> 8910.19 | L45: =TRUNC((D45*K45),2) -> 8910.19
A46: SMAMS 3025 | B46: 7.2 | C46: ESPALDAR PADRÃO SMAMS | D46: 1 | E46: un | F46: =Composições!C625 -> 1643.62 | G46: =Composições!C629 -> 596.02 | H46: =+F46+G46 -> 2239.64 | I46: =+K46-J46 -> 2007.69 | J46: =+TRUNC((G46*(1+$L$11)),2) -> 728.03 | K46: =Composições!F635 -> 2735.72 | L46: 2735.72
A47: SMAMS 3030 | B47: 7.3 | C47: PRANCHA DE ABDOMINAL PADRÃO SMAMS | D47: 1 | E47: un | F47: =Composições!C652 -> 1135.76 | G47: =Composições!C657 -> 319.19 | H47: 1454.95 | I47: 1387.33 | J47: 389.89 | K47: =Composições!F663 -> 1777.22 | L47: 1777.22
A48: SMAMS 3220 | B48: 7.4 | C48: SIMULADOR DE CAMINHADA TRIPLO CONJUGADO - GALVANIZADO | D48: 1 | E48: un | F48: =Composições!C735 -> 13224.66 | G48: =Composições!C738 -> 24.08 | H48: 13248.74 | I48: 15036.43 | J48: 29.41 | K48: =Composições!F745 -> 15065.84 | L48: 15065.84
A49: SMAMS 3230 | B49: 7.5 | C49: ESQUI TRIPLO CONJUGADO - GALVANIZADO | D49: 1 | E49: un | F49: =Composições!C750 -> 16140 | G49: =Composições!C753 -> 24.08 | H49: 16164.08 | I49: 18351.18 | J49: 29.41 | K49: =Composições!F760 -> 18380.59 | L49: 18380.59
A50: SMAMS 3235 | B50: 7.6 | C50: ADUÇÃO E ABDUÇÃO DE PERNAS DUPLO - GALVANIZADO | D50: 1 | E50: un | F50: =Composições!C766+Composições!C768 -> 9193.38 | G50: =Composições!C771 -> 28.77 | H50: 9222.15 | I50: 10456.54 | J50: 35.14 | K50: =Composições!F778 -> 10491.68 | L50: 10491.68
A51: SMAMS 3240 | B51: 7.7 | C51: PRESSÃO DE PERNAS TRIPLO CONJUGADO - GALVANIZADO | D51: 1 | E51: un | F51: =Composições!C784+Composições!C786 -> 9515.38 | G51: =Composições!C789 -> 28.77 | H51: 9544.15 | I51: 10822.65 | J51: 35.14 | K51: =Composições!F796 -> 10857.79 | L51: 10857.79
A52: SMAMS 3252 | B52: 7.8 | C52: SIMULADOR DE REMADA SENTADA - GALVANIZADO | D52: 1 | E52: un | F52: =Composições!C818 -> 5640 | G52: =Composições!C821 -> 24.08 | H52: 5664.08 | I52: 6412.68 | J52: 29.41 | K52: =Composições!F828 -> 6442.09 | L52: 6442.09
A53: SMAMS 3276 | B53: 7.9 | C53: REMADA ESPECIAL PPNE - GALVANIZADA | D53: 1 | E53: un | F53: =Composições!C888 -> 5940 | G53: =Composições!C891 -> 18.9 | H53: 5958.9 | I53: 6753.78 | J53: 23.08 | K53: =Composições!F898 -> 6776.86 | L53: 6776.86
A54: SMAMS 3280 | B54: 7.10 | C54: VOADOR PEITORAL E VOADOR DORSAL - GALVANIZADO | D54: 1 | E54: un | F54: =Composições!C904+Composições!C906 -> 6243.38 | G54: =Composições!C909 -> 28.77 | H54: 6272.15 | I54: 7102.39 | J54: 35.14 | K54: =Composições!F916 -> 7137.53 | L54: 7137.53
B55: TOTAL DE ACADEMIA AO AR LIVRE | L55: =SUM(L45:L54) -> 88575.51
B56: 8 | C56: PLANTIO
A57: SINAPI C 4105 | B57: 8.1 | C57: PLANTIO DE GRAMA CATARINA COM COMPOSTO ORGÂNICO | D57: 49.5 | E57: m² | F57: =Composições!C2102 -> 24.44 | G57: =Composições!C2105 -> 3.45 | H57: =+F57+G57 -> 27.89 | I57: =+K57-J57 -> 29.85 | J57: =+TRUNC((G57*(1+$L$11)),2) -> 4.21 | K57: =Composições!F2111 -> 34.06 | L57: =TRUNC((D57*K57),2) -> 1685.97
B58: TOTAL DE PLANTIO | L58: =SUM(L56:L57) -> 1685.97
B59: SUBTOTAL PRAÇA PROFESSOR EMÍLIO MABILDE RÍPOLE (1) | L59: =SUM(L16:L58)/2 -> 151720
A61: PRAÇA IRENE ELISALDE STRICHER 145/10
A62: Composição | B62: Item | C62: Descrição | D62: Quantidade | E62: Un | F62: Custo Unit.Mat.+Eq. | G62: Custo Unit. M.O. | H62: Custo Unit. | I62: Preço Unit.Mat.+Eq. | J62: Preço Unit. M.O. | K62: Preço Unit. | L62: Total
B63: 9 | C63: SERVIÇOS PRELIMINARES
A64: SMAMS 120 | B64: 9.1 | C64: DEMOLIÇÃO CHURRASQUEIRA C/REMOÇÃO DE ENTULHOS | D64: 1 | E64: un | F64: =Composições!C44 -> 76.6 | G64: =Composições!C47 -> 65.51 | H64: =+F64+G64 -> 142.11 | I64: =+K64-J64 -> 93.56 | J64: =+TRUNC((G64*(1+$L$11)),2) -> 80.02 | K64: =Composições!F53 -> 173.58 | L64: =TRUNC((D64*K64),2) -> 173.58
A65: SMAMS 122 | B65: 9.2 | C65: DEMOLIÇÃO DE MESA DE CONCRETO C/REMOÇÃO DE ENTULHOS | D65: 1 | E65: cj | F65: =Composições!C63 -> 130.49 | G65: =Composições!C66 -> 37.49 | H65: 167.98 | I65: 159.39 | J65: 45.79 | K65: =Composições!F72 -> 205.18 | L65: 205.18
B66: TOTAL DE SERVIÇOS PRELIMINARES | L66: =SUM(L64:L65) -> 378.76
B67: 10 | C67: INSTALAÇÕES PROVISÓRIAS
A68: SMAMS 500 | B68: 10.1 | C68: TAPUME EM CHAPA DE COMPENSADO RESINADO (L=7,70m; C=11,00m e H=2,20M) | D68: 82.28 | E68: m² | F68: =Composições!C96 -> 26.48 | G68: =Composições!C101 -> 41.09 | H68: =+F68+G68 -> 67.57 | I68: =+K68-J68 -> 32.3386 | J68: =+TRUNC((G68*(1+$L$11)),4) -> 50.1914 | K68: =Composições!F107 -> 82.53 | L68: =TRUNC((D68*K68),2) -> 6790.56
A69: SMAMS 510 | B69: 10.2 | C69: LOCAÇÃO DE BANHEIRO QUÍMICO | D69: 100 | E69: % | F69: =Composições!C112 -> 6.8 | G69: 0 | H69: 6.8 | I69: 8.3062 | J69: =+TRUNC((G69*(1+$L$11)),4) -> 0 | K69: =Composições!F118 -> 8.3062 | L69: 830.62
A70: SMAMS 520 | B70: 10.3 | C70: FRETE P/ BANHEIRO QUÍMICO LOCADO (IDA E VOLTA) | D70: 1 | E70: cj | F70: =Composições!C125 -> 888.65 | G70: 0 | H70: 888.65 | I70: 1085.48 | J70: =+TRUNC((G70*(1+$L$11)),4) -> 0 | K70: =Composições!F131 -> 1085.48 | L70: 1085.48
A71: SMAMS 530 | B71: 10.4 | C71: INSTALAÇÃO PROVISÓRIA DE ENERGIA, AÉREA, BIFÁSICA, COM CAIXA DE EMBUTIR C/ POSTE H=9,00M | D71: 1 | E71: pt | F71: =Composições!C156 -> 2353.62 | G71: =Composições!C159 -> 86 | H71: 2439.62 | I71: 2874.941 | J71: 105.049 | K71: =Composições!F166 -> 2979.99 | L71: 2979.99
A72: SMAMS 535 | B72: 10.5 | C72: INSTALAÇÃO PROVISÓRIA DE ÁGUA | D72: 1 | E72: pt | F72: =Composições!C178 -> 734.47 | G72: 0 | H72: 734.47 | I72: 897.15 | J72: 0 | K72: =Composições!F184 -> 897.15 | L72: 897.15
A73: SMAMS 542 | B73: 10.6 | C73: PLACA DE OBRA EM CHAPA GALVANIZADA | D73: =2*1.25 -> 2.5 | E73: m² | F73: =Composições!C196 -> 281.44 | G73: =Composições!C201 -> 21.64 | H73: =+F73+G73 -> 303.08 | I73: 343.7768 | J73: 26.4332 | K73: =Composições!F207 -> 370.21 | L73: 925.52
A74: SMAMS 552 | B74: 10.7 | C74: SINALIZAÇÃO COM TELA PLÁSTICA LARANJA FIXADA EM CONE PLÁSTICO | D74: 58 | E74: m | F74: =Composições!C214 -> 22.34 | G74: =Composições!C217 -> 5.69 | H74: =+F74+G74 -> 28.03 | I74: 27.2797 | J74: 6.9503 | K74: =Composições!F223 -> 34.23 | L74: 1985.34
A75: SINAPI C 99064 | B75: 10.8 | C75: LOCAÇÃO DE OBRA | D75: 52 | E75: m | F75: =Composições!C228 -> 0.51 | G75: 0 | H75: 0.51 | I75: 0.62 | J75: 0 | K75: =Composições!F234 -> 0.62 | L75: 32.24
A76: SMAMS 565 | B76: 10.9 | C76: NIVELAMENTO | D76: 154 | E76: m² | F76: =Composições!C240 -> 0.03 | G76: =Composições!C244 -> 0.22 | H76: 0.25 | I76: 0.04 | J76: =+TRUNC((G76*(1+$L$11)),2) -> 0.26 | K76: =Composições!F250 -> 0.3 | L76: 46.2
B77: TOTAL DE INSTALAÇÕES PROVISÓRIAS | L77: =SUM(L68:L76) -> 15573.1
B78: 11 | C78: ADMINISTRAÇÃO LOCAL
A79: SMAMS 700 | B79: 11.1 | C79: ADMINISTRAÇÃO LOCAL | D79: 100 | E79: % | F79: 0 | G79: =Composições!C276 -> 202.7122 | H79: =+F79+G79 -> 202.7122 | I79: =+K79-J79 -> 0 | J79: =+TRUNC((G79*(1+$L$11)),4) -> 247.6129 | K79: =Composições!F282 -> 247.6129 | L79: =TRUNC((D79*K79),2) -> 24761.29
B80: TOTAL DE ADMINISTRAÇÃO LOCAL | L80: =SUM(L79) -> 24761.29
B81: 12 | C81: MOVIMENTO DE TERRA
A82: SMAMS 1002 | B82: 12.1 | C82: MODELAGEM (MOVIMENTO DE TERRA ATÉ 15CM) | D82: 154 | E82: m² | F82: =Composições!C313 -> 0.08 | G82: =Composições!C316 -> 2.34 | H82: =+F82+G82 -> 2.42 | I82: =+K82-J82 -> 0.1 | J82: =+TRUNC((G82*(1+$L$11)),2) -> 2.85 | K82: =Composições!F322 -> 2.95 | L82: =TRUNC((D82*K82),2) -> 454.3
A83: SMAMS 1010 | B83: 12.2 | C83: ATERRO MANUAL C/MATERIAL IMPORTADO C/COMPACTAÇÃO MANUAL | D83: 2.5 | E83: m³ | F83: =Composições!C338 -> 39.48 | G83: =Composições!C340 -> 41.04 | H83: 80.52 | I83: 48.22 | J83: 50.13 | K83: =Composições!F346 -> 98.35 | L83: 245.87
B84: TOTAL DE MOVIMENTO DE TERRA | L84: =SUM(L82:L83) -> 700.17
B85: 13 | C85: PAVIMENTAÇÃO
A86: SINAPI C 94994 | B86: 13.1 | C86: EXECUÇÃO DE PASSEIO (CALÇADA) OU PISO DE CONCRETO COM CONCRETO USINADO, MOLDADO IN LOCO, ACABAMENTO VASSOURADO, ESPESSURA 8 CM, ARMADO | D86: 1 | E86: m² | F86: =Composições!C356 -> 97.59 | G86: =Composições!C360 -> 17.25 | H86: =+F86+G86 -> 114.84 | I86: =+K86-J86 -> 119.2 | J86: =+TRUNC((G86*(1+$L$11)),2) -> 21.07 | K86: =Composições!F366 -> 140.27 | L86: =TRUNC((D86*K86),2) -> 140.27
A87: SINAPI C 94994 | B87: 13.2 | C87: PISO CONCRETO ARMADO E= 10 cm - ACADEMIA AO AR LIVRE | D87: 100 | E87: m² | F87: =Composições!C385 -> 81.76 | G87: =Composições!C391 -> 15.1 | H87: 96.86 | I87: 99.87 | J87: 18.44 | K87: =Composições!F397 -> 118.31 | L87: 11831
A88: SMAMS 2070 | B88: 13.3 | C88: PISO PODOTÁTIL 25x25 cm - E=2,0 cm | D88: 4 | E88: m | F88: =Composições!C427 -> 19.53 | G88: =Composições!C430 -> 8.14 | H88: 27.67 | I88: 23.85 | J88: 9.94 | K88: =Composições!F436 -> 33.79 | L88: 135.16
B89: TOTAL DE PAVIMENTAÇÃO | L89: =SUM(L86:L88) -> 12106.43
B90: 14 | C90: MOBILIÁRIO URBANO
A91: SMAMS 2601 | B91: 14.1 | C91: BANCO B (C/ ENCOSTO) - L=2,00 m - PADRÃO SMAM | D91: 2 | E91: un | F91: =Composições!C493 -> 1021.84 | G91: =Composições!C500 -> 355.29 | H91: =+F91+G91 -> 1377.13 | I91: =+K91-J91 -> 1248.18 | J91: =+TRUNC((G91*(1+$L$11)),2) -> 433.98 | K91: =Composições!F506 -> 1682.16 | L91: =TRUNC((D91*K91),2) -> 3364.32
A92: SMAMS 2071 | B92: 14.2 | C92: LIXEIRA METÁLICA - V=30 LITROS INSTALADA | D92: 1 | E92: un | F92: =Composições!C603 -> 971.95 | G92: =Composições!C606 -> 52.81 | H92: 1024.76 | I92: 1187.24 | J92: 64.5 | K92: =Composições!F612 -> 1251.74 | L92: 1251.74
B93: TOTAL DE EQUIPAMENTOS/MOBILIÁRIO URBANO | L93: =SUM(L91:L92) -> 4616.06
B94: 15 | C94: ACADEMIA AO AR LIVRE - GALVANIZADA
A95: SINAPI C 3205 | B95: 15.1 | C95: PLACA ORIENTATIVA - GALVANIZADA | D95: 1 | E95: un | F95: =Composições!C698+Composições!C700 -> 7782.09 | G95: =Composições!C703 -> 44.72 | H95: =+F95+G95 -> 7826.81 | I95: =+K95-J95 -> 8855.57 | J95: =+TRUNC((G95*(1+$L$11)),2) -> 54.62 | K95: =Composições!F710 -> 8910.19 | L95: =TRUNC((D95*K95),2) -> 8910.19
A96: SINAPI C 3220 | B96: 15.2 | C96: SIMULADOR DE CAMINHADA TRIPLO CONJUGADO - GALVANIZADO | D96: 1 | E96: un | F96: =Composições!C735 -> 13224.66 | G96: =Composições!C738 -> 24.08 | H96: 13248.74 | I96: 15036.43 | J96: 29.41 | K96: =Composições!F745 -> 15065.84 | L96: 15065.84
A97: SINAPI C 3230 | B97: 15.3 | C97: ESQUI TRIPLO CONJUGADO - GALVANIZADO | D97: 1 | E97: un | F97: =Composições!C750 -> 16140 | G97: =Composições!C753 -> 24.08 | H97: 16164.08 | I97: 18351.18 | J97: 29.41 | K97: =Composições!F760 -> 18380.59 | L97: 18380.59
A98: SINAPI C 3235 | B98: 15.4 | C98: ADUÇÃO E ABDUÇÃO DE PERNAS DUPLO - GALVANIZADO | D98: 1 | E98: un | F98: =Composições!C766+Composições!C768 -> 9193.38 | G98: =Composições!C771 -> 28.77 | H98: 9222.15 | I98: 10456.54 | J98: 35.14 | K98: =Composições!F778 -> 10491.68 | L98: 10491.68
A99: SINAPI C 3245 | B99: 15.5 | C99: MULTIEXERCITADOR CONJUGADO 6 FUNÇÕES - GALVANIZADO | D99: 1 | E99: un | F99: =Composições!C802 -> 16191.33 | G99: =Composições!C805 -> 28.36 | H99: 16219.69 | I99: 18409.54 | J99: 34.64 | K99: =Composições!F812 -> 18444.18 | L99: 18444.18
A100: SINAPI C 3252 | B100: 15.6 | C100: SIMULADOR DE REMO - GALVANIZADO | D100: 1 | E100: un | F100: =Composições!C818 -> 5640 | G100: =Composições!C821 -> 24.08 | H100: 5664.08 | I100: 6412.68 | J100: 29.41 | K100: =Composições!F828 -> 6442.09 | L100: 6442.09
A101: SINAPI C 3276 | B101: 15.7 | C101: REMADA ESPECIAL PPNE - GALVANIZADA | D101: 1 | E101: un | F101: =Composições!C888 -> 5940 | G101: =Composições!C891 -> 18.9 | H101: 5958.9 | I101: 6753.78 | J101: 23.08 | K101: =Composições!F898 -> 6776.86 | L101: 6776.86
A102: SINAPI C 3280 | B102: 15.8 | C102: VOADOR PEITORAL E VOADOR DORSAL - GALVANIZADO | D102: 1 | E102: un | F102: =Composições!C904+Composições!C906 -> 6243.38 | G102: =Composições!C909 -> 28.77 | H102: 6272.15 | I102: 7102.39 | J102: 35.14 | K102: =Composições!F916 -> 7137.53 | L102: 7137.53
B103: TOTAL DE ACADEMIA AO AR LIVRE | L103: =SUM(L95:L102) -> 91648.96
B104: 16 | C104: PLANTIO
A105: SINAPI C 4105 | B105: 16.1 | C105: PLANTIO DE GRAMA CATARINA COM COMPOSTO ORGÂNICO | D105: 52 | E105: m² | F105: =Composições!C2102 -> 24.44 | G105: =Composições!C2105 -> 3.45 | H105: =+F105+G105 -> 27.89 | I105: =+K105-J105 -> 29.85 | J105: =+TRUNC((G105*(1+$L$11)),2) -> 4.21 | K105: =Composições!F2111 -> 34.06 | L105: =TRUNC((D105*K105),2) -> 1771.12
B106: TOTAL DE PLANTIO | L106: =SUM(L104:L105) -> 1771.12
B107: SUBTOTAL PRAÇA IRENE ELISALDE STRICHER (2) | L107: =SUM(L64:L106)/2 -> 151555.89
A109: PRAÇA JOSÉ MARIANO DE FREITAS BECK (164/09)
A110: Composição | B110: Item | C110: Descrição | D110: Quantidade | E110: Un | F110: Custo Unit.Mat.+Eq. | G110: Custo Unit. M.O. | H110: Custo Unit. | I110: Preço Unit.Mat.+Eq. | J110: Preço Unit. M.O. | K110: Preço Unit. | L110: Total
B111: 17 | C111: SERVIÇOS PRELIMINARES
A112: =CONCATENATE("SMAMS ",Composições!A11) -> SMAMS 25 | B112: 17.1 | C112: REMOÇÃO DE PASSEIOS - SEM REMOÇÃO DE ENTULHOS | D112: 7 | E112: m² | F112: 0 | G112: =+Composições!C14 -> 8.11 | H112: =+F112+G112 -> 8.11 | I112: =+K112-J112 -> 0 | J112: =+TRUNC((G112*(1+$L$11)),2) -> 9.9 | K112: =+Composições!F20 -> 9.9 | L112: =TRUNC((D112*K112),2) -> 69.3
A113: SMAMS 390 | B113: 17.2 | C113: REMOÇÃO DE ENTULHOS COM CAÇAMBA 4M³ | D113: 0.69 | E113: m³ | F113: =Composições!C26 -> 110.83 | G113: =Composições!C28 -> 11.97 | H113: =+F113+G113 -> 122.8 | I113: =+K113-J113 -> 135.38 | J113: =+TRUNC((G113*(1+$L$11)),2) -> 14.62 | K113: =Composições!F34 -> 150 | L113: =TRUNC((D113*K113),2) -> 103.5
B114: TOTAL DE SERVIÇOS PRELIMINARES | L114: =SUM(L112:L113) -> 172.8
B115: 18 | C115: INSTALAÇÕES PROVISÓRIAS
A116: SMAMS 500 | B116: 18.1 | C116: TAPUME EM CHAPA DE COMPENSADO RESINADO (L=7,70m; C=11,00m e H=2,20M) | D116: 82.28 | E116: m² | F116: =Composições!C96 -> 26.48 | G116: =Composições!C101 -> 41.09 | H116: =+F116+G116 -> 67.57 | I116: =+K116-J116 -> 32.3386 | J116: =+TRUNC((G116*(1+$L$11)),4) -> 50.1914 | K116: =Composições!F107 -> 82.53 | L116: =TRUNC((D116*K116),2) -> 6790.56
A117: =CONCATENATE("SMAMS ",Composições!A110) -> SMAMS 510 | B117: 18.2 | C117: LOCAÇÃO DE BANHEIRO QUÍMICO | D117: 100 | E117: % | F117: =Composições!C112 -> 6.8 | G117: 0 | H117: =+F117+G117 -> 6.8 | I117: =+K117-J117 -> 8.3062 | J117: =+TRUNC((G117*(1+$L$11)),4) -> 0 | K117: =Composições!F118 -> 8.3062 | L117: =TRUNC((D117*K117),2) -> 830.62
A118: SMAMS 520 | B118: 18.3 | C118: FRETE P/ BANHEIRO QUÍMICO LOCADO (IDA E VOLTA) | D118: 1 | E118: cj | F118: =Composições!C125 -> 888.65 | G118: 0 | H118: =+F118+G118 -> 888.65 | I118: =+K118-J118 -> 1085.48 | J118: =+TRUNC((G118*(1+$L$11)),4) -> 0 | K118: =Composições!F131 -> 1085.48 | L118: =TRUNC((D118*K118),2) -> 1085.48
A119: SMAMS 530 | B119: 18.4 | C119: INSTALAÇÃO PROVISÓRIA DE ENERGIA, AÉREA, BIFÁSICA, COM CAIXA DE EMBUTIR C/ POSTE H=9,00M | D119: 1 | E119: pt | F119: =Composições!C156 -> 2353.62 | G119: =Composições!C159 -> 86 | H119: =+F119+G119 -> 2439.62 | I119: =+K119-J119 -> 2874.941 | J119: =+TRUNC((G119*(1+$L$11)),4) -> 105.049 | K119: =Composições!F166 -> 2979.99 | L119: =TRUNC((D119*K119),2) -> 2979.99
A120: SMAMS 535 | B120: 18.5 | C120: INSTALAÇÃO PROVISÓRIA DE ÁGUA | D120: 1 | E120: pt | F120: =Composições!C178 -> 734.47 | G120: =Composições!C160 -> 0 | H120: =+F120+G120 -> 734.47 | I120: =+K120-J120 -> 897.15 | J120: =+TRUNC((G120*(1+$L$11)),4) -> 0 | K120: =Composições!F184 -> 897.15 | L120: =TRUNC((D120*K120),2) -> 897.15
A121: SMAMS 542 | B121: 18.6 | C121: PLACA DE OBRA EM CHAPA GALVANIZADA | D121: 2.5 | E121: m² | F121: =Composições!C196 -> 281.44 | G121: =Composições!C201 -> 21.64 | H121: =+F121+G121 -> 303.08 | I121: =+K121-J121 -> 343.7768 | J121: =+TRUNC((G121*(1+$L$11)),4) -> 26.4332 | K121: =Composições!F207 -> 370.21 | L121: =TRUNC((D121*K121),2) -> 925.52
A122: SMAMS 552 | B122: 18.7 | C122: SINALIZAÇÃO COM TELA PLÁSTICA LARANJA FIXADA EM CONE PLÁSTICO | D122: 55 | E122: m | F122: =Composições!C214 -> 22.34 | G122: =Composições!C217 -> 5.69 | H122: =+F122+G122 -> 28.03 | I122: 27.2797 | J122: 6.9503 | K122: =Composições!F223 -> 34.23 | L122: 1882.65
A123: SINAPI C 99064 | B123: 18.8 | C123: LOCAÇÃO DE OBRA | D123: 51 | E123: m | F123: 0 | G123: =Composições!C228 -> 0.51 | H123: 0.51 | I123: -0.0029 | J123: 0.6229 | K123: =Composições!F234 -> 0.62 | L123: 31.62
A124: SMAMS 565 | B124: 18.9 | C124: NIVELAMENTO | D124: 183.38 | E124: m² | F124: =Composições!C240 -> 0.03 | G124: =Composições!C244 -> 0.22 | H124: 0.25 | I124: 0.04 | J124: =+TRUNC((G124*(1+$L$11)),2) -> 0.26 | K124: =Composições!F250 -> 0.3 | L124: 55.01
B125: TOTAL DE INSTALAÇÕES PROVISÓRIAS | L125: =SUM(L116:L124) -> 15478.6
B126: 19 | C126: ADMINISTRAÇÃO LOCAL
A127: =CONCATENATE("SMAMS ",Composições!A268) -> SMAMS 700 | B127: 19.1 | C127: ADMINISTRAÇÃO LOCAL | D127: 100 | E127: % | F127: 0 | G127: =Composições!C276 -> 202.7122 | H127: =+F127+G127 -> 202.7122 | I127: =+K127-J127 -> 0 | J127: =+TRUNC((G127*(1+$L$11)),4) -> 247.6129 | K127: =Composições!F282 -> 247.6129 | L127: =TRUNC((D127*K127),2) -> 24761.29
B128: TOTAL DE ADMINISTRAÇÃO LOCAL | L128: =SUM(L127) -> 24761.29
B129: 20 | C129: MOVIMENTO DE TERRA
A130: SMAMS 1002 | B130: 20.1 | C130: MODELAGEM (MOVIMENTO DE TERRA ATÉ 15CM) | D130: 183.38 | E130: m² | F130: =Composições!C313 -> 0.08 | G130: =Composições!C316 -> 2.34 | H130: =+F130+G130 -> 2.42 | I130: =+K130-J130 -> 0.1 | J130: =+TRUNC((G130*(1+$L$11)),2) -> 2.85 | K130: =Composições!F322 -> 2.95 | L130: =TRUNC((D130*K130),2) -> 540.97
A131: SMAMS 1010 | B131: 20.2 | C131: ATERRO MANUAL C/MATERIAL IMPORTADO C/COMPACTAÇÃO MANUAL | D131: 13.05 | E131: m³ | F131: =Composições!C338 -> 39.48 | G131: =Composições!C340 -> 41.04 | H131: =+F131+G131 -> 80.52 | I131: =+K131-J131 -> 48.22 | J131: =+TRUNC((G131*(1+$L$11)),2) -> 50.13 | K131: =Composições!F346 -> 98.35 | L131: =TRUNC((D131*K131),2) -> 1283.46
B132: TOTAL DE MOVIMENTO DE TERRA | L132: =SUM(L130:L131) -> 1824.43
B133: 21 | C133: PAVIMENTAÇÃO
A134: SINAPI C 94994 | B134: 21.1 | C134: EXECUÇÃO DE PASSEIO (CALÇADA) OU PISO DE CONCRETO COM CONCRETO USINADO, MOLDADO IN LOCO, ACABAMENTO VASSOURADO, ESPESSURA 8 CM, ARMADO | D134: 3 | E134: m² | F134: =Composições!C356 -> 97.59 | G134: =Composições!C360 -> 17.25 | H134: =+F134+G134 -> 114.84 | I134: =+K134-J134 -> 119.2 | J134: =+TRUNC((G134*(1+$L$11)),2) -> 21.07 | K134: =Composições!F366 -> 140.27 | L134: =TRUNC((D134*K134),2) -> 420.81
A135: =CONCATENATE("SMAMS ",Composições!A370) -> SMAMS 2023 | B135: 21.2 | C135: PISO CONCRETO ARMADO E= 10 cm - ACADEMIA AO AR LIVRE | D135: 130.5 | E135: m² | F135: =+Composições!C385 -> 81.76 | G135: =Composições!C391 -> 15.1 | H135: =+F135+G135 -> 96.86 | I135: =+K135-J135 -> 99.87 | J135: =+TRUNC((G135*(1+$L$11)),2) -> 18.44 | K135: =Composições!F397 -> 118.31 | L135: =TRUNC((D135*K135),2) -> 15439.45
A136: =CONCATENATE("SMAMS ",Composições!A403) -> SMAMS 2040 | B136: 21.3 | C136: LAJE DE GRÊS ASSENTADA NA AREIA | D136: 4 | E136: m² | F136: =+Composições!C407 -> 28.45 | G136: =+Composições!C410 -> 27.01 | H136: 55.46 | I136: 34.75 | J136: 32.99 | K136: =+Composições!F416 -> 67.74 | L136: 270.96
A137: =CONCATENATE("SMAMS ",Composições!A421) -> SMAMS 2070 | B137: 21.4 | C137: PISO PODOTÁTIL 25x25 cm - E=2,0cm | D137: 1.5 | E137: m | F137: =+Composições!C427 -> 19.53 | G137: =+Composições!C430 -> 8.14 | H137: 27.67 | I137: 23.85 | J137: 9.94 | K137: =+Composições!F436 -> 33.79 | L137: 50.68
B138: TOTAL DE PAVIMENTAÇÃO | L138: =SUM(L134:L137) -> 16181.9
B139: 22 | C139: ACESSIBILIDADE
A140: SMAMS 2308 | B140: 22.1 | C140: RAMPA PPNE'S TIPO 1 - 1,80 m (ABA 1,50 m) | D140: 1 | E140: un | F140: =Composições!C457 -> 553.17 | G140: =Composições!C463 -> 363.2 | H140: =+F140+G140 -> 916.37 | I140: =+K140-J140 -> 675.7 | J140: =+TRUNC((G140*(1+$L$11)),2) -> 443.64 | K140: =Composições!F469 -> 1119.34 | L140: =TRUNC((D140*K140),2) -> 1119.34
B141: TOTAL DE ACESSIBILIDADE | L141: =SUM(L140:L140) -> 1119.34
B142: 23 | C142: MOBILIÁRIO URBANO
A143: =CONCATENATE("SMAMS ",Composições!A473) -> SMAMS 2601 | B143: 23.1 | C143: BANCO B (C/ ENCOSTO) - L=2,00 m - PADRÃO SMAM | D143: 2 | E143: un | F143: =+Composições!C493 -> 1021.84 | G143: =+Composições!C500 -> 355.29 | H143: =+F143+G143 -> 1377.13 | I143: =+K143-J143 -> 1248.18 | J143: =+TRUNC((G143*(1+$L$11)),2) -> 433.98 | K143: =+Composições!F506 -> 1682.16 | L143: =TRUNC((D143*K143),2) -> 3364.32
A144: =CONCATENATE("SMAMS ",Composições!A599) -> SMAMS 2671 | B144: 23.2 | C144: LIXEIRA METÁLICA - V=30 LITROS INSTALADA | D144: 1 | E144: un | F144: =+Composições!C603 -> 971.95 | G144: =+Composições!C606 -> 52.81 | H144: 1024.76 | I144: 1187.24 | J144: 64.5 | K144: =+Composições!F612 -> 1251.74 | L144: 1251.74
B145: TOTAL DE EQUIPAMENTOS/MOBILIÁRIO URBANO | L145: =SUM(L143:L144) -> 4616.06
B146: 24 | C146: ACADEMIA AO AR LIVRE - GALVANIZADA
A147: =CONCATENATE("SMAMS ",Composições!A695) -> SMAMS 3205 | B147: 24.1 | C147: PLACA ORIENTATIVA - GALVANIZADA | D147: 1 | E147: un | F147: =+Composições!C698+Composições!C700 -> 7782.09 | G147: =+Composições!C703 -> 44.72 | H147: =+F147+G147 -> 7826.81 | I147: =+K147-J147 -> 8855.57 | J147: =+TRUNC((G147*(1+$L$11)),2) -> 54.62 | K147: =+Composições!F710 -> 8910.19 | L147: =TRUNC((D147*K147),2) -> 8910.19
A148: SMAMS 3212 | B148: 24.2 | C148: JOGO DE BARRAS - GALVANIZADO | D148: 1 | E148: un | F148: =Composições!C717+Composições!C719 -> 9532.86 | G148: =Composições!C722 -> 75.44 | H148: =+F148+G148 -> 9608.3 | I148: =+K148-J148 -> 10853.52 | J148: =+TRUNC((G148*(1+$L$11)),2) -> 92.14 | K148: =Composições!F729 -> 10945.66 | L148: =TRUNC((D148*K148),2) -> 10945.66
A149: =CONCATENATE("SMAMS ",Composições!A733) -> SMAMS 3220 | B149: 24.3 | C149: SIMULADOR DE CAMINHADA TRIPLO CONJUGADO - GALVANIZADO | D149: 1 | E149: un | F149: =+Composições!C735 -> 13224.66 | G149: =+Composições!C738 -> 24.08 | H149: 13248.74 | I149: 15036.43 | J149: 29.41 | K149: =+Composições!F745 -> 15065.84 | L149: 15065.84
A150: =CONCATENATE("SMAMS ",Composições!A763) -> SMAMS 3235 | B150: 24.4 | C150: ADUÇÃO E ABDUÇÃO DE PERNAS DUPLO - GALVANIZADO | D150: 1 | E150: un | F150: =+Composições!C766+Composições!C768 -> 9193.38 | G150: =+Composições!C771 -> 28.77 | H150: 9222.15 | I150: 10456.54 | J150: 35.14 | K150: =+Composições!F778 -> 10491.68 | L150: 10491.68
A151: =CONCATENATE("SMAMS ",Composições!A781) -> SMAMS 3240 | B151: 24.5 | C151: PRESSÃO DE PERNAS TRIPLO CONJUGADO - GALVANIZADO | D151: 1 | E151: un | F151: =+Composições!C784+Composições!C786 -> 9515.38 | G151: =+Composições!C789 -> 28.77 | H151: 9544.15 | I151: 10822.65 | J151: 35.14 | K151: =+Composições!F796 -> 10857.79 | L151: 10857.79
A152: =CONCATENATE("SMAMS ",Composições!A816) -> SMAMS 3252 | B152: 24.6 | C152: SIMULADOR DE REMO - GALVANIZADO | D152: 1 | E152: un | F152: =+Composições!F817 -> 5640 | G152: =+Composições!C821 -> 24.08 | H152: 5664.08 | I152: 6412.68 | J152: 29.41 | K152: =+Composições!F828 -> 6442.09 | L152: 6442.09
A153: =CONCATENATE("SMAMS ",Composições!A868) -> SMAMS 3270 | B153: 24.7 | C153: ABDOMINAL SIMPLES - GALVANIZADO | D153: 1 | E153: un | F153: =+Composições!C871+Composições!C873 -> 4980.04 | G153: =+Composições!C876 -> 28.77 | H153: 5008.81 | I153: 5665.97 | J153: 35.14 | K153: =+Composições!F883 -> 5701.11 | L153: 5701.11
A154: =CONCATENATE("SMAMS ",Composições!A886) -> SMAMS 3276 | B154: 24.8 | C154: REMADA ESPECIAL PPNE - GALVANIZADA | D154: 1 | E154: un | F154: =+Composições!C888 -> 5940 | G154: =+Composições!C891 -> 18.9 | H154: 5958.9 | I154: 6753.78 | J154: 23.08 | K154: =+Composições!F898 -> 6776.86 | L154: 6776.86
A155: =CONCATENATE("SMAMS ",Composições!A901) -> SMAMS 3280 | B155: 24.9 | C155: VOADOR PEITORAL E VOADOR DORSAL - GALVANIZADO | D155: 1 | E155: un | F155: =+Composições!C904+Composições!C906 -> 6243.38 | G155: =+Composições!C909 -> 28.77 | H155: 6272.15 | I155: 7102.39 | J155: 35.14 | K155: =+Composições!F916 -> 7137.53 | L155: 7137.53
B156: TOTAL DE ACADEMIA AO AR LIVRE | L156: =SUM(L147:L155) -> 82328.75
B157: 25 | C157: PLANTIO
A158: =CONCATENATE("SMAMS ",Composições!A2099) -> SMAMS 4105 | B158: 25.1 | C158: PLANTIO DE GRAMA CATARINA COM COMPOSTO ORGÂNICO | D158: 49.5 | E158: m² | F158: =+Composições!C2102 -> 24.44 | G158: =+Composições!C2105 -> 3.45 | H158: =+F158+G158 -> 27.89 | I158: =+K158-J158 -> 29.85 | J158: =+TRUNC((G158*(1+$L$11)),2) -> 4.21 | K158: =+Composições!F2111 -> 34.06 | L158: =TRUNC((D158*K158),2) -> 1685.97
B159: TOTAL DE PLANTIO | L159: =SUM(L158:L158) -> 1685.97
B160: SUBTOTAL PRAÇA JOSÉ MARIANO DE FREITAS BECK (3) | L160: =SUM(L112:L159)/2 -> 148169.14
B163: TOTAL OBRA (1) + (2) + (3) | L163: =L160+L107+L59 -> 451445.03

Sheet Cronograma
A1: CRONOGRAMA FÍSICO-FINANCEIRO | AC1: INSTRUÇÕES
AC2: *Preencher com as porcentagens de cada item. *Ocultar colunas não utilizadas (não deletar). *As linhas devem ser ocultadas, nunca deletadas. *Não preencher as porcentagens de engenheiro, mestre e encarregado.
A3: OBJETO: | B3: =+PO!$B$9 -> Obras de Aquisição e Instalação de Academias de Ginástica ao ar livre na Praça Professor Emílio Mabilde Rípole (155/02), Praça Irene Elisalde Stricher (145/10) e Praça José Mariano de Freitas Beck (164/09).
A4: DATA: | B4: =IF(PO!$B$10="","",PO!$B$10) -> 2021-08-10 | C4: =+PO!B3:L3 -> 0
A5: ART nº: | B5: =IF(PO!$B$11="","",PO!$B$11) -> 
A7: ITEM | B7: SERVIÇO | C7: VALOR DO SERVIÇO | D7: 30 dias | F7: 60 dias | H7: 90 dias | J7: 120 dias | L7: 150 dias | N7: 180 dias | P7: 210 dias | R7: 240 dias | T7: 270 dias | V7: 300 dias | X7: 330 dias | Z7: 360 dias
D8: % | E8: Valor | F8: % | G8: Valor | H8: % | I8: Valor | J8: % | K8: Valor | L8: % | M8: Valor | N8: % | O8: Valor | P8: % | Q8: Valor | R8: % | S8: Valor | T8: % | U8: Valor | V8: % | W8: Valor | X8: % | Y8: Valor | Z8: % | AA8: Valor
B9: PRAÇA PROFESSOR EMÍLIO MABILDE RÍPOLE
A10: 1 | B10: DESPESAS LEGAIS, LICENÇAS, TAXAS, CONTRIBUIÇÕES
A11: 1.1 | B11: ART (ANOTAÇÃO DE RESPONSABILIDADE TÉCNICA) | C11: =PO!L16 -> 276.05 | D11: 1 | E11: =D11*$C11 -> 276.05 | G11: =F11*$C11 -> 0 | I11: =H11*$C11 -> 0 | K11: =J11*$C11 -> 0 | M11: =L11*$C11 -> 0 | O11: =N11*$C11 -> 0 | Q11: =P11*$C11 -> 0 | S11: =R11*$C11 -> 0 | U11: =T11*$C11 -> 0 | W11: =V11*$C11 -> 0 | Y11: =X11*$C11 -> 0 | AA11: =Z11*$C11 -> 0 | AC11: =+D11+F11+H11+J11+L11+N11+P11+R11+T11+V11+X11+Z11 -> 1 | AD11: 276.05 | AE11: =IF(C11=AD11,"ok!","incompleto") -> ok!
A12: 2 | B12: INSTALAÇÕES PROVISÓRIAS
A13: 2.1 | B13: TAPUME EM CHAPA DE COMPENSADO RESINADO (L=9,90m; C=15,40m e H=2,20M) | C13: =PO!L19 -> 9187.23 | D13: 1 | E13: 9187.23 | G13: =F13*$C13 -> 0 | I13: 0 | K13: =J13*$C13 -> 0 | M13: =L13*$C13 -> 0 | O13: =N13*$C13 -> 0 | Q13: =P13*$C13 -> 0 | S13: =R13*$C13 -> 0 | U13: =T13*$C13 -> 0 | W13: =V13*$C13 -> 0 | Y13: =X13*$C13 -> 0 | AA13: =Z13*$C13 -> 0 | AC13: =+D13+F13+H13+J13+L13+N13+P13+R13+T13+V13+X13+Z13 -> 1 | AD13: =+E13+G13+I13+K13+M13+O13+Q13+S13+U13+W13+Y13+AA13 -> 9187.23 | AE13: =IF(C13=AD13,"ok!","incompleto") -> ok!
A14: 2.2 | B14: LOCAÇÃO DE BANHEIRO QUÍMICO | C14: =PO!L20 -> 830.62 | D14: 1 | E14: 830.62 | G14: 0 | I14: 0 | K14: 0 | M14: 0 | O14: 0 | Q14: 0 | S14: 0 | U14: 0 | W14: 0 | Y14: 0 | AA14: 0 | AC14: 1 | AD14: 830.62 | AE14: ok!
A15: 2.3 | B15: FRETE P/ BANHEIRO QUÍMICO LOCADO (IDA E VOLTA) | C15: =PO!L21 -> 1085.48 | D15: 1 | E15: =D15*$C15 -> 1085.48 | G15: =F15*$C15 -> 0 | I15: =H15*$C15 -> 0 | K15: =J15*$C15 -> 0 | M15: =L15*$C15 -> 0 | O15: =N15*$C15 -> 0 | Q15: =P15*$C15 -> 0 | S15: =R15*$C15 -> 0 | U15: =T15*$C15 -> 0 | W15: =V15*$C15 -> 0 | Y15: =X15*$C15 -> 0 | AA15: =Z15*$C15 -> 0 | AC15: =+D15+F15+H15+J15+L15+N15+P15+R15+T15+V15+X15+Z15 -> 1 | AD15: =+E15+G15+I15+K15+M15+O15+Q15+S15+U15+W15+Y15+AA15 -> 1085.48 | AE15: =IF(C15=AD15,"ok!","incompleto") -> ok!
A16: 2.4 | B16: INSTALAÇÃO PROVISÓRIA DE ENERGIA, AÉREA, BIFÁSICA, COM CAIXA DE EMBUTIR C/ POSTE H=9,00M | C16: =PO!L22 -> 2979.99 | D16: 1 | E16: 2979.99 | G16: 0 | I16: 0 | K16: 0 | M16: 0 | O16: 0 | Q16: 0 | S16: 0 | U16: 0 | W16: 0 | Y16: 0 | AA16: 0 | AC16: 1 | AD16: 2979.99 | AE16: ok!
A17: 2.5 | B17: INSTALAÇÃO PROVISÓRIA DE ÁGUA | C17: =PO!L23 -> 897.15 | D17: 1 | E17: 897.15 | G17: 0 | I17: 0 | K17: 0 | M17: 0 | O17: 0 | Q17: 0 | S17: 0 | U17: 0 | W17: 0 | Y17: 0 | AA17: 0 | AC17: 1 | AD17: 897.15 | AE17: ok!
A18: 2.6 | B18: PLACA DE OBRA | C18: =PO!L24 -> 925.52 | D18: 1 | E18: =D18*$C18 -> 925.52 | G18: =F18*$C18 -> 0 | I18: =H18*$C18 -> 0 | K18: =J18*$C18 -> 0 | M18: =L18*$C18 -> 0 | O18: =N18*$C18 -> 0 | Q18: =P18*$C18 -> 0 | S18: =R18*$C18 -> 0 | U18: =T18*$C18 -> 0 | W18: =V18*$C18 -> 0 | Y18: =X18*$C18 -> 0 | AA18: =Z18*$C18 -> 0 | AC18: =+D18+F18+H18+J18+L18+N18+P18+R18+T18+V18+X18+Z18 -> 1 | AD18: =+E18+G18+I18+K18+M18+O18+Q18+S18+U18+W18+Y18+AA18 -> 925.52 | AE18: =IF(C18=AD18,"ok!","incompleto") -> ok!
A19: 2.7 | B19: LOCAÇÃO DE OBRA | C19: =PO!L25 -> 30.38 | D19: 1 | E19: 30.38 | G19: 0 | I19: 0 | K19: 0 | M19: 0 | O19: 0 | Q19: 0 | S19: 0 | U19: 0 | W19: 0 | Y19: 0 | AA19: 0 | AC19: 1 | AD19: 30.38 | AE19: ok!
A20: 2.8 | B20: NIVELAMENTO | C20: =PO!L26 -> 50.55 | D20: 1 | E20: =D20*$C20 -> 50.55 | G20: =F20*$C20 -> 0 | I20: =H20*$C20 -> 0 | K20: =J20*$C20 -> 0 | M20: =L20*$C20 -> 0 | O20: =N20*$C20 -> 0 | Q20: =P20*$C20 -> 0 | S20: =R20*$C20 -> 0 | U20: =T20*$C20 -> 0 | W20: =V20*$C20 -> 0 | Y20: =X20*$C20 -> 0 | AA20: =Z20*$C20 -> 0 | AC20: =+D20+F20+H20+J20+L20+N20+P20+R20+T20+V20+X20+Z20 -> 1 | AD20: =+E20+G20+I20+K20+M20+O20+Q20+S20+U20+W20+Y20+AA20 -> 50.55 | AE20: =IF(C20=AD20,"ok!","incompleto") -> ok!
A21: 3 | B21: ADMINISTRAÇÃO LOCAL
A22: 3.1 | B22: ADMINISTRAÇÃO LOCAL | C22: =PO!L29 -> 24761.29 | D22: 1 | E22: =D22*$C22 -> 24761.29 | G22: =F22*$C22 -> 0 | I22: =H22*$C22 -> 0 | K22: =J22*$C22 -> 0 | M22: =L22*$C22 -> 0 | O22: =N22*$C22 -> 0 | Q22: =P22*$C22 -> 0 | S22: =R22*$C22 -> 0 | U22: =T22*$C22 -> 0 | W22: =V22*$C22 -> 0 | Y22: =X22*$C22 -> 0 | AA22: =Z22*$C22 -> 0 | AC22: =+D22+F22+H22+J22+L22+N22+P22+R22+T22+V22+X22+Z22 -> 1 | AD22: =+E22+G22+I22+K22+M22+O22+Q22+S22+U22+W22+Y22+AA22 -> 24761.29 | AE22: =IF(C22=AD22,"ok!","incompleto") -> ok!
A23: 4 | B23: MOVIMENTO DE TERRA
A24: 4.1 | B24: MODELAGEM (MOVIMENTO DE TERRA ATÉ 15CM) | C24: =PO!L32 -> 497.07 | D24: 1 | E24: =D24*$C24 -> 497.07 | G24: =F24*$C24 -> 0 | I24: =H24*$C24 -> 0 | K24: =J24*$C24 -> 0 | M24: =L24*$C24 -> 0 | O24: =N24*$C24 -> 0 | Q24: =P24*$C24 -> 0 | S24: =R24*$C24 -> 0 | U24: =T24*$C24 -> 0 | W24: =V24*$C24 -> 0 | Y24: =X24*$C24 -> 0 | AA24: =Z24*$C24 -> 0 | AC24: =+D24+F24+H24+J24+L24+N24+P24+R24+T24+V24+X24+Z24 -> 1 | AD24: 497.07 | AE24: =IF(C24=AD24,"ok!","incompleto") -> ok!
A25: 4.2 | B25: ATERRO MANUAL C/MATERIAL IMPORTADO C/COMPACTAÇÃO MANUAL | C25: =PO!L33 -> 1180.2 | D25: 1 | E25: 1180.2 | G25: 0 | I25: 0 | K25: 0 | M25: 0 | O25: 0 | Q25: 0 | S25: 0 | U25: 0 | W25: 0 | Y25: 0 | AA25: 0 | AC25: 1 | AD25: 1180.2 | AE25: ok!
A26: 5 | B26: PAVIMENTAÇÃO
A27: 5.1 | B27: EXECUÇÃO DE PASSEIO (CALÇADA) OU PISO DE CONCRETO COM CONCRETO MOLDADO IN LOCO, FEITO EM OBRA, ACABAMENTO CONVENCIONAL, ESPESSURA 8 CM, ARMADO | C27: =PO!L36 -> 315.6 | D27: 1 | E27: 315.6 | G27: 0 | I27: 0 | K27: 0 | M27: 0 | O27: 0 | Q27: 0 | S27: 0 | U27: 0 | W27: 0 | Y27: 0 | AA27: 0 | AC27: =+D27+F27+H27+J27+L27+N27+P27+R27+T27+V27+X27+Z27 -> 1 | AD27: =+E27+G27+I27+K27+M27+O27+Q27+S27+U27+W27+Y27+AA27 -> 315.6 | AE27: =IF(C27=AD27,"ok!","incompleto") -> ok!
A28: 5.2 | B28: PISO CONCRETO ARMADO E= 10 cm - ACADEMIA AO AR LIVRE | C28: =PO!L37 -> 13723.96 | D28: 1 | E28: 13723.96 | G28: 0 | I28: 0 | K28: 0 | M28: 0 | O28: 0 | Q28: 0 | S28: 0 | U28: 0 | W28: 0 | Y28: 0 | AA28: 0 | AC28: 1 | AD28: 13723.96 | AE28: ok!
A29: 5.3 | B29: PISO PODOTÁTIL 25x25 cm - E=2,5CM | C29: =PO!L38 -> 101.37 | D29: 1 | E29: 101.37 | G29: 0 | I29: 0 | K29: 0 | M29: 0 | O29: 0 | Q29: 0 | S29: 0 | U29: 0 | W29: 0 | Y29: 0 | AA29: 0 | AC29: 1 | AD29: 101.37 | AE29: ok!
A30: 6 | B30: MOBILIÁRIO URBANO
A31: 6.1 | B31: BANCO B (C/ ENCOSTO) - L=2,00 m - PADRÃO SMAM | C31: =PO!L41 -> 3364.32 | D31: 1 | E31: =D31*$C31 -> 3364.32 | G31: =F31*$C31 -> 0 | I31: =H31*$C31 -> 0 | K31: =J31*$C31 -> 0 | M31: =L31*$C31 -> 0 | O31: =N31*$C31 -> 0 | Q31: =P31*$C31 -> 0 | S31: =R31*$C31 -> 0 | U31: =T31*$C31 -> 0 | W31: =V31*$C31 -> 0 | Y31: =X31*$C31 -> 0 | AA31: =Z31*$C31 -> 0 | AC31: =+D31+F31+H31+J31+L31+N31+P31+R31+T31+V31+X31+Z31 -> 1 | AD31: =+E31+G31+I31+K31+M31+O31+Q31+S31+U31+W31+Y31+AA31 -> 3364.32 | AE31: =IF(C31=AD31,"ok!","incompleto") -> ok!
A32: 6.2 | B32: LIXEIRA METÁLICA - V=30 LITROS INSTALADA | C32: =PO!L42 -> 1251.74 | D32: 1 | E32: =D32*$C32 -> 1251.74 | G32: =F32*$C32 -> 0 | I32: =H32*$C32 -> 0 | K32: =J32*$C32 -> 0 | M32: =L32*$C32 -> 0 | O32: =N32*$C32 -> 0 | Q32: =P32*$C32 -> 0 | S32: =R32*$C32 -> 0 | U32: =T32*$C32 -> 0 | W32: =V32*$C32 -> 0 | Y32: =X32*$C32 -> 0 | AA32: =Z32*$C32 -> 0 | AC32: =+D32+F32+H32+J32+L32+N32+P32+R32+T32+V32+X32+Z32 -> 1 | AD32: 1251.74 | AE32: =IF(C32=AD32,"ok!","incompleto") -> ok!
A33: 7 | B33: ACADEMIA AO AR LIVRE
A34: 7.1 | B34: PLACA ORIENTATIVA - GALVANIZADA | C34: =PO!L45 -> 8910.19 | D34: 1 | E34: =D34*$C34 -> 8910.19 | G34: =F34*$C34 -> 0 | I34: =H34*$C34 -> 0 | K34: =J34*$C34 -> 0 | M34: =L34*$C34 -> 0 | O34: =N34*$C34 -> 0 | Q34: =P34*$C34 -> 0 | S34: =R34*$C34 -> 0 | U34: =T34*$C34 -> 0 | W34: =V34*$C34 -> 0 | Y34: =X34*$C34 -> 0 | AA34: =Z34*$C34 -> 0 | AC34: =+D34+F34+H34+J34+L34+N34+P34+R34+T34+V34+X34+Z34 -> 1 | AD34: 8910.19 | AE34: =IF(C34=AD34,"ok!","incompleto") -> ok!
A35: 7.2 | B35: ESPALDAR PADRÃO SMAMS | C35: =PO!L46 -> 2735.72 | D35: 1 | E35: 2735.72 | G35: 0 | I35: 0 | K35: 0 | M35: 0 | O35: 0 | Q35: 0 | S35: 0 | U35: 0 | W35: 0 | Y35: 0 | AA35: 0 | AC35: 1 | AD35: 2735.72 | AE35: ok!
A36: 7.3 | B36: ABDOMINAL PADRÃO SMAMS | C36: =PO!L47 -> 1777.22 | D36: 1 | E36: 1777.22 | G36: 0 | I36: 0 | K36: 0 | M36: 0 | O36: 0 | Q36: 0 | S36: 0 | U36: 0 | W36: 0 | Y36: 0 | AA36: 0 | AC36: 1 | AD36: 1777.22 | AE36: ok!
A37: 7.4 | B37: SIMULADOR DE CAMINHADA TRIPLO CONJUGADO - GALVANIZADO | C37: =PO!L48 -> 15065.84 | D37: 1 | E37: =D37*$C37 -> 15065.84 | G37: =F37*$C37 -> 0 | I37: =H37*$C37 -> 0 | K37: =J37*$C37 -> 0 | M37: =L37*$C37 -> 0 | O37: =N37*$C37 -> 0 | Q37: =P37*$C37 -> 0 | S37: =R37*$C37 -> 0 | U37: =T37*$C37 -> 0 | W37: =V37*$C37 -> 0 | Y37: =X37*$C37 -> 0 | AA37: =Z37*$C37 -> 0 | AC37: =+D37+F37+H37+J37+L37+N37+P37+R37+T37+V37+X37+Z37 -> 1 | AD37: =+E37+G37+I37+K37+M37+O37+Q37+S37+U37+W37+Y37+AA37 -> 15065.84 | AE37: =IF(C37=AD37,"ok!","incompleto") -> ok!
A38: 7.5 | B38: ESQUI TRIPLO CONJUGADO - GALVANIZADO | C38: =PO!L49 -> 18380.59 | D38: 1 | E38: 18380.59 | G38: 0 | I38: 0 | K38: 0 | M38: 0 | O38: 0 | Q38: 0 | S38: 0 | U38: 0 | W38: 0 | Y38: 0 | AA38: 0 | AC38: 1 | AD38: 18380.59 | AE38: ok!
A39: 7.6 | B39: ADUÇÃO E ABDUÇÃO DE PERNAS DUPLO - GALVANIZADO | C39: =PO!L50 -> 10491.68 | D39: 1 | E39: =D39*$C39 -> 10491.68 | G39: =F39*$C39 -> 0 | I39: =H39*$C39 -> 0 | K39: =J39*$C39 -> 0 | M39: =L39*$C39 -> 0 | O39: =N39*$C39 -> 0 | Q39: =P39*$C39 -> 0 | S39: =R39*$C39 -> 0 | U39: =T39*$C39 -> 0 | W39: =V39*$C39 -> 0 | Y39: =X39*$C39 -> 0 | AA39: =Z39*$C39 -> 0 | AC39: =+D39+F39+H39+J39+L39+N39+P39+R39+T39+V39+X39+Z39 -> 1 | AD39: =+E39+G39+I39+K39+M39+O39+Q39+S39+U39+W39+Y39+AA39 -> 10491.68 | AE39: =IF(C39=AD39,"ok!","incompleto") -> ok!
A40: 7.7 | B40: PRESSÃO DE PERNAS TRIPLO CONJUGADO - GALVANIZADO | C40: =PO!L51 -> 10857.79 | D40: 1 | E40: 10857.79 | G40: 0 | I40: 0 | K40: 0 | M40: 0 | O40: 0 | Q40: 0 | S40: 0 | U40: 0 | W40: 0 | Y40: 0 | AA40: 0 | AC40: 1 | AD40: 10857.79 | AE40: ok!
A41: 7.8 | B41: SIMULADOR DE REMO - GALVANIZADO | C41: =PO!L52 -> 6442.09 | D41: 1 | E41: 6442.09 | G41: 0 | I41: 0 | K41: 0 | M41: 0 | O41: 0 | Q41: 0 | S41: 0 | U41: 0 | W41: 0 | Y41: 0 | AA41: 0 | AC41: 1 | AD41: 6442.09 | AE41: ok!
A42: 7.9 | B42: REMADA ESPECIAL PPNE - GALVANIZADA | C42: =PO!L53 -> 6776.86 | D42: 1 | E42: 6776.86 | G42: 0 | I42: 0 | K42: 0 | M42: 0 | O42: 0 | Q42: 0 | S42: 0 | U42: 0 | W42: 0 | Y42: 0 | AA42: 0 | AC42: 1 | AD42: 6776.86 | AE42: ok!
A43: 7.10 | B43: VOADOR PEITORAL E VOADOR DORSAL - GALVANIZADO | C43: =PO!L54 -> 7137.53 | D43: 1 | E43: 7137.53 | G43: 0 | I43: 0 | K43: 0 | M43: 0 | O43: 0 | Q43: 0 | S43: 0 | U43: 0 | W43: 0 | Y43: 0 | AA43: 0 | AC43: 1 | AD43: 7137.53 | AE43: ok!
A44: 8 | B44: PLANTIO
A45: 8.1 | B45: GRAMA CATARINA | C45: =PO!L57 -> 1685.97 | D45: 1 | E45: =D45*$C45 -> 1685.97 | G45: =F45*$C45 -> 0 | I45: =H45*$C45 -> 0 | K45: =J45*$C45 -> 0 | M45: =L45*$C45 -> 0 | O45: =N45*$C45 -> 0 | Q45: =P45*$C45 -> 0 | S45: =R45*$C45 -> 0 | U45: =T45*$C45 -> 0 | W45: =V45*$C45 -> 0 | Y45: =X45*$C45 -> 0 | AA45: =Z45*$C45 -> 0 | AC45: =+D45+F45+H45+J45+L45+N45+P45+R45+T45+V45+X45+Z45 -> 1 | AD45: 1685.97 | AE45: =IF(C45=AD45,"ok!","incompleto") -> ok!
B46: PRAÇA IRENE ELISALDE STRICHER
A47: 9 | B47: SERVIÇOS PRELIMINARES
A48: 9.1 | B48: DEMOLIÇÃO CHURRASQUEIRA C/REMOÇÃO DE ENTULHOS | C48: =PO!L64 -> 173.58 | E48: =D48*$C48 -> 0 | F48: 1 | G48: =F48*$C48 -> 173.58 | I48: =H48*$C48 -> 0 | K48: =J48*$C48 -> 0 | M48: =L48*$C48 -> 0 | O48: =N48*$C48 -> 0 | Q48: =P48*$C48 -> 0 | S48: =R48*$C48 -> 0 | U48: =T48*$C48 -> 0 | W48: =V48*$C48 -> 0 | Y48: =X48*$C48 -> 0 | AA48: =Z48*$C48 -> 0 | AC48: =+D48+F48+H48+J48+L48+N48+P48+R48+T48+V48+X48+Z48 -> 1 | AD48: =+E48+G48+I48+K48+M48+O48+Q48+S48+U48+W48+Y48+AA48 -> 173.58 | AE48: =IF(C48=AD48,"ok!","incompleto") -> ok!
A49: 9.2 | B49: DEMOLIÇÃO MESA E BANCOS DE CONCRETO C/REMOÇÃO DE ENTULHOS | C49: =PO!L65 -> 205.18 | E49: =D49*$C49 -> 0 | F49: 1 | G49: =F49*$C49 -> 205.18 | I49: =H49*$C49 -> 0 | K49: =J49*$C49 -> 0 | M49: =L49*$C49 -> 0 | O49: =N49*$C49 -> 0 | Q49: =P49*$C49 -> 0 | S49: =R49*$C49 -> 0 | U49: =T49*$C49 -> 0 | W49: =V49*$C49 -> 0 | Y49: =X49*$C49 -> 0 | AA49: =Z49*$C49 -> 0 | AC49: =+D49+F49+H49+J49+L49+N49+P49+R49+T49+V49+X49+Z49 -> 1 | AD49: =+E49+G49+I49+K49+M49+O49+Q49+S49+U49+W49+Y49+AA49 -> 205.18 | AE49: =IF(C49=AD49,"ok!","incompleto") -> ok!
A50: 10 | B50: INSTALAÇÕES PROVISÓRIAS
A51: 10.1 | B51: TAPUME EM CHAPA DE COMPENSADO RESINADO (L=7,70m; C=11,00m e H=2,20M) | C51: =PO!L68 -> 6790.56 | E51: =D51*$C51 -> 0 | F51: 1 | G51: =F51*$C51 -> 6790.56 | I51: =H51*$C51 -> 0 | K51: =J51*$C51 -> 0 | M51: =L51*$C51 -> 0 | O51: =N51*$C51 -> 0 | Q51: =P51*$C51 -> 0 | S51: =R51*$C51 -> 0 | U51: =T51*$C51 -> 0 | W51: =V51*$C51 -> 0 | Y51: =X51*$C51 -> 0 | AA51: =Z51*$C51 -> 0 | AC51: =+D51+F51+H51+J51+L51+N51+P51+R51+T51+V51+X51+Z51 -> 1 | AD51: =+E51+G51+I51+K51+M51+O51+Q51+S51+U51+W51+Y51+AA51 -> 6790.56 | AE51: =IF(C51=AD51,"ok!","incompleto") -> ok!
A52: 10.2 | B52: LOCAÇÃO DE BANHEIRO QUÍMICO | C52: =PO!L69 -> 830.62 | E52: 0 | F52: 1 | G52: 830.62 | I52: 0 | K52: 0 | M52: 0 | O52: 0 | Q52: 0 | S52: 0 | U52: 0 | W52: 0 | Y52: 0 | AA52: 0 | AC52: 1 | AD52: 830.62 | AE52: ok!
A53: 10.3 | B53: FRETE P/ BANHEIRO QUÍMICO LOCADO (IDA E VOLTA) | C53: =PO!L70 -> 1085.48 | E53: 0 | F53: 1 | G53: 1085.48 | I53: 0 | K53: 0 | M53: 0 | O53: 0 | Q53: 0 | S53: 0 | U53: 0 | W53: 0 | Y53: 0 | AA53: 0 | AC53: 1 | AD53: 1085.48 | AE53: ok!
A54: 10.4 | B54: INSTALAÇÃO PROVISÓRIA DE ENERGIA, AÉREA, BIFÁSICA, COM CAIXA DE EMBUTIR C/ POSTE H=9,00M | C54: =PO!L71 -> 2979.99 | E54: 0 | F54: 1 | G54: 2979.99 | I54: 0 | K54: 0 | M54: 0 | O54: 0 | Q54: 0 | S54: 0 | U54: 0 | W54: 0 | Y54: 0 | AA54: 0 | AC54: 1 | AD54: 2979.99 | AE54: ok!
A55: 10.5 | B55: INSTALAÇÃO PROVISÓRIA DE ÁGUA | C55: =PO!L72 -> 897.15 | E55: 0 | F55: 1 | G55: 897.15 | I55: 0 | K55: 0 | M55: 0 | O55: 0 | Q55: 0 | S55: 0 | U55: 0 | W55: 0 | Y55: 0 | AA55: 0 | AC55: 1 | AD55: 897.15 | AE55: ok!
A56: 10.6 | B56: PLACA DE OBRA | C56: =PO!L73 -> 925.52 | E56: 0 | F56: 1 | G56: 925.52 | I56: 0 | K56: 0 | M56: 0 | O56: 0 | Q56: 0 | S56: 0 | U56: 0 | W56: 0 | Y56: 0 | AA56: 0 | AC56: 1 | AD56: 925.52 | AE56: ok!
A57: 10.7 | B57: SINALIZAÇÃO COM TELA PLÁSTICA LARANJA FIXADA EM CONE PLÁSTICO | C57: =PO!L74 -> 1985.34 | E57: 0 | F57: 1 | G57: 1985.34 | I57: 0 | K57: 0 | M57: 0 | O57: 0 | Q57: 0 | S57: 0 | U57: 0 | W57: 0 | Y57: 0 | AA57: 0 | AC57: 1 | AD57: 1985.34 | AE57: ok!
A58: 10.8 | B58: LOCAÇÃO DE OBRA | C58: =PO!L75 -> 32.24 | E58: 0 | F58: 1 | G58: 32.24 | I58: 0 | K58: 0 | M58: 0 | O58: 0 | Q58: 0 | S58: 0 | U58: 0 | W58: 0 | Y58: 0 | AA58: 0 | AC58: 1 | AD58: 32.24 | AE58: ok!
A59: 10.9 | B59: NIVELAMENTO | C59: =PO!L76 -> 46.2 | E59: 0 | F59: 1 | G59: 46.2 | I59: 0 | K59: 0 | M59: 0 | O59: 0 | Q59: 0 | S59: 0 | U59: 0 | W59: 0 | Y59: 0 | AA59: 0 | AC59: 1 | AD59: 46.2 | AE59: ok!
A60: 11 | B60: ADMINISTRAÇÃO LOCAL
A61: 11.1 | B61: ADMINISTRAÇÃO LOCAL | C61: =PO!L79 -> 24761.29 | E61: =D61*$C61 -> 0 | F61: 1 | G61: =F61*$C61 -> 24761.29 | I61: =H61*$C61 -> 0 | K61: =J61*$C61 -> 0 | M61: =L61*$C61 -> 0 | O61: =N61*$C61 -> 0 | Q61: =P61*$C61 -> 0 | S61: =R61*$C61 -> 0 | U61: =T61*$C61 -> 0 | W61: =V61*$C61 -> 0 | Y61: =X61*$C61 -> 0 | AA61: =Z61*$C61 -> 0 | AC61: =+D61+F61+H61+J61+L61+N61+P61+R61+T61+V61+X61+Z61 -> 1 | AD61: =+E61+G61+I61+K61+M61+O61+Q61+S61+U61+W61+Y61+AA61 -> 24761.29 | AE61: =IF(C61=AD61,"ok!","incompleto") -> ok!
A62: 12 | B62: MOVIMENTO DE TERRA
A63: 12.1 | B63: MODELAGEM (MOVIMENTO DE TERRA ATÉ 15CM) | C63: =PO!L82 -> 454.3 | E63: =D63*$C63 -> 0 | F63: 1 | G63: =F63*$C63 -> 454.3 | I63: =H63*$C63 -> 0 | K63: =J63*$C63 -> 0 | M63: =L63*$C63 -> 0 | O63: =N63*$C63 -> 0 | Q63: =P63*$C63 -> 0 | S63: =R63*$C63 -> 0 | U63: =T63*$C63 -> 0 | W63: =V63*$C63 -> 0 | Y63: =X63*$C63 -> 0 | AA63: =Z63*$C63 -> 0 | AC63: =+D63+F63+H63+J63+L63+N63+P63+R63+T63+V63+X63+Z63 -> 1 | AD63: =+E63+G63+I63+K63+M63+O63+Q63+S63+U63+W63+Y63+AA63 -> 454.3 | AE63: =IF(C63=AD63,"ok!","incompleto") -> ok!
A64: 12.2 | B64: ATERRO MANUAL C/MATERIAL IMPORTADO C/COMPACTAÇÃO MANUAL | C64: =PO!L83 -> 245.87 | E64: 0 | F64: 1 | G64: 245.87 | I64: 0 | K64: 0 | M64: 0 | O64: 0 | Q64: 0 | S64: 0 | U64: 0 | W64: 0 | Y64: 0 | AA64: 0 | AC64: 1 | AD64: 245.87 | AE64: ok!
A65: 13 | B65: PAVIMENTAÇÃO
A66: 13.1 | B66: EXECUÇÃO DE PASSEIO (CALÇADA) OU PISO DE CONCRETO COM CONCRETO MOLDADO IN LOCO, FEITO EM OBRA, ACABAMENTO CONVENCIONAL, ESPESSURA 8 CM, ARMADO | C66: =PO!L86 -> 140.27 | E66: =D66*$C66 -> 0 | F66: 1 | G66: =F66*$C66 -> 140.27 | I66: =H66*$C66 -> 0 | K66: =J66*$C66 -> 0 | M66: =L66*$C66 -> 0 | O66: =N66*$C66 -> 0 | Q66: =P66*$C66 -> 0 | S66: =R66*$C66 -> 0 | U66: =T66*$C66 -> 0 | W66: =V66*$C66 -> 0 | Y66: =X66*$C66 -> 0 | AA66: =Z66*$C66 -> 0 | AC66: =+D66+F66+H66+J66+L66+N66+P66+R66+T66+V66+X66+Z66 -> 1 | AD66: =+E66+G66+I66+K66+M66+O66+Q66+S66+U66+W66+Y66+AA66 -> 140.27 | AE66: =IF(C66=AD66,"ok!","incompleto") -> ok!
A67: 13.2 | B67: PISO CONCRETO ARMADO E= 10 cm - ACADEMIA AO AR LIVRE | C67: =PO!L87 -> 11831 | E67: 0 | F67: 1 | G67: 11831 | I67: 0 | K67: 0 | M67: 0 | O67: 0 | Q67: 0 | S67: 0 | U67: 0 | W67: 0 | Y67: 0 | AA67: 0 | AC67: 1 | AD67: 11831 | AE67: ok!
A68: 13.3 | B68: PISO PODOTÁTIL 25x25 cm - E=2,5CM | C68: =PO!L88 -> 135.16 | E68: 0 | F68: 1 | G68: 135.16 | I68: 0 | K68: 0 | M68: 0 | O68: 0 | Q68: 0 | S68: 0 | U68: 0 | W68: 0 | Y68: 0 | AA68: 0 | AC68: 1 | AD68: 135.16 | AE68: ok!
A69: 14 | B69: MOBILIÁRIO URBANO
A70: 14.1 | B70: BANCO B (C/ ENCOSTO) - L=2,00 m - PADRÃO SMAM | C70: =PO!L91 -> 3364.32 | E70: =D70*$C70 -> 0 | F70: 1 | G70: =F70*$C70 -> 3364.32 | I70: =H70*$C70 -> 0 | K70: =J70*$C70 -> 0 | M70: =L70*$C70 -> 0 | O70: =N70*$C70 -> 0 | Q70: =P70*$C70 -> 0 | S70: =R70*$C70 -> 0 | U70: =T70*$C70 -> 0 | W70: =V70*$C70 -> 0 | Y70: =X70*$C70 -> 0 | AA70: =Z70*$C70 -> 0 | AC70: =+D70+F70+H70+J70+L70+N70+P70+R70+T70+V70+X70+Z70 -> 1 | AD70: =+E70+G70+I70+K70+M70+O70+Q70+S70+U70+W70+Y70+AA70 -> 3364.32 | AE70: =IF(C70=AD70,"ok!","incompleto") -> ok!
A71: 14.2 | B71: LIXEIRA METÁLICA - V=30 LITROS INSTALADA | C71: =PO!L92 -> 1251.74 | E71: =D71*$C71 -> 0 | F71: 1 | G71: =F71*$C71 -> 1251.74 | I71: =H71*$C71 -> 0 | K71: =J71*$C71 -> 0 | M71: =L71*$C71 -> 0 | O71: =N71*$C71 -> 0 | Q71: =P71*$C71 -> 0 | S71: =R71*$C71 -> 0 | U71: =T71*$C71 -> 0 | W71: =V71*$C71 -> 0 | Y71: =X71*$C71 -> 0 | AA71: =Z71*$C71 -> 0 | AC71: 1 | AD71: 1251.74 | AE71: =IF(C71=AD71,"ok!","incompleto") -> ok!
A72: 15 | B72: ACADEMIA AO AR LIVRE
A73: 15.1 | B73: PLACA ORIENTATIVA - GALVANIZADA | C73: =PO!L95 -> 8910.19 | E73: =D73*$C73 -> 0 | F73: 1 | G73: =F73*$C73 -> 8910.19 | I73: =H73*$C73 -> 0 | K73: =J73*$C73 -> 0 | M73: =L73*$C73 -> 0 | O73: =N73*$C73 -> 0 | Q73: =P73*$C73 -> 0 | S73: =R73*$C73 -> 0 | U73: =T73*$C73 -> 0 | W73: =V73*$C73 -> 0 | Y73: =X73*$C73 -> 0 | AA73: =Z73*$C73 -> 0 | AC73: =+D73+F73+H73+J73+L73+N73+P73+R73+T73+V73+X73+Z73 -> 1 | AD73: =+E73+G73+I73+K73+M73+O73+Q73+S73+U73+W73+Y73+AA73 -> 8910.19 | AE73: =IF(C73=AD73,"ok!","incompleto") -> ok!
A74: 15.2 | B74: SIMULADOR DE CAMINHADA TRIPLO CONJUGADO - GALVANIZADO | C74: =PO!L96 -> 15065.84 | E74: 0 | F74: 1 | G74: 15065.84 | I74: 0 | K74: 0 | M74: 0 | O74: 0 | Q74: 0 | S74: 0 | U74: 0 | W74: 0 | Y74: 0 | AA74: 0 | AC74: 1 | AD74: 15065.84 | AE74: ok!
A75: 15.3 | B75: ESQUI TRIPLO CONJUGADO - GALVANIZADO | C75: =PO!L97 -> 18380.59 | E75: 0 | F75: 1 | G75: 18380.59 | I75: 0 | K75: 0 | M75: 0 | O75: 0 | Q75: 0 | S75: 0 | U75: 0 | W75: 0 | Y75: 0 | AA75: 0 | AC75: 1 | AD75: 18380.59 | AE75: ok!
A76: 15.4 | B76: ADUÇÃO E ABDUÇÃO DE PERNAS DUPLO - GALVANIZADO | C76: =PO!L98 -> 10491.68 | E76: 0 | F76: 1 | G76: 10491.68 | I76: 0 | K76: 0 | M76: 0 | O76: 0 | Q76: 0 | S76: 0 | U76: 0 | W76: 0 | Y76: 0 | AA76: 0 | AC76: 1 | AD76: 10491.68 | AE76: ok!
A77: 15.5 | B77: MULTIEXERCITADOR CONJUGADO 6 FUNÇÕES - GALVANIZADO | C77: =PO!L99 -> 18444.18 | E77: 0 | F77: 1 | G77: 18444.18 | I77: 0 | K77: 0 | M77: 0 | O77: 0 | Q77: 0 | S77: 0 | U77: 0 | W77: 0 | Y77: 0 | AA77: 0 | AC77: 1 | AD77: 18444.18 | AE77: ok!
A78: 15.6 | B78: SIMULADOR DE REMO - GALVANIZADO | C78: =PO!L100 -> 6442.09 | E78: 0 | F78: 1 | G78: 6442.09 | I78: 0 | K78: 0 | M78: 0 | O78: 0 | Q78: 0 | S78: 0 | U78: 0 | W78: 0 | Y78: 0 | AA78: 0 | AC78: 1 | AD78: 6442.09 | AE78: ok!
A79: 15.7 | B79: REMADA ESPECIAL PPNE - GALVANIZADA | C79: =PO!L101 -> 6776.86 | E79: 0 | F79: 1 | G79: 6776.86 | I79: 0 | K79: 0 | M79: 0 | O79: 0 | Q79: 0 | S79: 0 | U79: 0 | W79: 0 | Y79: 0 | AA79: 0 | AC79: 1 | AD79: 6776.86 | AE79: ok!
A80: 15.8 | B80: VOADOR PEITORAL E VOADOR DORSAL - GALVANIZADO | C80: =PO!L102 -> 7137.53 | E80: 0 | F80: 1 | G80: 7137.53 | I80: 0 | K80: 0 | M80: 0 | O80: 0 | Q80: 0 | S80: 0 | U80: 0 | W80: 0 | Y80: 0 | AA80: 0 | AC80: 1 | AD80: 7137.53 | AE80: ok!
A81: 16 | B81: PLANTIO
A82: 16.1 | B82: GRAMA CATARINA | C82: =PO!L105 -> 1771.12 | E82: =D82*$C82 -> 0 | F82: 1 | G82: =F82*$C82 -> 1771.12 | I82: =H82*$C82 -> 0 | K82: =J82*$C82 -> 0 | M82: =L82*$C82 -> 0 | O82: =N82*$C82 -> 0 | Q82: =P82*$C82 -> 0 | S82: =R82*$C82 -> 0 | U82: =T82*$C82 -> 0 | W82: =V82*$C82 -> 0 | Y82: =X82*$C82 -> 0 | AA82: =Z82*$C82 -> 0 | AC82: =+D82+F82+H82+J82+L82+N82+P82+R82+T82+V82+X82+Z82 -> 1 | AD82: =+E82+G82+I82+K82+M82+O82+Q82+S82+U82+W82+Y82+AA82 -> 1771.12 | AE82: =IF(C82=AD82,"ok!","incompleto") -> ok!
B83: PRAÇA JOSÉ MARIANO DE FREITAS BECK
A84: 17 | B84: SERVIÇOS PRELIMINARES
A85: 17.1 | B85: REMOÇÃO DE PASSEIOS - SEM REMOÇÃO DE ENTULHOS | C85: =PO!L112 -> 69.3 | E85: =D85*$C85 -> 0 | G85: =F85*$C85 -> 0 | H85: 1 | I85: =H85*$C85 -> 69.3 | K85: =J85*$C85 -> 0 | M85: =L85*$C85 -> 0 | O85: =N85*$C85 -> 0 | Q85: =P85*$C85 -> 0 | S85: =R85*$C85 -> 0 | U85: =T85*$C85 -> 0 | W85: =V85*$C85 -> 0 | Y85: =X85*$C85 -> 0 | AA85: =Z85*$C85 -> 0 | AC85: =+D85+F85+H85+J85+L85+N85+P85+R85+T85+V85+X85+Z85 -> 1 | AD85: =+E85+G85+I85+K85+M85+O85+Q85+S85+U85+W85+Y85+AA85 -> 69.3 | AE85: =IF(C85=AD85,"ok!","incompleto") -> ok!
A86: 17.2 | B86: REMOÇÃO DE ENTULHOS COM CAÇAMBA 4M³ | C86: =PO!L113 -> 103.5 | E86: 0 | G86: =F86*$C86 -> 0 | H86: 1 | I86: 103.5 | K86: =J86*$C86 -> 0 | M86: =L86*$C86 -> 0 | O86: =N86*$C86 -> 0 | Q86: =P86*$C86 -> 0 | S86: =R86*$C86 -> 0 | U86: =T86*$C86 -> 0 | W86: =V86*$C86 -> 0 | Y86: =X86*$C86 -> 0 | AA86: =Z86*$C86 -> 0 | AC86: 1 | AD86: 103.5 | AE86: =IF(C86=AD86,"ok!","incompleto") -> ok!
A87: 18 | B87: INSTALAÇÕES PROVISÓRIAS
A88: 18.1 | B88: TAPUME EM CHAPA DE COMPENSADO RESINADO (L=7,70m; C=11,00m e H=2,20M) | C88: =PO!L116 -> 6790.56 | E88: =D88*$C88 -> 0 | G88: =F88*$C88 -> 0 | H88: 1 | I88: =H88*$C88 -> 6790.56 | K88: =J88*$C88 -> 0 | M88: =L88*$C88 -> 0 | O88: =N88*$C88 -> 0 | Q88: =P88*$C88 -> 0 | S88: =R88*$C88 -> 0 | U88: =T88*$C88 -> 0 | W88: =V88*$C88 -> 0 | Y88: =X88*$C88 -> 0 | AA88: =Z88*$C88 -> 0 | AC88: =+D88+F88+H88+J88+L88+N88+P88+R88+T88+V88+X88+Z88 -> 1 | AD88: =+E88+G88+I88+K88+M88+O88+Q88+S88+U88+W88+Y88+AA88 -> 6790.56 | AE88: =IF(C88=AD88,"ok!","incompleto") -> ok!
A89: 18.2 | B89: LOCAÇÃO DE BANHEIRO QUÍMICO | C89: =PO!L117 -> 830.62 | E89: =D89*$C89 -> 0 | G89: =F89*$C89 -> 0 | H89: 1 | I89: =H89*$C89 -> 830.62 | K89: 0 | M89: 0 | O89: 0 | Q89: 0 | S89: 0 | U89: 0 | W89: 0 | Y89: 0 | AA89: 0 | AC89: 1 | AD89: 830.62 | AE89: ok!
A90: 18.3 | B90: FRETE P/ BANHEIRO QUÍMICO LOCADO (IDA E VOLTA) | C90: =PO!L118 -> 1085.48 | E90: 0 | G90: 0 | H90: 1 | I90: 1085.48 | K90: 0 | M90: 0 | O90: 0 | Q90: 0 | S90: 0 | U90: 0 | W90: 0 | Y90: 0 | AA90: 0 | AC90: 1 | AD90: 1085.48 | AE90: ok!
A91: 18.4 | B91: INSTALAÇÃO PROVISÓRIA DE ENERGIA, AÉREA, BIFÁSICA, COM CAIXA DE EMBUTIR C/ POSTE H=9,00M | C91: =PO!L119 -> 2979.99 | E91: 0 | G91: 0 | H91: 1 | I91: 2979.99 | K91: 0 | M91: 0 | O91: 0 | Q91: 0 | S91: 0 | U91: 0 | W91: 0 | Y91: 0 | AA91: 0 | AC91: 1 | AD91: 2979.99 | AE91: ok!
A92: 18.5 | B92: INSTALAÇÃO PROVISÓRIA DE ÁGUA | C92: =PO!L120 -> 897.15 | E92: 0 | G92: 0 | H92: 1 | I92: 897.15 | K92: 0 | M92: 0 | O92: 0 | Q92: 0 | S92: 0 | U92: 0 | W92: 0 | Y92: 0 | AA92: 0 | AC92: 1 | AD92: 897.15 | AE92: ok!
A93: 18.6 | B93: PLACA DE OBRA | C93: =PO!L121 -> 925.52 | E93: 0 | G93: 0 | H93: 1 | I93: 925.52 | K93: 0 | M93: 0 | O93: 0 | Q93: 0 | S93: 0 | U93: 0 | W93: 0 | Y93: 0 | AA93: 0 | AC93: 1 | AD93: 925.52 | AE93: ok!
A94: 18.7 | B94: SINALIZAÇÃO COM TELA PLÁSTICA LARANJA FIXADA EM CONE PLÁSTICO | C94: =PO!L122 -> 1882.65 | E94: 0 | G94: 0 | H94: 1 | I94: 1882.65 | K94: 0 | M94: 0 | O94: 0 | Q94: 0 | S94: 0 | U94: 0 | W94: 0 | Y94: 0 | AA94: 0 | AC94: 1 | AD94: 1882.65 | AE94: ok!
A95: 18.8 | B95: LOCAÇÃO DE OBRA | C95: =PO!L123 -> 31.62 | E95: 0 | G95: 0 | H95: 1 | I95: 31.62 | K95: 0 | M95: 0 | O95: 0 | Q95: 0 | S95: 0 | U95: 0 | W95: 0 | Y95: 0 | AA95: 0 | AC95: 1 | AD95: 31.62 | AE95: ok!
A96: 18.9 | B96: NIVELAMENTO | C96: =PO!L124 -> 55.01 | E96: 0 | G96: 0 | H96: 1 | I96: 55.01 | K96: 0 | M96: 0 | O96: 0 | Q96: 0 | S96: 0 | U96: 0 | W96: 0 | Y96: 0 | AA96: 0 | AC96: 1 | AD96: 55.01 | AE96: ok!
A97: 19 | B97: ADMINISTRAÇÃO LOCAL
A98: 19.1 | B98: ADMINISTRAÇÃO LOCAL | C98: =PO!L127 -> 24761.29 | E98: =D98*$C98 -> 0 | G98: =F98*$C98 -> 0 | H98: 1 | I98: =H98*$C98 -> 24761.29 | K98: =J98*$C98 -> 0 | M98: =L98*$C98 -> 0 | O98: =N98*$C98 -> 0 | Q98: =P98*$C98 -> 0 | S98: =R98*$C98 -> 0 | U98: =T98*$C98 -> 0 | W98: =V98*$C98 -> 0 | Y98: =X98*$C98 -> 0 | AA98: =Z98*$C98 -> 0 | AC98: =+D98+F98+H98+J98+L98+N98+P98+R98+T98+V98+X98+Z98 -> 1 | AD98: =+E98+G98+I98+K98+M98+O98+Q98+S98+U98+W98+Y98+AA98 -> 24761.29 | AE98: =IF(C98=AD98,"ok!","incompleto") -> ok!
A99: 20 | B99: MOVIMENTO DE TERRA
A100: 20.1 | B100: MODELAGEM (MOVIMENTO DE TERRA ATÉ 15CM) | C100: =PO!L130 -> 540.97 | E100: =D100*$C100 -> 0 | G100: =F100*$C100 -> 0 | H100: 1 | I100: =H100*$C100 -> 540.97 | K100: =J100*$C100 -> 0 | M100: =L100*$C100 -> 0 | O100: =N100*$C100 -> 0 | Q100: =P100*$C100 -> 0 | S100: =R100*$C100 -> 0 | U100: =T100*$C100 -> 0 | W100: =V100*$C100 -> 0 | Y100: =X100*$C100 -> 0 | AA100: =Z100*$C100 -> 0 | AC100: =+D100+F100+H100+J100+L100+N100+P100+R100+T100+V100+X100+Z100 -> 1 | AD100: =+E100+G100+I100+K100+M100+O100+Q100+S100+U100+W100+Y100+AA100 -> 540.97 | AE100: =IF(C100=AD100,"ok!","incompleto") -> ok!
A101: 20.2 | B101: ATERRO MANUAL C/MATERIAL IMPORTADO C/COMPACTAÇÃO MANUAL | C101: =PO!L131 -> 1283.46 | E101: 0 | G101: 0 | H101: 1 | I101: 1283.46 | K101: 0 | M101: 0 | O101: 0 | Q101: 0 | S101: 0 | U101: 0 | W101: 0 | Y101: 0 | AA101: 0 | AC101: 1 | AD101: 1283.46 | AE101: ok!
A102: 21 | B102: PAVIMENTAÇÃO
A103: 21.1 | B103: EXECUÇÃO DE PASSEIO (CALÇADA) OU PISO DE CONCRETO COM CONCRETO MOLDADO IN LOCO, FEITO EM OBRA, ACABAMENTO CONVENCIONAL, ESPESSURA 8 CM, ARMADO | C103: =PO!L134 -> 420.81 | E103: =D103*$C103 -> 0 | G103: =F103*$C103 -> 0 | H103: 1 | I103: =H103*$C103 -> 420.81 | K103: =J103*$C103 -> 0 | M103: =L103*$C103 -> 0 | O103: =N103*$C103 -> 0 | Q103: =P103*$C103 -> 0 | S103: =R103*$C103 -> 0 | U103: =T103*$C103 -> 0 | W103: =V103*$C103 -> 0 | Y103: =X103*$C103 -> 0 | AA103: =Z103*$C103 -> 0 | AC103: =+D103+F103+H103+J103+L103+N103+P103+R103+T103+V103+X103+Z103 -> 1 | AD103: =+E103+G103+I103+K103+M103+O103+Q103+S103+U103+W103+Y103+AA103 -> 420.81 | AE103: =IF(C103=AD103,"ok!","incompleto") -> ok!
A104: 21.2 | B104: PISO CONCRETO ARMADO E= 10 cm - ACADEMIA AO AR LIVRE | C104: =PO!L135 -> 15439.45 | E104: 0 | G104: 0 | H104: 1 | I104: 15439.45 | K104: 0 | M104: 0 | O104: 0 | Q104: 0 | S104: 0 | U104: 0 | W104: 0 | Y104: 0 | AA104: 0 | AC104: 1 | AD104: 15439.45 | AE104: ok!
A105: 21.3 | B105: LAJE DE GRÊS ASSENTADA NA AREIA | C105: =PO!L136 -> 270.96 | E105: =D105*$C105 -> 0 | G105: =F105*$C105 -> 0 | H105: 1 | I105: =H105*$C105 -> 270.96 | K105: =J105*$C105 -> 0 | M105: =L105*$C105 -> 0 | O105: =N105*$C105 -> 0 | Q105: =P105*$C105 -> 0 | S105: =R105*$C105 -> 0 | U105: =T105*$C105 -> 0 | W105: =V105*$C105 -> 0 | Y105: =X105*$C105 -> 0 | AA105: =Z105*$C105 -> 0 | AC105: =+D105+F105+H105+J105+L105+N105+P105+R105+T105+V105+X105+Z105 -> 1 | AD105: =+E105+G105+I105+K105+M105+O105+Q105+S105+U105+W105+Y105+AA105 -> 270.96 | AE105: =IF(C105=AD105,"ok!","incompleto") -> ok!
A106: 21.4 | B106: PISO PODOTÁTIL 25x25 cm - E=2,5CM | C106: =PO!L137 -> 50.68 | E106: 0 | G106: 0 | H106: 1 | I106: 50.68 | K106: 0 | M106: 0 | O106: 0 | Q106: 0 | S106: 0 | U106: 0 | W106: 0 | Y106: 0 | AA106: 0 | AC106: 1 | AD106: 50.68 | AE106: ok!
A107: 22 | B107: ACESSIBILIDADE
A108: 22.1 | B108: RAMPA PPNE'S TIPO 1 - 1,80 m (ABA 1,50 m) | C108: =PO!L140 -> 1119.34 | E108: =D108*$C108 -> 0 | G108: =F108*$C108 -> 0 | H108: 1 | I108: =H108*$C108 -> 1119.34 | K108: =J108*$C108 -> 0 | M108: =L108*$C108 -> 0 | O108: =N108*$C108 -> 0 | Q108: =P108*$C108 -> 0 | S108: =R108*$C108 -> 0 | U108: =T108*$C108 -> 0 | W108: =V108*$C108 -> 0 | Y108: =X108*$C108 -> 0 | AA108: =Z108*$C108 -> 0 | AC108: =+D108+F108+H108+J108+L108+N108+P108+R108+T108+V108+X108+Z108 -> 1 | AD108: =+E108+G108+I108+K108+M108+O108+Q108+S108+U108+W108+Y108+AA108 -> 1119.34 | AE108: =IF(C108=AD108,"ok!","incompleto") -> ok!
A109: 23 | B109: MOBILIÁRIO URBANO
A110: 23.1 | B110: BANCO B (C/ ENCOSTO) - L=2,00 m - PADRÃO SMAM | C110: =PO!L143 -> 3364.32 | E110: =D110*$C110 -> 0 | G110: =F110*$C110 -> 0 | H110: 1 | I110: =H110*$C110 -> 3364.32 | K110: =J110*$C110 -> 0 | M110: =L110*$C110 -> 0 | O110: =N110*$C110 -> 0 | Q110: =P110*$C110 -> 0 | S110: =R110*$C110 -> 0 | U110: =T110*$C110 -> 0 | W110: =V110*$C110 -> 0 | Y110: =X110*$C110 -> 0 | AA110: =Z110*$C110 -> 0 | AC110: =+D110+F110+H110+J110+L110+N110+P110+R110+T110+V110+X110+Z110 -> 1 | AD110: =+E110+G110+I110+K110+M110+O110+Q110+S110+U110+W110+Y110+AA110 -> 3364.32 | AE110: =IF(C110=AD110,"ok!","incompleto") -> ok!
A111: 23.2 | B111: LIXEIRA METÁLICA - V=30 LITROS INSTALADA | C111: =PO!L144 -> 1251.74 | E111: =D111*$C111 -> 0 | G111: =F111*$C111 -> 0 | H111: 1 | I111: =H111*$C111 -> 1251.74 | K111: =J111*$C111 -> 0 | M111: =L111*$C111 -> 0 | O111: =N111*$C111 -> 0 | Q111: =P111*$C111 -> 0 | S111: =R111*$C111 -> 0 | U111: =T111*$C111 -> 0 | W111: =V111*$C111 -> 0 | Y111: =X111*$C111 -> 0 | AA111: =Z111*$C111 -> 0 | AC111: 1 | AD111: 1251.74 | AE111: =IF(C111=AD111,"ok!","incompleto") -> ok!
A112: 24 | B112: ACADEMIA AO AR LIVRE
A113: 24.1 | B113: PLACA ORIENTATIVA - GALVANIZADA | C113: =PO!L147 -> 8910.19 | E113: =D113*$C113 -> 0 | G113: =F113*$C113 -> 0 | H113: 1 | I113: =H113*$C113 -> 8910.19 | K113: =J113*$C113 -> 0 | M113: =L113*$C113 -> 0 | O113: =N113*$C113 -> 0 | Q113: =P113*$C113 -> 0 | S113: =R113*$C113 -> 0 | U113: =T113*$C113 -> 0 | W113: =V113*$C113 -> 0 | Y113: =X113*$C113 -> 0 | AA113: =Z113*$C113 -> 0 | AC113: =+D113+F113+H113+J113+L113+N113+P113+R113+T113+V113+X113+Z113 -> 1 | AD113: =+E113+G113+I113+K113+M113+O113+Q113+S113+U113+W113+Y113+AA113 -> 8910.19 | AE113: =IF(C113=AD113,"ok!","incompleto") -> ok!
A114: 24.2 | B114: JOGO DE BARRAS - GALVANIZADO | C114: =PO!L148 -> 10945.66 | E114: 0 | G114: 0 | H114: 1 | I114: 10945.66 | K114: 0 | M114: 0 | O114: 0 | Q114: 0 | S114: 0 | U114: 0 | W114: 0 | Y114: 0 | AA114: 0 | AC114: 1 | AD114: 10945.66 | AE114: ok!
A115: 24.3 | B115: SIMULADOR DE CAMINHADA TRIPLO CONJUGADO - GALVANIZADO | C115: =PO!L149 -> 15065.84 | E115: 0 | G115: 0 | H115: 1 | I115: 15065.84 | K115: 0 | M115: 0 | O115: 0 | Q115: 0 | S115: 0 | U115: 0 | W115: 0 | Y115: 0 | AA115: 0 | AC115: 1 | AD115: 15065.84 | AE115: ok!
A116: 24.4 | B116: ADUÇÃO E ABDUÇÃO DE PERNAS DUPLO - GALVANIZADO | C116: =PO!L150 -> 10491.68 | E116: 0 | G116: 0 | H116: 1 | I116: 10491.68 | K116: 0 | M116: 0 | O116: 0 | Q116: 0 | S116: 0 | U116: 0 | W116: 0 | Y116: 0 | AA116: 0 | AC116: 1 | AD116: 10491.68 | AE116: ok!
A117: 24.5 | B117: PRESSÃO DE PERNAS TRIPLO CONJUGADO - GALVANIZADO | C117: =PO!L151 -> 10857.79 | E117: 0 | G117: 0 | H117: 1 | I117: 10857.79 | K117: 0 | M117: 0 | O117: 0 | Q117: 0 | S117: 0 | U117: 0 | W117: 0 | Y117: 0 | AA117: 0 | AC117: 1 | AD117: 10857.79 | AE117: ok!
A118: 24.6 | B118: SIMULADOR DE REMO - GALVANIZADO | C118: =PO!L152 -> 6442.09 | E118: 0 | G118: 0 | H118: 1 | I118: 6442.09 | K118: 0 | M118: 0 | O118: 0 | Q118: 0 | S118: 0 | U118: 0 | W118: 0 | Y118: 0 | AA118: 0 | AC118: 1 | AD118: 6442.09 | AE118: ok!
A119: 24.7 | B119: ABDOMINAL SIMPLES - GALVANIZADO | C119: =PO!L153 -> 5701.11 | E119: =D119*$C119 -> 0 | G119: =F119*$C119 -> 0 | H119: 1 | I119: =H119*$C119 -> 5701.11 | K119: =J119*$C119 -> 0 | M119: =L119*$C119 -> 0 | O119: =N119*$C119 -> 0 | Q119: =P119*$C119 -> 0 | S119: =R119*$C119 -> 0 | U119: =T119*$C119 -> 0 | W119: =V119*$C119 -> 0 | Y119: =X119*$C119 -> 0 | AA119: =Z119*$C119 -> 0 | AC119: =+D119+F119+H119+J119+L119+N119+P119+R119+T119+V119+X119+Z119 -> 1 | AD119: =+E119+G119+I119+K119+M119+O119+Q119+S119+U119+W119+Y119+AA119 -> 5701.11 | AE119: =IF(C119=AD119,"ok!","incompleto") -> ok!
A120: 24.8 | B120: REMADA ESPECIAL PPNE - GALVANIZADA | C120: =PO!L154 -> 6776.86 | E120: 0 | G120: 0 | H120: 1 | I120: 6776.86 | K120: 0 | M120: 0 | O120: 0 | Q120: 0 | S120: 0 | U120: 0 | W120: 0 | Y120: 0 | AA120: 0 | AC120: 1 | AD120: 6776.86 | AE120: ok!
A121: 24.9 | B121: VOADOR PEITORAL E VOADOR DORSAL - GALVANIZADO | C121: =PO!L155 -> 7137.53 | E121: 0 | G121: 0 | H121: 1 | I121: 7137.53 | K121: 0 | M121: 0 | O121: 0 | Q121: 0 | S121: 0 | U121: 0 | W121: 0 | Y121: 0 | AA121: 0 | AC121: 1 | AD121: 7137.53 | AE121: ok!
A122: 25 | B122: PLANTIO
A123: 25.1 | B123: GRAMA CATARINA | C123: =PO!L158 -> 1685.97 | E123: =D123*$C123 -> 0 | G123: =F123*$C123 -> 0 | H123: 1 | I123: =H123*$C123 -> 1685.97 | K123: =J123*$C123 -> 0 | M123: =L123*$C123 -> 0 | O123: =N123*$C123 -> 0 | Q123: =P123*$C123 -> 0 | S123: =R123*$C123 -> 0 | U123: =T123*$C123 -> 0 | W123: =V123*$C123 -> 0 | Y123: =X123*$C123 -> 0 | AA123: =Z123*$C123 -> 0 | AC123: =+D123+F123+H123+J123+L123+N123+P123+R123+T123+V123+X123+Z123 -> 1 | AD123: =+E123+G123+I123+K123+M123+O123+Q123+S123+U123+W123+Y123+AA123 -> 1685.97 | AE123: =IF(C123=AD123,"ok!","incompleto") -> ok!
A125: TOTAL PARCIAL | C125: =SUM(C11:C123) -> 451445.03 | D125: =E125/C125 -> 0.3360763546 | E125: =SUM(E11:E123) -> 151720 | F125: =G125/C125 -> 0.3357128331 | G125: =SUM(G11:G123) -> 151555.89 | H125: =I125/C125 -> 0.3282108123 | I125: =SUM(I11:I123) -> 148169.14 | J125: =K125/#REF! ->  | K125: =SUM(K86:K123) -> 0 | L125: =M125/#REF! ->  | M125: =SUM(M86:M123) -> 0 | N125: =O125/#REF! ->  | O125: =SUM(O86:O123) -> 0 | P125: =Q125/#REF! ->  | Q125: =SUM(Q86:Q123) -> 0 | R125: =S125/#REF! ->  | S125: =SUM(S86:S123) -> 0 | T125: =U125/#REF! ->  | U125: =SUM(U86:U123) -> 0 | V125: =W125/#REF! ->  | W125: =SUM(W86:W123) -> 0 | X125: =Y125/#REF! ->  | Y125: =SUM(Y86:Y123) -> 0 | Z125: =AA125/#REF! ->  | AA125: =SUM(AA86:AA123) -> 0 | AC125: =D125+F125+H125 -> 1 | AD125: =SUM(AD11:AD123) -> 451445.03 | AE125: =IF(C125=AD125,"ok!","incompleto") -> ok!
A126: TOTAL ACUMULADO | D126: =E126/C125 -> 0.3360763546 | E126: =E125 -> 151720 | F126: =G126/C125 -> 0.6717891877 | G126: =G125+E126 -> 303275.89 | H126: =H125+F126 -> 1 | I126: =I125+G126 -> 451445.03 | J126: =K126/#REF! ->  | K126: =K125+I126 -> 451445.03 | L126: =M126/#REF! ->  | M126: =M125+K126 -> 451445.03 | N126: =O126/#REF! ->  | O126: =O125+M126 -> 451445.03 | P126: =Q126/#REF! ->  | Q126: =Q125+O126 -> 451445.03 | R126: =S126/#REF! ->  | S126: =S125+Q126 -> 451445.03 | T126: =U126/#REF! ->  | U126: =U125+S126 -> 451445.03 | V126: =W126/#REF! ->  | W126: =W125+U126 -> 451445.03 | X126: =Y126/#REF! ->  | Y126: =Y125+W126 -> 451445.03 | Z126: =AA126/#REF! ->  | AA126: =AA125+Y126 -> 451445.03

Sheet Composições
A1: PLANILHA COMPOSIÇÕES SMAMUS
A3: Data Base SINAPI: JUNHO / 2021 - Data da Cotaçãoes: Julho / 2021
A5: OBJETO: | B5: =+PO!$B$9 -> Obras de Aquisição e Instalação de Academias de Ginástica ao ar livre na Praça Professor Emílio Mabilde Rípole (155/02), Praça Irene Elisalde Stricher (145/10) e Praça José Mariano de Freitas Beck (164/09). | C5: Leis Sociais Horistas (SINAPI): | F5: =+'Planilha_M.O.'!$D$7 -> 1.111
A6: DATA: | B6: =IF(PO!$B$10="","",PO!$B$10) -> 2021-08-10 | C6: Leis Sociais Mensalistas (SINAPI): | F6: =+'Planilha_M.O.'!$D$8 -> 0.6916
A7: ART nº: | B7: =IF(PO!$B$11="","",PO!$B$11) ->  | C7: BDI: | F7: =+'Planilha_M.O.'!$F$7 -> 22,15%
C8: BDI diferenciado Academia ar livre: | F8: =IF($F$7="28,21%",19.35%,13.7%) -> 0.137
A10: CÓDIGO | B10: DISCRIMINAÇÃO | C10: UN | D10: QUANT. | E10: UNITÁRIO | F10: TOTAL
A11: 25 | B11: REMOÇÃO DE PASSEIOS - SEM REMOÇÃO DE ENTULHOS | C11: m²
A12: SINAPI C 88260 | B12: CALCETEIRO C/ENCARGOS COMPLEMENTARES | C12: h | D12: 0.3214 | E12: ='Planilha_M.O.'!E27 -> 19.37 | F12: =TRUNC(D12*E12,2) -> 6.22
A13: SINAPI C 88316 | B13: SERVENTE C/ ENCARGOS COMPLEMENTARES | C13: h | D13: 0.1107 | E13: ='Planilha_M.O.'!E18 -> 17.11 | F13: =TRUNC(D13*E13,2) -> 1.89
A14: SUB-TOTAL - MÃO-DE-OBRA: | C14: =SUM(F12:F13) -> 8.11
B16: CUSTO TOTAL: | F16: =+C14 -> 8.11
B18: BDI: | C18: % | D18: =+$F$7 -> 22,15% | F18: =TRUNC(F16*D18,2) -> 1.79
B20: PREÇO: | F20: =+F16+F18 -> 9.9
A23: CÓDIGO | B23: DISCRIMINAÇÃO | C23: UN | D23: COEFIC. | E23: UNITÁRIO | F23: TOTAL
A24: 390 | B24: REMOÇÃO DE ENTULHO C/CAÇAMBA | C24: m³
A25: COTAÇÃO 113 | B25: CAÇAMBA V=4,0M³ | C25: m³ | D25: 0.25 | E25: =Insumos!G66 -> 443.33 | F25: =TRUNC(D25*E25,2) -> 110.83
A26: SUB-TOTAL - MATERIAL / EQUIPAMENTOS: | C26: =SUM(F25:F25) -> 110.83
A27: SINAPI C 88316 | B27: SERVENTE C/ENCARGOS COMPLEMENTARES | C27: h | D27: 0.7 | E27: ='Planilha_M.O.'!E18 -> 17.11 | F27: =TRUNC(D27*E27,2) -> 11.97
A28: SUB-TOTAL - MÃO-DE-OBRA: | C28: =SUM(F27:F27) -> 11.97
B30: CUSTO TOTAL: | F30: =+C26+C28 -> 122.8
B32: BDI: | C32: % | D32: =+$F$7 -> 22,15% | F32: =TRUNC(F30*D32,2) -> 27.2
B34: PREÇO: | F34: =+F30+F32 -> 150
A36: CÓDIGO | B36: DISCRIMINAÇÃO | C36: UN | D36: COEFIC. | E36: UNITÁRIO | F36: TOTAL
A37: 120 | B37: DEMOLIÇÃO CHURRASQUEIRA C/REMOÇÃO DE ENTULHOS | C37: un
A38: =CONCATENATE("COTAÇÃO ",Insumos!$B$66) -> COTAÇÃO 113 | B38: CAÇAMBA 4,00 m³ | C38: un | D38: 0.1613 | E38: =+Insumos!$G$66 -> 443.33 | F38: =TRUNC(D38*E38,2) -> 71.5
A39: =CONCATENATE("SINAPI C ",'Composições Aux. SINAPI'!$A$59,) -> SINAPI C 5795 | B39: MARTELETE OU ROMPEDOR PNEUMÁTICO MANUAL, 28 KG, COM SILENCIADOR (chp) | C39: chp | D39: 0.0252 | E39: =+'Composições Aux. SINAPI'!$E$59:$F$59 -> 26.44 | F39: =TRUNC(D39*E39,2) -> 0.66
A40: =CONCATENATE("SINAPI C ",'Composições Aux. SINAPI'!$A$60,) -> SINAPI C 5952 | B40: MARTELETE OU ROMPEDOR PNEUMÁTICO MANUAL, 28 KG, COM SILENCIADOR (chi) | C40: chi | D40: 0.0252 | E40: =+'Composições Aux. SINAPI'!$E$60:$F$60 -> 24.44 | F40: 0.61
A41: =CONCATENATE("SINAPI C ",'Composições Aux. SINAPI'!$A$34,) -> SINAPI C 5953 | B41: COMPRESSOR DE AR REBOCÁVEL, VAZÃO 189 PCM, MOTOR DIESEL, POTÊNCIA 63 CV (chp) | C41: chp | D41: 0.0252 | E41: =+'Composições Aux. SINAPI'!$E$34:$F$34 -> 41.39 | F41: 1.04
A42: =CONCATENATE("SINAPI C ",'Composições Aux. SINAPI'!$A$35,) -> SINAPI C 5954 | B42: COMPRESSOR DE AR REBOCÁVEL, VAZÃO 189 PCM, MOTOR DIESEL, POTÊNCIA 63 CV (chi) | C42: chi | D42: 0.0252 | E42: =+'Composições Aux. SINAPI'!$E$35:$F$35 -> 3.73 | F42: 0.09
A43: =CONCATENATE("SINAPI I ",Insumos!$B$35) -> SINAPI I 6081 | B43: ARGILA OU BARRO PARA ATERRO OU REATERRO | C43: m³ | D43: 0.0855 | E43: =+Insumos!$G$35 -> 31.59 | F43: =TRUNC(D43*E43,2) -> 2.7
A44: SUB-TOTAL - MATERIAL / EQUIPAMENTOS: | C44: =SUM(F38:F43) -> 76.6
A45: SINAPI C 88309 | B45: PEDREIRO C/ENCARGOS COMPLEMENTARES | C45: h | D45: 0.2784 | E45: ='Planilha_M.O.'!E24 -> 20.71 | F45: =TRUNC(D45*E45,2) -> 5.76
A46: SINAPI C 88316 | B46: SERVENTE C/ ENCARGOS COMPLEMENTARES | C46: h | D46: 3.4923 | E46: ='Planilha_M.O.'!E18 -> 17.11 | F46: =TRUNC(D46*E46,2) -> 59.75
A47: SUB-TOTAL - MÃO-DE-OBRA: | C47: =SUM(F45:F46) -> 65.51
B49: CUSTO TOTAL: | F49: =+C44+C47 -> 142.11
B51: BDI: | C51: % | D51: =+$F$7 -> 22,15% | F51: =TRUNC(F49*D51,2) -> 31.47
B53: PREÇO: | F53: =+F49+F51 -> 173.58
A55: CÓDIGO | B55: DISCRIMINAÇÃO | C55: UN | D55: COEFIC. | E55: UNITÁRIO | F55: TOTAL
A56: 122 | B56: DEMOLIÇÃO DE MESA DE CONCRETO C/REMOÇÃO DE ENTULHOS | C56: un
A57: =CONCATENATE("SINAPI C ",'Composições Aux. SINAPI'!$A$59,) -> SINAPI C 5795 | B57: MARTELETE OU ROMPEDOR PNEUMÁTICO MANUAL, 28 KG, COM SILENCIADOR (chp) | C57: chp | D57: 0.7202 | E57: =+'Composições Aux. SINAPI'!$E$59:$F$59 -> 26.44 | F57: =TRUNC(D57*E57,2) -> 19.04
A58: =CONCATENATE("SINAPI C ",'Composições Aux. SINAPI'!$A$60,) -> SINAPI C 5952 | B58: MARTELETE OU ROMPEDOR PNEUMÁTICO MANUAL, 28 KG, COM SILENCIADOR (chi) | C58: chi | D58: 0.2041 | E58: =+'Composições Aux. SINAPI'!$E$60:$F$60 -> 24.44 | F58: 4.98
A59: =CONCATENATE("SINAPI C ",'Composições Aux. SINAPI'!$A$34,) -> SINAPI C 5953 | B59: COMPRESSOR DE AR REBOCÁVEL, VAZÃO 189 PCM, MOTOR DIESEL, POTÊNCIA 63 CV (chp) | C59: chp | D59: 0.7202 | E59: =+'Composições Aux. SINAPI'!$E$34:$F$34 -> 41.39 | F59: 29.8
A60: =CONCATENATE("SINAPI C ",'Composições Aux. SINAPI'!$A$35,) -> SINAPI C 5954 | B60: COMPRESSOR DE AR REBOCÁVEL, VAZÃO 189 PCM, MOTOR DIESEL, POTÊNCIA 63 CV (chi) | C60: chi | D60: 0.2041 | E60: =+'Composições Aux. SINAPI'!$E$35:$F$35 -> 3.73 | F60: 0.76
A61: =CONCATENATE("COTAÇÃO ",Insumos!$B$66) -> COTAÇÃO 113 | B61: CAÇAMBA 4,00 m³ | C61: un | D61: 0.1504 | E61: =+Insumos!$G$66 -> 443.33 | F61: 66.67
A62: =CONCATENATE("SINAPI I ",Insumos!$B$35) -> SINAPI I 6081 | B62: ARGILA OU BARRO PARA ATERRO OU REATERRO | C62: m³ | D62: 0.2925 | E62: =+Insumos!$G$35 -> 31.59 | F62: 9.24
A63: SUB-TOTAL - MATERIAL / EQUIPAMENTOS: | C63: =SUM(F57:F62) -> 130.49
A64: SINAPI C 88309 | B64: PEDREIRO C/ENCARGOS COMPLEMENTARES | C64: h | D64: 0.1412 | E64: ='Planilha_M.O.'!E24 -> 20.71 | F64: =TRUNC(D64*E64,2) -> 2.92
A65: SINAPI C 88316 | B65: SERVENTE C/ ENCARGOS COMPLEMENTARES | C65: h | D65: 2.0205 | E65: ='Planilha_M.O.'!E18 -> 17.11 | F65: =TRUNC(D65*E65,2) -> 34.57
A66: SUB-TOTAL - MÃO-DE-OBRA: | C66: =SUM(F64:F65) -> 37.49
B68: CUSTO TOTAL: | F68: =+C63+C66 -> 167.98
B70: BDI: | C70: % | D70: =+$F$7 -> 22,15% | F70: =TRUNC(F68*D70,2) -> 37.2
B72: PREÇO: | F72: =+F68+F70 -> 205.18
A74: CÓDIGO | B74: DISCRIMINAÇÃO | C74: UN | D74: COEFIC. | E74: UNITÁRIO | F74: TOTAL
A75: 450 | B75: ART - ANOTAÇÃO DE RESPONSABILIDADE TÉCNICA PELA EXECUÇÃO | C75: un
A76: =CONCATENATE("COTAÇÃO ",Insumos!$B$38) -> COTAÇÃO 128 | B76: ART | C76: un | D76: 1 | E76: =+Insumos!$G$38 -> 226 | F76: =TRUNC(D76*E76,2) -> 226
A77: SUB-TOTAL - MATERIAL / EQUIPAMENTOS: | C77: =SUM(F76) -> 226
B79: CUSTO TOTAL: | F79: =+C77 -> 226
B81: BDI: | C81: % | D81: =+$F$7 -> 22,15% | F81: =TRUNC(F79*D81,2) -> 50.05
B83: PREÇO: | F83: =+F79+F81 -> 276.05
A86: CÓDIGO | B86: DISCRIMINAÇÃO | C86: UN | D86: COEFIC. | E86: UNITÁRIO | F86: TOTAL
A87: 500 | B87: TAPUME EM CHAPA DE COMPENSADO RESINADO | C87: m²
A88: SINAPI I 002745 | B88: PONTALETE ROLIÇO S/TRATAMENTO EUCALIPTO D=8 A 11 cm | C88: m | D88: 0.2622 | E88: =Insumos!G159 -> 3.39 | F88: =TRUNC(D88*E88,2) -> 0.88
A89: SINAPI I 004460 | B89: SARRAFO DE MADEIRA NÃO APARELHADA 2,5 x 10 cm | C89: m | D89: 0.708 | E89: =Insumos!G179 -> 7.48 | F89: 5.29
A90: SINAPI I 001355 | B90: CHAPA DE MADEIRA COMPENSADA RESINADA 14 mm | C90: m² | D90: 0.525 | E90: =Insumos!G78 -> 28.72 | F90: 15.07
A91: SINAPI C 91692 | B91: SERRA CIRCULAR DE BANCADA C/COIFA PARA DISCO 10" (chp) | C91: chp | D91: 0.0044 | E91: ='Composições Aux. SINAPI'!E72:F72 -> 26.83 | F91: 0.11
A92: SINAPI C 91693 | B92: SERRA CIRCULAR DE BANCADA C/COIFA PARA DISCO 10" (chi) | C92: chi | D92: 0.0191 | E92: ='Composições Aux. SINAPI'!E73:F73 -> 23.89 | F92: 0.45
A93: SINAPI I 5061 | B93: PREGO DE AÇO 18 x 27 C/CABEÇA | C93: kg | D93: 0.0428 | E93: =Insumos!G170 -> 20.75 | F93: 0.88
A94: SINAPI I 35693 | B94: TINTA LÁTEX ACRÍLICA ECONÔMICA, COR BRANCA | C94: l | D94: 0.2698 | E94: =Insumos!G206 -> 11.78 | F94: =TRUNC(D94*E94,2) -> 3.17
A95: =CONCATENATE("SINAPI I ",[2]Insumos!$B$228) -> SINAPI I 3767 | B95: LIXA P/MADEIRA | C95: un | D95: 0.8 | E95: =Insumos!G120 -> 0.79 | F95: =TRUNC(D95*E95,2) -> 0.63
A96: SUB-TOTAL - MATERIAL / EQUIPAMENTOS: | C96: =SUM(F88:F95) -> 26.48
A97: SINAPI C 88262 | B97: CARPINTEIRO C/ENCARGOS COMPLEMENTARES | C97: h | D97: 0.6127 | E97: ='Planilha_M.O.'!E26 -> 20.5 | F97: =TRUNC(D97*E97,2) -> 12.56
A98: SINAPI C 88239 | B98: AJUDANTE DE CARPINTEIRO C/ENCARGOS COMPLEMENTARES | C98: h | D98: 0.2042 | E98: ='Planilha_M.O.'!E20 -> 17.06 | F98: =TRUNC(D98*E98,2) -> 3.48
A99: SINAPI C 88310 | B99: PINTOR C/ENCARGOS COMPLEMENTARES | C99: h | D99: 0.8 | E99: ='Planilha_M.O.'!E25 -> 21.7 | F99: =TRUNC(D99*E99,2) -> 17.36
A100: SINAPI C 88316 | B100: SERVENTE C/ ENCARGOS COMPLEMENTARES | C100: h | D100: 0.45 | E100: ='Planilha_M.O.'!E18 -> 17.11 | F100: =TRUNC(D100*E100,2) -> 7.69
A101: SUB-TOTAL - MÃO-DE-OBRA: | C101: =SUM(F97:F100) -> 41.09
B103: CUSTO TOTAL: | F103: =+C96+C101 -> 67.57
B105: BDI: | C105: % | D105: =+$F$7 -> 22,15% | F105: =TRUNC(F103*D105,2) -> 14.96
B107: PREÇO: | F107: =+F103+F105 -> 82.53
A109: CÓDIGO | B109: DISCRIMINAÇÃO | C109: UN | D109: COEFIC. | E109: UNITÁRIO | F109: TOTAL
A110: 510 | B110: LOCAÇÃO DE BANHEIRO QUÍMICO | C110: %
A111: SUDECAP 89.50.09 | B111: LOCAÇÃO SANITÁRIO QUÍMICO | C111: ms | D111: 0.01 | E111: =+Insumos!G121 -> 680 | F111: =TRUNC(D111*E111,4) -> 6.8
A112: SUB-TOTAL - MATERIAL / EQUIPAMENTOS: | C112: =SUM(F111) -> 6.8
B114: CUSTO TOTAL: | F114: =+C112 -> 6.8
B116: BDI: | C116: % | D116: =+$F$7 -> 22,15% | F116: =TRUNC(F114*D116,4) -> 1.5062
B118: PREÇO: | F118: =+F114+F116 -> 8.3062
B119: CÁLCULO: LOCAÇÃO BANHEIRO: NÚMERO DE MESES: 1,0 MÊS
B120: NECESSÁRIO 1% DO VALOR TOTAL DA OBRA, DESSA FORMA , COEFICIENTE =1,0 MÊS /100%
A122: CÓDIGO | B122: DISCRIMINAÇÃO | C122: UN | D122: COEFIC. | E122: UNITÁRIO | F122: TOTAL
A123: 520 | B123: FRETE P/ SANITÁRIO QUÍMICO | C123: cj
A124: SINAPI C 93402 | B124: GUINDAUTO HIDRÁULICO, CAP. 3300 KG, INCLUSIVE CAMINHÃO TOCO | C124: chp | D124: 5 | E124: ='Composições Aux. SINAPI'!E51:F51 -> 177.73 | F124: =TRUNC(D124*E124,2) -> 888.65
A125: SUB-TOTAL - MATERIAL / EQUIPAMENTOS: | C125: =SUM(F124) -> 888.65
B127: CUSTO TOTAL: | F127: =+C125 -> 888.65
B128: Auxiliar para composições 510
B129: BDI: | C129: % | D129: =+$F$7 -> 22,15% | F129: =TRUNC(F127*D129,2) -> 196.83
B131: PREÇO: | F131: =+F127+F129 -> 1085.48
A133: CÓDIGO | B133: DISCRIMINAÇÃO | C133: UN | D133: COEFIC. | E133: UNITÁRIO | F133: TOTAL
A134: 530 | B134: INSTALAÇÃO PROVISÓRIA DE ENERGIA, AÉREA, TRIFASICA, COM CAIXA DE EMBUTIR C/ POSTE H=9,00M | C134: pt
A135: SINAPI C 91872 | B135: ELETRODUTO RÍGIDO ROSCÁVEL, PVC, DN 32 mm (1"), PARA CIRCUITOS TERMINAIS | C135: m | D135: 6.05 | E135: ='Composições Aux. SINAPI'!E49:F49 -> 14.97 | F135: =TRUNC(D135*E135,2) -> 90.56
A136: SINAPI C 91885 | B136: LUVA PARA ELETRODUTO, PVC, ROSCÁVEL, DN 32 mm (1") | C136: un | D136: 1 | E136: ='Composições Aux. SINAPI'!E58:F58 -> 8.88 | F136: 8.88
A137: SINAPI C 91917 | B137: CURVA 90° PARA ELETRODUTO, PVC, ROSCÁVEL, DN 32 mm (1") | C137: un | D137: 1 | E137: ='Composições Aux. SINAPI'!E44:F44 -> 14.99 | F137: 14.99
A138: SINAPI C 91919 | B138: CURVA 180° P/ELETRODUTO, PVC, ROSCÁVEL, DN 32 mm (1") | C138: un | D138: 1 | E138: ='Composições Aux. SINAPI'!E45:F45 -> 16.98 | F138: 16.98
A139: SINAPI C 91933 | B139: CABO DE COBRE FLEXÍVEL ISOLADO, 10 mm², ANTI-CHAMA 0,6/1,0 kV | C139: m | D139: 22.2 | E139: ='Composições Aux. SINAPI'!E27:F27 -> 16.22 | F139: 360.08
A140: SINAPI C 93673 | B140: DISJUNTOR TRIPOLAR TIPO DIN, CORRENTE NOMINAL DE 50 A | C140: un | D140: 1 | E140: ='Composições Aux. SINAPI'!E48:F48 -> 94.12 | F140: 94.12
A141: SINAPI C 96977 | B141: CORDOALHA DE COBRE NU 50 mm², ENTERRADA, SEM ISOLADOR | C141: m | D141: 1.95 | E141: ='Composições Aux. SINAPI'!E43:F43 -> 50.13 | F141: 97.75
A142: SINAPI C 96986 | B142: HASTE DE ATERRAMENTO 3/4" PARA SPDA | C142: un | D142: 1 | E142: ='Composições Aux. SINAPI'!E52:F52 -> 102.57 | F142: 102.57
A143: SINAPI C 100578 | B143: ASSENTAMENTO DE POSTE DE CONCRETO COM COMPRIMENTO NOMINAL DE 9 m | C143: un | D143: 1 | E143: ='Composições Aux. SINAPI'!E24:F24 -> 412.48 | F143: 412.48
A144: SINAPI I 001094 | B144: ARMAÇÃO VERTICAL C/HASTE E CONTRA-PINO, EM CHAPA DE FG 3/16", C/1 ESTRIBO | C144: un | D144: 1 | E144: =Insumos!G36 -> 13.98 | F144: 13.98
A145: SINAPI I 003398 | B145: ISOLADOR DE PORCELANA, TIPO ROLDANA, DIMENSÕES DE 72 x 72 mm | C145: un | D145: 1 | E145: =Insumos!G114 -> 4.77 | F145: 4.77
A146: SINAPI I 004346 | B146: PARAFUSO FERRO POLIDO, SEXTAVADO, D=5/8", C/PORCA E ARRUELA DE PRESSÃO MÉDIA | C146: un | D146: 3 | E146: =Insumos!G140 -> 6.93 | F146: 20.79
A147: SINAPI I 011267 | B147: ARRUELA LISA, DE LATÃO POLIDO, DIÂMETRO NOMINAL 5/8", DIÂMETRO DO FURO = 17 mm | C147: un | D147: 2 | E147: =Insumos!G37 -> 0.8 | F147: 1.6
A148: SINAPI I 011864 | B148: CONECTOR METÁLICO TIPO PARAFUSO FENDIDO (SPLIT BOLT), PARA CABOS ATÉ 95 mm2 | C148: un | D148: 1 | E148: =Insumos!G87 -> 29.18 | F148: 29.18
A149: SINAPI I 011950 | B149: BUCHA NYLON S/ABA S6, C/PARAFUSO DE 4,2 x 40 mm EM AÇO ZINCADO C/ROSCA SOBERBA | C149: un | D149: 4 | E149: =Insumos!G64 -> 0.37 | F149: 1.48
A150: SINAPI I 014153 | B150: FITA METÁLICA PERFURADA, L = 18 mm, ROLO DE 30 m, CARGA RECOMENDADA = 30 kgf | C150: un | D150: 0.06 | E150: =Insumos!G103 -> 52.81 | F150: 3.16
A151: SINAPI I 034643 | B151: CAIXA INSPEÇÃO EM POLIETILENO PARA ATERRAMENTO E PÁRA RAIOS DIÂMETRO = 300 mm | C151: un | D151: 1 | E151: =Insumos!G69 -> 20.08 | F151: 20.08
A152: SINAPI I 039809 | B152: CAIXA P/MEDIDOR POLIFÁSICO, EM POLICARBONATO/TERMOPLÁSTICO, P/1 DISJUNTOR | C152: un | D152: 1 | E152: =Insumos!G70 -> 138.18 | F152: 138.18
A153: SINAPI I 039996 | B153: VERGALHÃO ZINCADO ROSCA TOTAL, 1/4 " (6,3 mm) | C153: m | D153: 0.1664 | E153: =Insumos!G226 -> 5.38 | F153: 0.89
A154: SINAPI I 039997 | B154: PORCA ZINCADA, SEXTAVADA, DIÂMETRO 1/4" | C154: un | D154: 2 | E154: =Insumos!G163 -> 0.2 | F154: 0.4
A155: SINAPI I 005044 | B155: POSTE DE CONCRETO CIRCULAR, 200 kg, H = 9 m | C155: un | D155: 1 | E155: =Insumos!G172 -> 920.7 | F155: 920.7
A156: SUB-TOTAL - MATERIAL / EQUIPAMENTOS: | C156: =SUM(F135:F155) -> 2353.62
A157: =CONCATENATE("SINAPI C ",[3]Insumos!$B$23) -> SINAPI C 88264 | B157: ELETRICISTA C/ENCARGOS COMPLEMENTARES | C157: h | D157: 3.5078 | E157: ='Planilha_M.O.'!E41 -> 22.61 | F157: =TRUNC(D157*E157,2) -> 79.31
A158: =CONCATENATE("SINAPI C ",[3]Insumos!$B$16) -> SINAPI C 88247 | B158: AUXILIAR DE ELETRICISTA C/ENCARGOS COMPLEMENTARES | C158: h | D158: 0.3897 | E158: ='Planilha_M.O.'!E42 -> 17.17 | F158: =TRUNC(D158*E158,2) -> 6.69
A159: SUB-TOTAL - MÃO-DE-OBRA: | C159: =SUM(F157:F158) -> 86
B161: CUSTO TOTAL: | F161: =+C156+C159 -> 2439.62
B163: BDI: | C163: % | D163: =+$F$7 -> 22,15% | F163: =TRUNC(F161*D163,2) -> 540.37
B166: PREÇO: | F166: =+F161+F163 -> 2979.99
A169: CÓDIGO | B169: DISCRIMINAÇÃO | C169: UN | D169: COEFIC. | E169: UNITÁRIO | F169: TOTAL
A170: 535 | B170: INSTALAÇÃO PROVISÓRIA DE ÁGUA | C170: pt
A171: =CONCATENATE("SINAPI C ",'[3]Composições Aux. SINAPI'!$A$62) -> SINAPI C 89971 | B171: KIT DE REGISTRO DE GAVETA BRUTO DE LATÃO ½", INCLUSIVE CONEXÕES, ROSCÁVEL | C171: un | D171: 1 | E171: ='Composições Aux. SINAPI'!E54:F54 -> 50.53 | F171: =TRUNC(D171*E171,2) -> 50.53
A172: =CONCATENATE("SINAPI C ",'[3]Composições Aux. SINAPI'!$A$50) -> SINAPI C 93358 | B172: ESCAVAÇÃO MANUAL DE VALA COM PROFUNDIDADE MENOR OU IGUAL A 1,30 M | C172: m³ | D172: 0.16 | E172: ='Composições Aux. SINAPI'!E50:F50 -> 67.68 | F172: 10.82
A173: =CONCATENATE("SINAPI C ",'[3]Composições Aux. SINAPI'!$A$91) -> SINAPI C 89401 | B173: TUBO, PVC, SOLDÁVEL, DN 20MM - FORNECIMENTO E INSTALAÇÃO | C173: m | D173: 8 | E173: ='Composições Aux. SINAPI'!E76:F76 -> 7.63 | F173: 61.04
A174: =CONCATENATE("SINAPI C ",'[3]Composições Aux. SINAPI'!$A$61) -> SINAPI C 89358 | B174: JOELHO 90 GRAUS, PVC, SOLDÁVEL, DN 20MM - FORNECIMENTO E INSTALAÇÃO | C174: un | D174: 4 | E174: ='Composições Aux. SINAPI'!E53:F53 -> 6.38 | F174: 25.52
A175: =CONCATENATE("SINAPI C ",'[3]Composições Aux. SINAPI'!$A$25) -> SINAPI C 95676 | B175: CAIXA EM CONCRETO PRÉ-MOLDADO PARA ABRIGO DE HIDRÔMETRO COM DN 20 (½) | C175: un | D175: 1 | E175: ='Composições Aux. SINAPI'!E28:F28 -> 93.49 | F175: 93.49
A176: =CONCATENATE("SINAPI C ",'[3]Composições Aux. SINAPI'!$A$83) -> SINAPI C 86913 | B176: TORNEIRA CROMADA 1/2" OU 3/4" PARA TANQUE, PADRÃO POPULAR | C176: un | D176: 1 | E176: ='Composições Aux. SINAPI'!E74:F74 -> 27.71 | F176: 27.71
A177: =CONCATENATE("COTAÇÃO ",[3]Insumos!$B$339) -> COTAÇÃO 116 | B177: TAXA INSTALAÇÃO ÁGUA DMAE | C177: cj | D177: 1 | E177: =Cotações!M134 -> 465.36 | F177: 465.36
A178: SUB-TOTAL - MATERIAL / EQUIPAMENTOS: | C178: =SUM(F171:F177) -> 734.47
B180: CUSTO TOTAL: | F180: =+C178 -> 734.47
B182: BDI: | C182: % | D182: =+$F$7 -> 22,15% | F182: =TRUNC(F180*D182,2) -> 162.68
B184: PREÇO: | F184: =+F180+F182 -> 897.15
A187: CÓDIGO | B187: DISCRIMINAÇÃO | C187: UN | D187: COEFIC. | E187: UNITÁRIO | F187: TOTAL
A188: 542 | B188: PLACA DE OBRA EM CHAPA GALVANIZADA | C188: m²
A189: COTAÇÃO 16 | B189: CAIBRO CEDRINHO 5 x 7 cm | C189: m | D189: 0.5711 | E189: =Cotações!M11 -> 22.2 | F189: =TRUNC(D189*E189,2) -> 12.67
A190: SINAPI I 44481 | B190: VIGA DE MADEIRA NÃO APARELHADA 8 x 16 cm | C190: m | D190: 0.5711 | E190: =Insumos!G227 -> 43.33 | F190: 24.74
A191: SINAPI I 5075 | B191: PREGO DE AÇO 18 x 30 C/CABEÇA | C191: kg | D191: 0.0987 | E191: =Insumos!G166 -> 21.11 | F191: 2.08
A192: COTAÇÃO 113 | B192: CAÇAMBA 4,00 m³ | C192: un | D192: 0.008 | E192: =Insumos!G66 -> 443.33 | F192: 3.54
A193: SINAPI C 94962 | B193: CONCRETO MAGRO PARA LASTRO,PREPARO COM BETONEIRA | C193: m³ | D193: 0.0299 | E193: ='Composições Aux. SINAPI'!E36:F36 -> 294.53 | F193: 8.8
A194: SINAPI C 92873 | B194: LANÇAMENTO, ADENSAMENTO E ACABAMENTO CONCRETO | C194: m³ | D194: 0.0299 | E194: =+'[2]Composições Aux. SINAPI'!$E$53:$F$53 -> 154.36 | F194: 4.61
A195: SINAPI I 4813 | B195: PLACA DE OBRA (PARA CONSTRUCAO CIVIL) EM CHAPA GALVANIZADA *N. 22*, ADESIVADA, DE *2,0 X 1,125* M | C195: m² | D195: 1 | E195: =Insumos!G157 -> 225 | F195: 225
A196: SUB-TOTAL - MATERIAL / EQUIPAMENTOS: | C196: =SUM(F189:F195) -> 281.44
A197: SINAPI C 88262 | B197: CARPINTEIRO C/ENCARGOS COMPLEMENTARES | C197: h | D197: 0.518 | E197: ='Planilha_M.O.'!E26 -> 20.5 | F197: =TRUNC(D197*E197,2) -> 10.61
A198: SINAPI C 88239 | B198: AJUDANTE DE CARPINTEIRO C/ENCARGOS COMPLEMENTARES | C198: h | D198: 0.4001 | E198: ='Planilha_M.O.'!E20 -> 17.06 | F198: =TRUNC(D198*E198,2) -> 6.82
A199: SINAPI C 88309 | B199: PEDREIRO C/ENCARGOS COMPLEMENTARES | C199: h | D199: 0.0755 | E199: ='Planilha_M.O.'!E24 -> 20.71 | F199: =TRUNC(D199*E199,2) -> 1.56
A200: SINAPI C 88316 | B200: SERVENTE C/ ENCARGOS COMPLEMENTARES | C200: h | D200: 0.1551 | E200: ='Planilha_M.O.'!E18 -> 17.11 | F200: =TRUNC(D200*E200,2) -> 2.65
A201: SUB-TOTAL - MÃO-DE-OBRA: | C201: =SUM(F197:F200) -> 21.64
B203: CUSTO TOTAL: | F203: =+C196+C201 -> 303.08
B205: BDI: | C205: % | D205: =+$F$7 -> 22,15% | F205: =TRUNC(F203*D205,2) -> 67.13
B207: PREÇO: | F207: =+F203+F205 -> 370.21
A210: CÓDIGO | B210: DISCRIMINAÇÃO | C210: UN | D210: COEFIC. | E210: UNITÁRIO | F210: TOTAL
A211: 552 | B211: SINALIZAÇÃO COM TELA PLÁSTICA LARANJA FIXADA EM CONE PLÁSTICO | C211: m
A212: SINAPI I 34498 | B212: CONE DE SINALIZAÇÃO EM PVC FLEXÍVEL, h=70/76 cm | C212: un | D212: 0.175 | E212: =Insumos!G86 -> 114.77 | F212: =TRUNC(D212*E212,2) -> 20.08
A213: SINAPI I 37524 | B213: TELA PLÁSTICA LARANJA | C213: m | D213: 1.1 | E213: =Insumos!G194 -> 2.06 | F213: =TRUNC(D213*E213,2) -> 2.26
A214: SUB-TOTAL - MATERIAL / EQUIPAMENTOS: | C214: =SUM(F212:F213) -> 22.34
A215: =CONCATENATE("SINAPI C ",[2]Insumos!$B$23) -> SINAPI C 88262 | B215: CARPINTEIRO C/ENCARGOS COMPLEMENTARES | C215: h | D215: 0.168 | E215: ='Planilha_M.O.'!E26 -> 20.5 | F215: =TRUNC(D215*E215,2) -> 3.44
A216: =CONCATENATE("SINAPI C ",[2]Insumos!$B$15) -> SINAPI C 88239 | B216: AJUDANTE DE CARPINTEIRO C/ENCARGOS COMPLEMENTARES | C216: h | D216: 0.132 | E216: ='Planilha_M.O.'!E20 -> 17.06 | F216: =TRUNC(D216*E216,2) -> 2.25
A217: SUB-TOTAL - MÃO-DE-OBRA: | C217: =SUM(F215:F216) -> 5.69
B219: CUSTO TOTAL: | F219: =+C214+C217 -> 28.03
B221: BDI: | C221: % | D221: =+$F$7 -> 22,15% | F221: =TRUNC(F219*D221,2) -> 6.2
B223: PREÇO: | F223: =+F219+F221 -> 34.23
A225: CÓDIGO | B225: DISCRIMINAÇÃO | C225: UN | D225: COEFIC. | E225: UNITÁRIO | F225: TOTAL
A226: 99064 | B226: LOCAÇÃO DE OBRA | C226: m
A227: SINAPI C 99058 | B227: LOCAÇÃO DE PONTO PARA REFERÊNCIA TOPOGRÁFICA | C227: un | D227: 0.05 | E227: ='Composições Aux. SINAPI'!E57:F57 -> 10.33 | F227: =TRUNC(D227*E227,2) -> 0.51
A228: SUB-TOTAL - MATERIAL / EQUIPAMENTOS: | C228: =SUM(F227:F227) -> 0.51
B230: CUSTO TOTAL: | F230: =+C228 -> 0.51
B232: BDI: | C232: % | D232: =+$F$7 -> 22,15% | F232: =TRUNC(F230*D232,2) -> 0.11
B234: PREÇO: | F234: =+F230+F232 -> 0.62
A236: CÓDIGO | B236: DISCRIMINAÇÃO | C236: UN | D236: COEFIC. | E236: UNITÁRIO | F236: TOTAL
A237: 565 | B237: NIVELAMENTO | C237: m²
A238: SINAPI I 4460 | B238: SARRAFO NÃO APARELHADO 2,5 X 10 cm | C238: m | D238: 0.0029 | E238: =Insumos!G179 -> 7.48 | F238: =TRUNC(D238*E238,2) -> 0.02
A239: SINAPI I 7252 | B239: LOCACAO DE NIVEL OPTICO, COM PRECISAO DE 0,7 MM, AUMENTO DE 32X | C239: h | D239: 0.0025 | E239: =Insumos!G130 -> 2.03 | F239: =ROUND(D239*E239,2) -> 0.01
A240: SUB-TOTAL - MATERIAL / EQUIPAMENTOS: | C240: =SUM(F238:F239) -> 0.03
A241: SINAPI C 88253 | B241: AUXILIAR DE TOPÓGRAFO C/ENCARGOS COMPLEMENTARES | C241: h | D241: 0.0025 | E241: ='Planilha_M.O.'!E21 -> 13.69 | F241: =TRUNC(D241*E241,2) -> 0.03
A242: SINAPI C 90781 | B242: TOPÓGRAFO C/ ENCARGOS COMPLEMENTARES | C242: h | D242: 0.0025 | E242: ='Planilha_M.O.'!E39 -> 31.8 | F242: =TRUNC(D242*E242,2) -> 0.07
A243: SINAPI C 88316 | B243: SERVENTE C/ ENCARGOS COMPLEMENTARES | C243: h | D243: 0.0075 | E243: ='Planilha_M.O.'!E18 -> 17.11 | F243: =TRUNC(D243*E243,2) -> 0.12
A244: SUB-TOTAL - MÃO-DE-OBRA: | C244: =SUM(F241:F243) -> 0.22
B246: CUSTO TOTAL: | F246: =+C240+C244 -> 0.25
B248: BDI: | C248: % | D248: =+$F$7 -> 22,15% | F248: =TRUNC(F246*D248,2) -> 0.05
B250: PREÇO: | F250: =+F246+F248 -> 0.3
A252: CÓDIGO | B252: DISCRIMINAÇÃO | C252: UN | D252: COEFIC. | E252: UNITÁRIO | F252: TOTAL
A253: 97053 | B253: SINALIZAÇÃO COM FITA ZEBRADA FIXADA EM CONE PLÁSTICO | C253: m
A254: SINAPI I 34498 | B254: CONE DE SINALIZAÇÃO EM PVC FLEXÍVEL, h=70/76 cm | C254: un | D254: 0.0219 | E254: =+Insumos!$G$86 -> 114.77 | F254: =TRUNC(D254*E254,2) -> 2.51
A255: SINAPI I 42015 | B255: FITA ZEBRADA | C255: m | D255: 1.1 | E255: =+Insumos!$G$105 -> 1.12 | F255: =TRUNC(D255*E255,2) -> 1.23
A256: SUB-TOTAL - MATERIAL / EQUIPAMENTOS: | C256: =SUM(F254:F255) -> 3.74
A257: SINAPI C 88262 | B257: CARPINTEIRO C/ENCARGOS COMPLEMENTARES | C257: h | D257: 0.1384 | E257: ='Planilha_M.O.'!E26 -> 20.5 | F257: =TRUNC(D257*E257,2) -> 2.83
A258: SINAPI C 88239 | B258: AJUDANTE DE CARPINTEIRO C/ENCARGOS COMPLEMENTARES | C258: h | D258: 0.1088 | E258: ='Planilha_M.O.'!E20 -> 17.06 | F258: =TRUNC(D258*E258,2) -> 1.85
A259: SUB-TOTAL - MÃO-DE-OBRA: | C259: =SUM(F257:F258) -> 4.68
B261: CUSTO TOTAL: | F261: =+C256+C259 -> 8.42
B263: BDI: | C263: % | D263: =+$F$7 -> 22,15% | F263: =TRUNC(F261*D263,2) -> 1.86
B265: PREÇO: | F265: =+F261+F263 -> 10.28
A267: CÓDIGO | B267: DISCRIMINAÇÃO | C267: UN | D267: COEFIC. | E267: UNITÁRIO | F267: TOTAL
A268: 700 | B268: ADMINISTRAÇÃO LOCAL | C268: %
... 1421 more rows

Sheet Memória_Cálculo
A6: MEMÓRIA DE CÁLCULO
A7: OBJETO: | B7: Obras de Aquisição e Instalação de Academias de Ginástica ao ar livre na Praça Professor Emílio Mabilde Rípole (155/02), Praça Irene Elisalde Stricher (145/10) e Praça José Mariano de Freitas Beck (164/09).
A9: 1 EXECUÇÃO DE ACADEMIA AO AR LIVRE PRAÇA PROF. EMÍLIO M. RÍPOLE 155/02
A11: 1.1 ART
A12: DEVERÁ SER ELABORADA APENAS UMA ART PARA AS TRÊS ACADEMIAS.
A14: 2.1 TAPUME EM CHAPA DE COMPENSADO RESINADO (L=9,90; C=15,40m e H=2,20M)
A16: LARGURA (M) | B16: COMPRIMENTO (M) | C16: PERÍMETRO (M) | D16: ALTURA H=2,20M | E16: ÁREA(M²)
A17: 9.9 | B17: 15.4 | C17: =A17*2+B17*2 -> 50.6 | D17: 2.2 | E17: =D17*C17 -> 111.32
A19: 2.2 LOCAÇÃO DE SANITÁRIO QUÍMICO E 2.3 FRETE
A21: QUANTIDADE | B21: PRAZO | C21: LIMPEZA / SEMANAIS | D21: FRETE IDA | E21: FRETE VOLTA
A22: 1 | B22: 30 DIAS | C22: 3 | D22: 1 | E22: 1
A24: 2.6 PLACA DE OBRA (PARA CONSTRUCAO CIVIL) EM CHAPA GALVANIZADA *N. 22*, ADESIVADA, DE *2,0 X 1,125* M
A26: LARGURA (M) | B26: ALTURA (M) | C26: ÁREA(M²)
A27: 2 | B27: 1.25 | C27: =B27*A27 -> 2.5
A30: 2.7 LOCAÇÃO DE OBRA
A32: PISO ACADEMIA
A33: LARGURA (M) | B33: LARGURA (M) | C33: COMPRIMENTO (M) | D33: COMPRIMENTO (M)
A34: 8 | B34: 8 | C34: 14.5 | D34: 14.5
A36: PASSEIO
A37: COMPRIMENTO (M) | B37: COMPRIMENTO (M) | D37: TOTAL LOCAÇÃO (M)
A38: 2 | B38: 2 | D38: =B38+A38+A34+B34+C34+D34 -> 49
A41: 2.8 NIVELAMENTO
A43: ACADEMIA ÁREA | B43: PASSEIO ÁREA (M²) | C43: GRAMA ÁREA | D43: PODOTAIL ÁREA | E43: TOTAL (M²)
A44: =C82 -> 116 | B44: =B63 -> 2.25 | C44: =C63 -> 49.5 | D44: =12*0.25*0.25 -> 0.75 | E44: =C44+B44+A44+D44 -> 168.5
A47: 3 ADMINISTRAÇÃO LOCAL
A48: ENGENHEIRO
A49: DIAS | B49: MESES | C49: HORAS / DIA | D49: TOTAL | E49: PERCENTUAL | F49: COEFICIENTE
A50: 22 | B50: 1 | C50: 2 | D50: =C50*A50 -> 44 | E50: 100 | F50: =D50/E50 -> 0.44
A52: ENCARREGADO
A53: PRAZO OBRA | B53: MESES | C53: PERCENTUAL | D53: COEFICIENTE
A54: 30 DIAS | B54: 1 | C54: 100 | D54: =B54/C54 -> 0.01
A56: VIGIA NOTURNO
A57: PRAZO OBRA | B57: HOAS / DIA | C57: TOTAL HORAS | D57: PERCENTUAL | E57: COEFICIENTE
A58: 30 | B58: 10 | C58: =B58*A58 -> 300 | D58: 100 | E58: =C58/D58 -> 3
A60: 4.1 MODELAGEM (MOVIMENTO DE TERRA ATÉ 15CM)
A62: ACADEMIA ÁREA | B62: PASSEIO ÁREA (M²) | C62: GRAMA ÁREA | D62: PODOTAIL ÁREA | E62: TOTAL (M²)
A63: =C82 -> 116 | B63: =C76 -> 2.25 | C63: =C110 -> 49.5 | D63: =12*0.25*0.25 -> 0.75 | E63: =C63+B63+A63+D63 -> 168.5
A66: 4.2 ATERRO MECÂNICO COM MATERIAL IMPORTADO COM COMPACTAÇÃO MECÂNICA
A68: LARGURA (M) | B68: COMPRIMENTO (M) | C68: ÁREA (M²) | D68: ALTURA ATERRO | E68: VOLUME (M³)
A69: 8 | B69: 14.5 | C69: =A69*B69 -> 116 | D69: 0.10345 | E69: =D69*C69 -> 12.0002
A72: 5.1 EXECUÇÃO DE PASSEIO (CALÇADA) OU PISO DE CONCRETO COM CONCRETO MOLDADO IN LOCO,
A73: FEITO EM OBRA, ACABAMENTO CONVENCIONAL, ESPESSURA 8 CM, ARMADO
A75: LARGURA (M) | B75: COMPRIMENTO (M) | C75: ÁREA(M²)
A76: 1.5 | B76: 1.5 | C76: =B76*A76 -> 2.25
A79: 5.2 PISO CONCRETO ARMADO E= 10 cm - ACADEMIA AO AR LIVRE
A81: LARGURA | B81: COMPRIMENTO | C81: ÁREA (M²)
A82: 8 | B82: 14.5 | C82: =A82*B82 -> 116
A85: 5.3 PISO PODOTÁTIL 25x25 cm
A86: QUATDADE PEÇAS | B86: DIMENSÕES | C86: COMPRIMENTO (M)
A87: 12 | B87: 0.25 | C87: =B87*A87 -> 3
A89: 8.1 PLANTIO DE GRAMA CATARINA COM COMPOSTO ORGANICO
A91: LARGURA (M) | B91: COMPRIMENTO (M) | C91: ÁREA(M²)
A92: 1 | B92: 10 | C92: =B92*A92 -> 10
A94: LARGURA (M) | B94: COMPRIMENTO (M) | C94: ÁREA(M²)
A95: 1 | B95: 10 | C95: =B95*A95 -> 10
A97: LARGURA (M) | B97: COMPRIMENTO (M) | C97: ÁREA(M²)
A98: 1 | B98: 14.5 | C98: =B98*A98 -> 14.5
A100: LARGURA (M) | B100: COMPRIMENTO (M) | C100: ÁREA(M²)
A101: 1 | B101: 13 | C101: =B101*A101 -> 13
A103: LARGURA (M) | B103: COMPRIMENTO (M) | C103: ÁREA(M²)
A104: 1 | B104: 1 | C104: =B104*A104 -> 1
A106: LARGURA (M) | B106: COMPRIMENTO (M) | C106: ÁREA(M²)
A107: 1 | B107: 1 | C107: =B107*A107 -> 1
C109: ATOTAL (M²)
C110: =C92+C95+C98+C101+C104+C107 -> 49.5
A113: 9 EXECUÇÃO DE ACADEMIA AO AR LIVRE PRAÇA IRENE ELISALDE STRICHER
A114: 9.1 DEMOLIÇÃO CHURRASQUEIRA C/REMOÇÃO DE ENTULHOS
A116: LARGURA (M) | B116: COMPRIMENTO (M) | C116: ALTURA(M) | D116: TOTAL
A117: 1.1 | B117: 1.2 | C117: 0.6 | D117: 1 UN
A120: 9.2 DEMOLIÇÃO MESA E BANCOS DE CONCRETO C/REMOÇÃO DE ENTULHOS
A122: LARGURA (M) | B122: COMPRIMENTO (M) | C122: ALTURA(M) | D122: TOTAL
A123: 0.6 | B123: 1.2 | C123: 0.9 | D123: 1 UN
A126: 10.1 TAPUME EM CHAPA DE COMPENSADO RESINADO (L=7,70; C=11,00m e H=2,20M)
A128: LARGURA (M) | B128: COMPRIMENTO (M) | C128: PERÍMETRO (M) | D128: ALTURA H=2,20M | E128: ÁREA(M²)
A129: 7.7 | B129: =1.1*10 -> 11 | C129: =A129*2+B129*2 -> 37.4 | D129: 2.2 | E129: =D129*C129 -> 82.28
A132: 10.6 PLACA DE OBRA (PARA CONSTRUCAO CIVIL) EM CHAPA GALVANIZADA *N. 22*, ADESIVADA, DE *2,0 X 1,125* M
A134: LARGURA (M) | B134: ALTURA (M) | C134: ÁREA(M²)
A135: 2 | B135: 1.25 | C135: =B135*A135 -> 2.5
A138: 10.7 SINALIZAÇÃO COM TELA PLÁSTICA LARANJA FIXADA EM CONE PLÁSTICO
B139: COMPRIMENTO 1 (M)
B140: 22
B142: COMPRIMENTO 2 (M)
B143: 22 | D143: COMPRIMENTO TOTAL (M)
D144: =B140+B143+B146+B149 -> 58
B145: COMPRIMENTO 3 (M)
B146: 7
B148: COMPRIMENTO 4 (M)
B149: 7
A150: SERÁ UTILIZADA NO PERÍMETRO DO PISO DE CONCRETO DA ACADEMIA
A153: 10.8 LOCAÇÃO DE OBRA
A155: PISO ACADEMIA
A156: LARGURA (M) | B156: LARGURA (M) | C156: COMPRIMENTO (M) | D156: COMPRIMENTO (M)
A157: 5 | B157: 5 | C157: 20 | D157: 20
A159: PASSEIO
A160: COMPRIMENTO (M) | B160: COMPRIMENTO (M) | D160: TOTAL LOCAÇÃO (M)
A161: 1 | B161: 1 | D161: =B161+A161+A157+B157+C157+D157 -> 52
A164: 10.9 NIVELAMENTO
A166: ACADEMIA ÁREA (M²) | B166: PASSEIO ÁREA (M²) | C166: GRAMA ÁREA | D166: PODOTAIL ÁREA(M²) | E166: TOTAL (M²)
A167: =C205 -> 100 | B167: =B186 -> 1 | C167: =C186 -> 52 | D167: =16*0.25*0.25 -> 1 | E167: =C167+B167+A167+D167 -> 154
A170: 11.1 ADMINISTRAÇÃO LOCAL
A171: ENGENHEIRO
A172: DIAS | B172: MESES | C172: HORAS / DIA | D172: TOTAL | E172: PERCENTUAL | F172: COEFICIENTE
A173: 22 | B173: 1 | C173: 2 | D173: =C173*A173 -> 44 | E173: 100 | F173: =D173/E173 -> 0.44
A175: ENCARREGADO
A176: PRAZO OBRA | B176: MESES | C176: PERCENTUAL | D176: COEFICIENTE
A177: 30 DIAS | B177: 1 | C177: 100 | D177: =B177/C177 -> 0.01
A179: VIGIA NOTURNO
A180: PRAZO OBRA | B180: HOAS / DIA | C180: TOTAL HORAS | D180: PERCENTUAL | E180: COEFICIENTE
A181: 30 | B181: 10 | C181: =B181*A181 -> 300 | D181: 100 | E181: =C181/D181 -> 3
A183: 12.1 MODELAGEM (MOVIMENTO DE TERRA ATÉ 15CM)
A185: ACADEMIA ÁREA (M²) | B185: PASSEIO ÁREA (M²) | C185: GRAMA ÁREA | D185: PODOTAIL ÁREA(M²) | E185: TOTAL (M²)
A186: =C205 -> 100 | B186: =C199 -> 1 | C186: =C228 -> 52 | D186: =16*0.25*0.25 -> 1 | E186: =C186+B186+A186+D186 -> 154
A189: 12.2 ATERRO MECÂNICO COM MATERIAL IMPORTADO COM COMPACTAÇÃO MECÂNICA
A191: LARGURA | B191: COMPRIMENTO | C191: ÁREA (M²) | D191: ALTURA ATERRO | E191: VOLUME (M³)
A192: 5 | B192: 10 | C192: =A192*B192 -> 50 | D192: 0.05 | E192: =D192*C192 -> 2.5
A195: 13.1 EXECUÇÃO DE PASSEIO (CALÇADA) OU PISO DE CONCRETO COM CONCRETO MOLDADO IN LOCO,
A196: FEITO EM OBRA, ACABAMENTO CONVENCIONAL, ESPESSURA 8 CM, ARMADO
A198: LARGURA (M) | B198: COMPRIMENTO (M) | C198: ÁREA(M²)
A199: 2 | B199: 0.5 | C199: =B199*A199 -> 1
A202: 13.2 PISO CONCRETO ARMADO E= 10 cm - ACADEMIA AO AR LIVRE
A204: LARGURA | B204: COMPRIMENTO | C204: ÁREA (M²)
A205: 5 | B205: 20 | C205: =A205*B205 -> 100
A208: 13.3 PISO PODOTÁTIL 25x25 cm
A209: QUATDADE PEÇAS | B209: DIMENSÕES | C209: COMPRIMENTO (M)
A210: 16 | B210: 0.25 | C210: =B210*A210 -> 4
A213: 16.1 PLANTIO DE GRAMA CATARINA COM COMPOSTO ORGÂNICO
A215: LARGURA (M) | B215: COMPRIMENTO (M) | C215: ÁREA(M²)
A216: 1 | B216: 20 | C216: =B216*A216 -> 20
A218: LARGURA (M) | B218: COMPRIMENTO (M) | C218: ÁREA(M²)
A219: 1 | B219: 18 | C219: =B219*A219 -> 18
A221: LARGURA (M) | B221: COMPRIMENTO (M) | C221: ÁREA(M²)
A222: 1 | B222: 7 | C222: =B222*A222 -> 7
A224: LARGURA (M) | B224: COMPRIMENTO (M) | C224: ÁREA(M²)
A225: 1 | B225: 7 | C225: =B225*A225 -> 7
C227: ATOTAL (M²)
C228: =C225+C222+C219+C216 -> 52
A231: 17 EXECUÇÃO DE ACADEMIA AO AR LIVRE PRAÇA JOSÉ MARIANO DE FREITAS BECK
A233: 17.1 REMOÇÃO DE PASSEIOS - SEM REMOÇÃO DE ENTULHOS
A235: LADO ESQUERDO
A236: LARGURA (m) | B236: COMPRIMENTO (m) | C236: ÁREA(M²)
A237: 1 | B237: 2 | C237: =B237*A237 -> 2
E238: ÁREA TOTAL
A239: LADO DIREITO | E239: =C237+C241+C245 -> 7
A240: LARGURA (m) | B240: COMPRIMENTO (m) | C240: ÁREA(M²)
A241: 1 | B241: 2 | C241: =B241*A241 -> 2
A243: PISO CONCRETO
A244: LARGURA (m) | B244: COMPRIMENTO (m) | C244: ÁREA(M²)
A245: 1.5 | B245: 2 | C245: =B245*A245 -> 3
A247: 17.2 REMOÇÃO DE ENTULHOS COM CAÇAMBA 4M³
A248: REFERE-SE AO DESCARTE DE ENTUHLO ORIUNDO DA DEMOLIÇÃO DE PARTE DO PASSEIO GRES
A250: ÁREA TOTAL (M²) | B250: ESPESSURA (M) | C250: VOLUME (M³) | D250: EMPLOLAM(25%) | E250: TOTAL VOLUME (M³)
A251: =E239 -> 7 | B251: 0.08 | C251: =B251*A251 -> 0.56 | D251: =C251*0.24 -> 0.1344 | E251: =D251+C251 -> 0.6944
A254: 18.1 TAPUME EM CHAPA DE COMPENSADO RESINADO (L=7,70m; C=11,00 m e H=2,20M)
A256: LARGURA (M) | B256: COMPRIMENTO (M) | C256: PERÍMETRO (M) | D256: ALTURA H=2,20M | E256: ÁREA(M²)
A257: 7.7 | B257: 11 | C257: =A257*2+B257*2 -> 37.4 | D257: 2.2 | E257: =D257*C257 -> 82.28
A260: 18.6 PLACA DE OBRA (PARA CONSTRUCAO CIVIL) EM CHAPA GALVANIZADA *N. 22*, ADESIVADA, DE *2,0 X 1,125* M
A262: LARGURA (M) | B262: ALTURA (M) | C262: ÁREA(M²)
A263: 2 | B263: 1.25 | C263: =B263*A263 -> 2.5
A266: 18.7 SINALIZAÇÃO COM TELA PLÁSTICA LARANJA FIXADA EM CONE PLÁSTICO
A268: LARGURA 1 (M) | B268: COMPRIMENTO 1 (M) | C268: COMPRIMENTO 1
A269: 11 | B269: 16.5 | C269: =B269+A269 -> 27.5
A271: LARGURA 2 (M) | B271: COMPRIMENTO 2 (M) | C271: COMPRIMENTO 2
A272: 11 | B272: 16.5 | C272: =B272+A272 -> 27.5
C274: COMPRIM TOTAL
C275: =C272+C269 -> 55
A278: 18.8 LOCAÇÃO DE OBRA
A280: PISO ACADEMIA
A281: LARGURA (M) | B281: LARGURA (M) | C281: COMPRIMENTO (M) | D281: COMPRIMENTO (M)
A282: 9 | B282: 9 | C282: 14.5 | D282: 14.5
A284: PASSEIO
A285: COMPRIMENTO (M) | B285: COMPRIMENTO (M) | D285: TOTAL LOCAÇÃO (M)
A286: 2 | B286: 2 | D286: =B286+A286+A282+B282+C282+D282 -> 51
A289: 18.9 NIVELAMENTO
A291: ACADEMIA ÁREA | B291: PASSEIO ÁREA | C291: GRAMA ÁREA | D291: PODOTAIL ÁREA | E291: TOTAL (M²)
A292: =C330 -> 130.5 | B292: =B311 -> 3 | C292: =C311 -> 49.5 | D292: =6*0.25*0.25 -> 0.375 | E292: =C292+B292+A292+D292 -> 183.375
A295: 19.1 ADMINISTRAÇÃO LOCAL
A296: ENGENHEIRO
A297: DIAS | B297: MESES | C297: HORAS / DIA | D297: TOTAL | E297: PERCENTUAL | F297: COEFICIENTE
A298: 22 | B298: 1 | C298: 2 | D298: =C298*A298 -> 44 | E298: 100 | F298: =D298/E298 -> 0.44
A300: ENCARREGADO
A301: PRAZO OBRA | B301: MESES | C301: PERCENTUAL | D301: COEFICIENTE
A302: 30 DIAS | B302: 1 | C302: 100 | D302: =B302/C302 -> 0.01
A304: VIGIA NOTURNO
A305: PRAZO OBRA | B305: HOAS / DIA | C305: TOTAL HORAS | D305: PERCENTUAL | E305: COEFICIENTE
A306: 30 | B306: 10 | C306: =B306*A306 -> 300 | D306: 100 | E306: =C306/D306 -> 3
A308: 20.1 MODELAGEM (MOVIMENTO DE TERRA ATÉ 15CM)
A310: ACADEMIA ÁREA | B310: PASSEIO ÁREA | C310: GRAMA ÁREA | D310: PODOTAIL ÁREA | E310: TOTAL (M²)
A311: =C330 -> 130.5 | B311: =C324 -> 3 | C311: =C363 -> 49.5 | D311: =6*0.25*0.25 -> 0.375 | E311: =C311+B311+A311+D311 -> 183.375
A314: 20.2 ATERRO MECÂNICO COM MATERIAL IMPORTADO COM COMPACTAÇÃO MECÂNICA
A316: LARGURA | B316: COMPRIMENTO | C316: ÁREA (M²) | D316: ALTURA ATERRO | E316: VOLUME (M³)
A317: 9 | B317: 14.5 | C317: =A317*B317 -> 130.5 | D317: 0.1 | E317: =D317*C317 -> 13.05
A320: 21.1 EXECUÇÃO DE PASSEIO (CALÇADA) OU PISO DE CONCRETO COM CONCRETO MOLDADO IN LOCO,
A321: FEITO EM OBRA, ACABAMENTO CONVENCIONAL, ESPESSURA 8 CM, ARMADO
A323: LARGURA (M) | B323: COMPRIMENTO (M) | C323: ÁREA(M²)
A324: 1.5 | B324: 2 | C324: =B324*A324 -> 3
A327: 21.2 PISO CONCRETO ARMADO E= 10 cm - ACADEMIA AO AR LIVRE
A329: LARGURA | B329: COMPRIMENTO | C329: ÁREA (M²)
A330: 9 | B330: 14.5 | C330: =A330*B330 -> 130.5
A333: 21.3 LAJE DE GRÊS ASSENTADA NA AREIA
A335: LADO ESQUERDO
... 20 more rows

Sheet Composições Aux. SINAPI
A1: COMPOSIÇÕES AUXILIARES
A3: Data Base SINAPI: JUNHO 2021 - Data Base das Cotações: Junho 2021
A6: =+'Planilha_M.O.'!$D$5 -> s/desoneração | C6: Leis Sociais Horistas: | D6: =+'Planilha_M.O.'!$D$7 -> 1.111 | E6: BDI= | F6: =+'Planilha_M.O.'!$F$7 -> 22,15%
C7: Leis Sociais Mensalistas: | D7: =+'Planilha_M.O.'!$D$8 -> 0.6916
A9: =+E16 -> JUNHO / 2021 | C9: Vem da aba Comp.SINAPI c_des. | D9: Vem da aba Comp.SINAPI s_des. | E9: Valor utilizado na composição
A16: Código SINAPI | B16: Composição | C16: Custo (c/desoneração) | D16: Custo (s/desoneração) | E16: =+'Planilha_M.O.'!$E$17 -> JUNHO / 2021
A17: 87292 | B17: ARGAMASSA TRAÇO 1:2:8 (EM VOLUME DE CIMENTO, CAL E AREIA MÉDIA ÚMIDA) PARA EMBOÇO/MASSA ÚNICA/ASSENTAMENTO DE ALVENARIA DE VEDAÇÃO, PREPARO MECÂNICO COM BETONEIRA 400 L. AF_08/2019 | C17: 399.47 | D17: 410.14 | E17: =IF('Planilha_M.O.'!$D$5="c/desoneração",C17,(IF('Planilha_M.O.'!$D$5="s/desoneração",D17))) -> 410.14
A18: 87313 | B18: ARGAMASSA TRAÇO 1:3 (EM VOLUME DE CIMENTO E AREIA GROSSA ÚMIDA) PARA CHAPISCO CONVENCIONAL, PREPARO MECÂNICO COM BETONEIRA 400 L. AF_08/2019 | C18: 416.61 | D18: 426.85 | E18: =IF('Planilha_M.O.'!$D$5="c/desoneração",C18,(IF('Planilha_M.O.'!$D$5="s/desoneração",D18))) -> 426.85
A19: 87335 | B19: ARGAMASSA TRAÇO 1:2:8 (CIMENTO, CAL E AREIA MÉDIA) PARA EMBOÇO/MASSA ÚNICA/ASSENTAMENTO DE ALVENARIA DE VEDAÇÃO, PREPARO MECÂNICO | C19: 395.78 | D19: 407.54 | E19: =IF('Planilha_M.O.'!$D$5="c/desoneração",C19,(IF('Planilha_M.O.'!$D$5="s/desoneração",D19))) -> 407.54
A20: 87369 | B20: ARGAMASSA TRAÇO 1:2:8 (EM VOLUME DE CIMENTO, CAL E AREIA MÉDIA ÚMIDA) PARA EMBOÇO/MASSA ÚNICA/ASSENTAMENTO DE ALVENARIA DE VEDAÇÃO, PREPARO MANUAL. AF_08/2019 | C20: 479.13 | D20: 498.67 | E20: =IF('Planilha_M.O.'!$D$5="c/desoneração",C20,(IF('Planilha_M.O.'!$D$5="s/desoneração",D20))) -> 498.67
A21: 88629 | B21: ARGAMASSA TRAÇO 1:3 (CIMENTO E AREIA MÉDIA), PREPARO MANUAL | C21: 513.4 | D21: 528.49 | E21: =IF('Planilha_M.O.'!$D$5="c/desoneração",C21,(IF('Planilha_M.O.'!$D$5="s/desoneração",D21))) -> 528.49
A22: 88630 | B22: ARGAMASSA TRAÇO 1:4 (CIMENTO E AREIA MÉDIA), PREPARO MECÂNICO COM BETONEIRA 400 L | C22: 372.59 | D22: 380.55 | E22: =IF('Planilha_M.O.'!$D$5="c/desoneração",C22,(IF('Planilha_M.O.'!$D$5="s/desoneração",D22))) -> 380.55
A23: 88631 | B23: ARGAMASSA TRAÇO 1:4 (EM VOLUME DE CIMENTO E AREIA MÉDIA ÚMIDA), PREPARO MANUAL | C23: 453.47 | D23: 468.06 | E23: =IF('Planilha_M.O.'!$D$5="c/desoneração",C23,(IF('Planilha_M.O.'!$D$5="s/desoneração",D23))) -> 468.06
A24: 100578 | B24: ASSENTAMENTO DE POSTE DE CONCRETO COM COMPRIMENTO NOMINAL DE 9 m | C24: 400.08 | D24: 412.48 | E24: =IF('Planilha_M.O.'!$D$5="c/desoneração",C24,(IF('Planilha_M.O.'!$D$5="s/desoneração",D24))) -> 412.48
A25: 88830 | B25: BETONEIRA 400 l, POTÊNCIA 2 cv, SEM CARREGADOR (chp) | C25: 1.65 | D25: 1.65 | E25: =IF('Planilha_M.O.'!$D$5="c/desoneração",C25,(IF('Planilha_M.O.'!$D$5="s/desoneração",D25))) -> 1.65
A26: 88831 | B26: BETONEIRA 400 l, POTÊNCIA 2 cv, SEM CARREGADOR (chi) | C26: 0.28 | D26: 0.28 | E26: =IF('Planilha_M.O.'!$D$5="c/desoneração",C26,(IF('Planilha_M.O.'!$D$5="s/desoneração",D26))) -> 0.28
A27: 91933 | B27: CABO DE COBRE FLEXÍVEL ISOLADO, 10 mm², ANTI-CHAMA 0,6/1,0 kV | C27: 15.88 | D27: 16.22 | E27: =IF('Planilha_M.O.'!$D$5="c/desoneração",C27,(IF('Planilha_M.O.'!$D$5="s/desoneração",D27))) -> 16.22
A28: 95676 | B28: CAIXA EM CONCRETO PRÉ-MOLDADO PARA ABRIGO DE HIDRÔMETRO COM DN 20 (½) | C28: 92.66 | D28: 93.49 | E28: =IF('Planilha_M.O.'!$D$5="c/desoneração",C28,(IF('Planilha_M.O.'!$D$5="s/desoneração",D28))) -> 93.49
A29: 91387 | B29: CAMINHÃO BASCULANTE 10 M3, TRUCADO CABINE SIMPLES, PESO BRUTO TOTAL 23.000 KG, CARGA ÚTIL MÁXIMA 15.935 KG, DISTÂNCIA ENTRE EIXOS 4,80 M, POTÊNCIA 230 CV INCLUSIVE CAÇAMBA METÁLICA - CHI DIURNO. AF_06/2014 | C29: 44.73 | D29: 47.29 | E29: =IF('Planilha_M.O.'!$D$5="c/desoneração",C29,(IF('Planilha_M.O.'!$D$5="s/desoneração",D29))) -> 47.29
A30: 91386 | B30: CAMINHÃO BASCULANTE 10 M3, TRUCADO CABINE SIMPLES, PESO BRUTO TOTAL 23.000 KG, CARGA ÚTIL MÁXIMA 15.935 KG, DISTÂNCIA ENTRE EIXOS 4,80 M, POTÊNCIA 230 CV INCLUSIVE CAÇAMBA METÁLICA - CHP DIURNO. AF_06/2014 | C30: 183.24 | D30: 185.8 | E30: =IF('Planilha_M.O.'!$D$5="c/desoneração",C30,(IF('Planilha_M.O.'!$D$5="s/desoneração",D30))) -> 185.8
A31: 91383 | B31: CAMINHÃO BASCULANTE 10 M3, TRUCADO CABINE SIMPLES, PESO BRUTO TOTAL 23.000 KG, CARGA ÚTIL MÁXIMA 15.935 KG, DISTÂNCIA ENTRE EIXOS 4,80 M, POTÊNCIA 230 CV INCLUSIVE CAÇAMBA METÁLICA - MANUTENÇÃO. AF_06/2014 | C31: 37.55 | D31: 37.55 | E31: =IF('Planilha_M.O.'!$D$5="c/desoneração",C31,(IF('Planilha_M.O.'!$D$5="s/desoneração",D31))) -> 37.55
A32: 91533 | B32: COMPACTADOR DE SOLOS DE PERCUSSÃO C/MOTOR A GASOLINA, POTÊNCIA 4 cv (chp) | C32: 29.27 | D32: 32.03 | E32: =IF('Planilha_M.O.'!$D$5="c/desoneração",C32,(IF('Planilha_M.O.'!$D$5="s/desoneração",D32))) -> 32.03
A33: 91534 | B33: COMPACTADOR DE SOLOS DE PERCUSSÃO C/MOTOR A GASOLINA, POTÊNCIA 4 cv (chi) | C33: 22.05 | D33: 24.83 | E33: =IF('Planilha_M.O.'!$D$5="c/desoneração",C33,(IF('Planilha_M.O.'!$D$5="s/desoneração",D33))) -> 24.83
A34: 5953 | B34: COMPRESSOR DE AR REBOCÁVEL, VAZÃO 189 PCM, PRESSÃO EFETIVA DE TRABALHO 102 PSI, MOTOR DIESEL, POTÊNCIA 63 CV - CHP DIURNO | C34: 41.39 | D34: 41.39 | E34: =IF('Planilha_M.O.'!$D$5="c/desoneração",C34,(IF('Planilha_M.O.'!$D$5="s/desoneração",D34))) -> 41.39
A35: 5954 | B35: COMPRESSOR DE AR REBOCÁVEL, VAZÃO 189 PCM, PRESSÃO EFETIVA DE TRABALHO 102 PSI, MOTOR DIESEL, POTÊNCIA 63 CV - CHI DIURNO | C35: 3.73 | D35: 3.73 | E35: =IF('Planilha_M.O.'!$D$5="c/desoneração",C35,(IF('Planilha_M.O.'!$D$5="s/desoneração",D35))) -> 3.73
A36: 94962 | B36: CONCRETO MAGRO PARA LASTRO, TRAÇO 1:4,5:4,5 (EM MASSA SECA DE CIMENTO/ AREIA MÉDIA/ BRITA 1) - PREPARO MECÂNICO COM BETONEIRA 400 L. AF_05/2021 | C36: 286.89 | D36: 294.53 | E36: =IF('Planilha_M.O.'!$D$5="c/desoneração",C36,(IF('Planilha_M.O.'!$D$5="s/desoneração",D36))) -> 294.53
A37: 94963 | B37: CONCRETO fck = 15MPa, TRAÇO 1:3,4:3,5 (CIMENTO/ AREIA MÉDIA/ BRITA 1) - PREPARO MECÂNICO COM BETONEIRA 400 l | C37: 324.74 | D37: 332.32 | E37: =IF('Planilha_M.O.'!$D$5="c/desoneração",C37,(IF('Planilha_M.O.'!$D$5="s/desoneração",D37))) -> 332.32
A38: 94964 | B38: CONCRETO FCK = 20MPA, TRAÇO 1:2,7:3 (CIMENTO/ AREIA MÉDIA/ BRITA 1) - PREPARO MECÂNICO COM BETONEIRA 400 L. AF_07/2016 | C38: 360.31 | D38: 368.57 | E38: =IF('Planilha_M.O.'!$D$5="c/desoneração",C38,(IF('Planilha_M.O.'!$D$5="s/desoneração",D38))) -> 368.57
A39: 91283 | B39: CORTADORA DE PISO, POTÊNCIA 13 hp, C/DISCO DE CORTE DIAMANTADO 350 mm (chp) | C39: 21.82 | D39: 21.82 | E39: =IF('Planilha_M.O.'!$D$5="c/desoneração",C39,(IF('Planilha_M.O.'!$D$5="s/desoneração",D39))) -> 21.82
A40: 91285 | B40: CORTADORA DE PISO, POTÊNCIA 13 hp, C/DISCO DE CORTE DIAMANTADO 350 mm (chi) | C40: 0.84 | D40: 0.84 | E40: =IF('Planilha_M.O.'!$D$5="c/desoneração",C40,(IF('Planilha_M.O.'!$D$5="s/desoneração",D40))) -> 0.84
A41: 92791 | B41: CORTE E DOBRA DE AÇO CA-60, DIÂMETRO DE 5,0 MM, UTILIZADO EM ESTRUTURAS DIVERSAS, EXCETO LAJES (4,2 mm, 5 mm, 6 mm e 7 mm) | C41: 13.82 | D41: 14 | E41: =IF('Planilha_M.O.'!$D$5="c/desoneração",C41,(IF('Planilha_M.O.'!$D$5="s/desoneração",D41))) -> 14
A42: 92794 | B42: CORTE E DOBRA DE AÇO CA-50, DIÂMETRO DE 10,0 MM, UTILIZADO EM ESTRUTURAS DIVERSAS, EXCETO LAJES | C42: 13.68 | D42: 13.71 | E42: =IF('Planilha_M.O.'!$D$5="c/desoneração",C42,(IF('Planilha_M.O.'!$D$5="s/desoneração",D42))) -> 13.71
A43: 96977 | B43: CORDOALHA DE COBRE NU 50 mm², ENTERRADA, SEM ISOLADOR | C43: 49.98 | D43: 50.13 | E43: =IF('Planilha_M.O.'!$D$5="c/desoneração",C43,(IF('Planilha_M.O.'!$D$5="s/desoneração",D43))) -> 50.13
A44: 91917 | B44: CURVA 90° PARA ELETRODUTO, PVC, ROSCÁVEL, DN 32 mm (1") | C44: 13.83 | D44: 14.99 | E44: =IF('Planilha_M.O.'!$D$5="c/desoneração",C44,(IF('Planilha_M.O.'!$D$5="s/desoneração",D44))) -> 14.99
A45: 91919 | B45: CURVA 180° P/ELETRODUTO, PVC, ROSCÁVEL, DN 32 mm (1") | C45: 15.82 | D45: 16.98 | E45: =IF('Planilha_M.O.'!$D$5="c/desoneração",C45,(IF('Planilha_M.O.'!$D$5="s/desoneração",D45))) -> 16.98
A46: 95282 | B46: DESEMPENADEIRA DE CONCRETO, PESO DE 75KG, 4 PÁS, MOTOR A GASOLINA, POTÊNCIA 5,5 HP - CHP DIURNO | C46: 9.33 | D46: 9.33 | E46: =IF('Planilha_M.O.'!$D$5="c/desoneração",C46,(IF('Planilha_M.O.'!$D$5="s/desoneração",D46))) -> 9.33
A47: 95283 | B47: DESEMPENADEIRA DE CONCRETO, PESO DE 75KG, 4 PÁS, MOTOR A GASOLINA, POTÊNCIA 5,5 HP - CHI DIURNO | C47: 0.49 | D47: 0.49 | E47: =IF('Planilha_M.O.'!$D$5="c/desoneração",C47,(IF('Planilha_M.O.'!$D$5="s/desoneração",D47))) -> 0.49
A48: 93673 | B48: DISJUNTOR TRIPOLAR TIPO DIN, CORRENTE NOMINAL DE 50 A | C48: 91.7 | D48: 94.12 | E48: =IF('Planilha_M.O.'!$D$5="c/desoneração",C48,(IF('Planilha_M.O.'!$D$5="s/desoneração",D48))) -> 94.12
A49: 91872 | B49: ELETRODUTO RÍGIDO ROSCÁVEL, PVC, DN 32 mm (1"), PARA CIRCUITOS TERMINAIS | C49: 14.14 | D49: 14.97 | E49: =IF('Planilha_M.O.'!$D$5="c/desoneração",C49,(IF('Planilha_M.O.'!$D$5="s/desoneração",D49))) -> 14.97
A50: 93358 | B50: ESCAVAÇÃO MANUAL DE VALA COM PROFUNDIDADE MENOR OU IGUAL A 1,30 M | C50: 60.72 | D50: 67.68 | E50: =IF('Planilha_M.O.'!$D$5="c/desoneração",C50,(IF('Planilha_M.O.'!$D$5="s/desoneração",D50))) -> 67.68
A51: 93402 | B51: GUINDAUTO HIDRÁULICO, CAP. 3.330 kg, INCLUSIVE CAMINHÃO TOCO (chp) | C51: 174.94 | D51: 177.73 | E51: =IF('Planilha_M.O.'!$D$5="c/desoneração",C51,(IF('Planilha_M.O.'!$D$5="s/desoneração",D51))) -> 177.73
A52: 96986 | B52: HASTE DE ATERRAMENTO 3/4" PARA SPDA | C52: 100.88 | D52: 102.57 | E52: =IF('Planilha_M.O.'!$D$5="c/desoneração",C52,(IF('Planilha_M.O.'!$D$5="s/desoneração",D52))) -> 102.57
A53: 89358 | B53: JOELHO 90 GRAUS, PVC, SOLDÁVEL, DN 20MM - FORNECIMENTO E INSTALAÇÃO | C53: 5.89 | D53: 6.38 | E53: =IF('Planilha_M.O.'!$D$5="c/desoneração",C53,(IF('Planilha_M.O.'!$D$5="s/desoneração",D53))) -> 6.38
A54: 89971 | B54: KIT DE REGISTRO DE GAVETA BRUTO DE LATÃO ½", INCLUSIVE CONEXÕES, ROSCÁVEL | C54: 49.13 | D54: 50.53 | E54: =IF('Planilha_M.O.'!$D$5="c/desoneração",C54,(IF('Planilha_M.O.'!$D$5="s/desoneração",D54))) -> 50.53
A55: 99833 | B55: LAVADORA DE ALTA PRESSÃO (LAVA-JATO) PARA ÁGUA FRIA, PRESSÃO DE OPERAÇÃO ENTRE 1400 E 1900 LIB/POL², VAZÃO MÁXIMA ENTRE 400 E 700 L/H - CHP DIURNO | C55: 1.43 | D55: 1.43 | E55: =IF('Planilha_M.O.'!$D$5="c/desoneração",C55,(IF('Planilha_M.O.'!$D$5="s/desoneração",D55))) -> 1.43
A56: 92873 | B56: LANÇAMENTO COM USO DE BALDES, ADENSAMENTO E ACABAMENTO DE CONCRETO EM ESTRUTURAS. AF_12/2015 | C56: 154.5 | D56: 172.47 | E56: =IF('Planilha_M.O.'!$D$5="c/desoneração",C56,(IF('Planilha_M.O.'!$D$5="s/desoneração",D56))) -> 172.47
A57: 99058 | B57: LOCAÇÃO DE PONTO PARA REFERÊNCIA TOPOGRÁFICA | C57: 9.15 | D57: 10.33 | E57: =IF('Planilha_M.O.'!$D$5="c/desoneração",C57,(IF('Planilha_M.O.'!$D$5="s/desoneração",D57))) -> 10.33
A58: 91885 | B58: LUVA PARA ELETRODUTO, PVC, ROSCÁVEL, DN 32 mm (1") | C58: 8.11 | D58: 8.88 | E58: =IF('Planilha_M.O.'!$D$5="c/desoneração",C58,(IF('Planilha_M.O.'!$D$5="s/desoneração",D58))) -> 8.88
A59: 5795 | B59: MARTELETE OU ROMPEDOR PNEUMÁTICO MANUAL, 28 KG, COM SILENCIADOR - CHP DIURNO | C59: 23.81 | D59: 26.44 | E59: =IF('Planilha_M.O.'!$D$5="c/desoneração",C59,(IF('Planilha_M.O.'!$D$5="s/desoneração",D59))) -> 26.44
A60: 5952 | B60: MARTELETE OU ROMPEDOR PNEUMÁTICO MANUAL, 28 KG, COM SILENCIADOR - CHI DIURNO | C60: 21.81 | D60: 24.44 | E60: =IF('Planilha_M.O.'!$D$5="c/desoneração",C60,(IF('Planilha_M.O.'!$D$5="s/desoneração",D60))) -> 24.44
A61: 97064 | B61: MONTAGEM E DESMONTAGEM DE ANDAIME TUBULAR TIPO TORRE (EXCLUSIVE ANDAIME E LIMPEZA) | C61: 14.38 | D61: 16.16 | E61: =IF('Planilha_M.O.'!$D$5="c/desoneração",C61,(IF('Planilha_M.O.'!$D$5="s/desoneração",D61))) -> 16.16
A62: 5940 | B62: PÁ CARREGADEIRA SOBRE RODAS, POTÊNCIA LÍQUIDA 128 HP, CAPACIDADE DA CAÇAMBA 1,7 A 2,8 M3, PESO OPERACIONAL 11632 KG - CHP DIURNO. AF_06/2014 | C62: 144.08 | D62: 147.06 | E62: =IF('Planilha_M.O.'!$D$5="c/desoneração",C62,(IF('Planilha_M.O.'!$D$5="s/desoneração",D62))) -> 147.06
A63: 5942 | B63: PÁ CARREGADEIRA SOBRE RODAS, POTÊNCIA LÍQUIDA 128 HP, CAPACIDADE DA CAÇAMBA 1,7 A 2,8 M3, PESO OPERACIONAL 11632 KG - CHI DIURNO. AF_06/2014 | C63: 53.18 | D63: 56.16 | E63: =IF('Planilha_M.O.'!$D$5="c/desoneração",C63,(IF('Planilha_M.O.'!$D$5="s/desoneração",D63))) -> 56.16
A64: 91277 | B64: PLACA VIBRATÓRIA REVERSÍVEL, POTÊNCIA 5,5 cv (chp) | C64: 9.84 | D64: 9.84 | E64: =IF('Planilha_M.O.'!$D$5="c/desoneração",C64,(IF('Planilha_M.O.'!$D$5="s/desoneração",D64))) -> 9.84
A65: 91278 | B65: PLACA VIBRATÓRIA REVERSÍVEL, POTÊNCIA 5,5 cv (chi) | C65: 0.7 | D65: 0.7 | E65: =IF('Planilha_M.O.'!$D$5="c/desoneração",C65,(IF('Planilha_M.O.'!$D$5="s/desoneração",D65))) -> 0.7
A66: 5678 | B66: RETROESCAVADEIRA SOBRE RODAS, POTÊNCIA 88 hp (chp) | C66: 107.63 | D66: 110.93 | E66: =IF('Planilha_M.O.'!$D$5="c/desoneração",C66,(IF('Planilha_M.O.'!$D$5="s/desoneração",D66))) -> 110.93
A67: 5679 | B67: RETROESCAVADEIRA SOBRE RODAS, POTÊNCIA 88 hp (chi) | C67: 45.92 | D67: 49.22 | E67: =IF('Planilha_M.O.'!$D$5="c/desoneração",C67,(IF('Planilha_M.O.'!$D$5="s/desoneração",D67))) -> 49.22
A68: 5684 | B68: ROLO COMPACTADOR VIBRATÓRIO DE UM CILINDRO AÇO LISO, POTÊNCIA 80 hp, PESO OPERACIONAL MÁXIMO 8,1 T, LARGURA DE TRABALHO 1,68 m (chp) | C68: 108.62 | D68: 110.98 | E68: =IF('Planilha_M.O.'!$D$5="c/desoneração",C68,(IF('Planilha_M.O.'!$D$5="s/desoneração",D68))) -> 110.98
A69: 5685 | B69: ROLO COMPACTADOR VIBRATÓRIO DE UM CILINDRO AÇO LISO, POTÊNCIA 80 hp, PESO OPERACIONAL MÁXIMO 8,1 T, LARGURA DE TRABALHO 1,68 m (chi) | C69: 41.96 | D69: 44.32 | E69: =IF('Planilha_M.O.'!$D$5="c/desoneração",C69,(IF('Planilha_M.O.'!$D$5="s/desoneração",D69))) -> 44.32
A70: 5867 | B70: ROLO COMPACTADOR VIBRATÓRIO TANDEM AÇO LISO, POTÊNCIA 58 hp, PESO SEM/COM LASTRO 6,5 / 9,4 t, LARGURA DE TRABALHO 1,2 m (chp) | C70: 107.71 | D70: 111.07 | E70: =IF('Planilha_M.O.'!$D$5="c/desoneração",C70,(IF('Planilha_M.O.'!$D$5="s/desoneração",D70))) -> 111.07
A71: 5869 | B71: ROLO COMPACTADOR VIBRATÓRIO TANDEM AÇO LISO, POTÊNCIA 58 hp, PESO SEM/COM LASTRO 6,5 / 9,4 t, LARGURA DE TRABALHO 1,2 m (chi) | C71: 47.34 | D71: 49.7 | E71: =IF('Planilha_M.O.'!$D$5="c/desoneração",C71,(IF('Planilha_M.O.'!$D$5="s/desoneração",D71))) -> 49.7
A72: 91692 | B72: SERRA CIRCULAR DE BANCADA COM MOTOR ELÉTRICO POTÊNCIA DE 5HP, COM COIFA PARA DISCO 10" - CHP DIURNO | C72: 24.05 | D72: 26.83 | E72: =IF('Planilha_M.O.'!$D$5="c/desoneração",C72,(IF('Planilha_M.O.'!$D$5="s/desoneração",D72))) -> 26.83
A73: 91693 | B73: SERRA CIRCULAR DE BANCADA COM MOTOR ELÉTRICO POTÊNCIA DE 5HP, COM COIFA PARA DISCO 10" - CHI DIURNO | C73: 21.11 | D73: 23.89 | E73: =IF('Planilha_M.O.'!$D$5="c/desoneração",C73,(IF('Planilha_M.O.'!$D$5="s/desoneração",D73))) -> 23.89
A74: 86913 | B74: TORNEIRA CROMADA 1/2" OU 3/4" PARA TANQUE, PADRÃO POPULAR | C74: 27.28 | D74: 27.71 | E74: =IF('Planilha_M.O.'!$D$5="c/desoneração",C74,(IF('Planilha_M.O.'!$D$5="s/desoneração",D74))) -> 27.71
A75: 95875 | B75: TRANSPORTE COM CAMINHÃO BASCULANTE DE 10 M³, EM VIA URBANA PAVIMENTADA, DMT ATÉ 30 KM (UNIDADE: M3XKM) | C75: 1.68 | D75: 1.71 | E75: =IF('Planilha_M.O.'!$D$5="c/desoneração",C75,(IF('Planilha_M.O.'!$D$5="s/desoneração",D75))) -> 1.71
A76: 89401 | B76: TUBO, PVC, SOLDÁVEL, DN 20MM - FORNECIMENTO E INSTALAÇÃO | C76: 7.26 | D76: 7.63 | E76: =IF('Planilha_M.O.'!$D$5="c/desoneração",C76,(IF('Planilha_M.O.'!$D$5="s/desoneração",D76))) -> 7.63
A77: 90586 | B77: VIBRADOR DE IMERSÃO, DIÂMETRO DE PONTEIRA 45 mm, MOTOR ELÉTRICO TRIFÁSICO POTÊNCIA DE 2 CV - CHP DIURNO | C77: 1.79 | D77: 1.79 | E77: =IF('Planilha_M.O.'!$D$5="c/desoneração",C77,(IF('Planilha_M.O.'!$D$5="s/desoneração",D77))) -> 1.79
A78: 90587 | B78: VIBRADOR DE IMERSÃO, DIÂMETRO DE PONTEIRA 45 mm MOTOR ELÉTRICO TRIFÁSICO POTÊNCIA DE 2 CV - CHI DIURNO | C78: 0.39 | D78: 0.39 | E78: =IF('Planilha_M.O.'!$D$5="c/desoneração",C78,(IF('Planilha_M.O.'!$D$5="s/desoneração",D78))) -> 0.39

Sheet Planilha_M.O.
A1: PLANILHA MÃO-DE-OBRA
A3: =CONCATENATE("Data Base SINAPI: ",$E$17) -> Data Base SINAPI: JUNHO / 2021
C5: SELECIONAR: | D5: s/desoneração
A7: =D5 -> s/desoneração | C7: Leis Sociais Horistas: | D7: =IF($D$5="c/desoneração",'Encargos Sociais'!C42,'Encargos Sociais'!E42) -> 1.111 | E7: BDI= | F7: =IF($D$5="c/desoneração","28,21%","22,15%") -> 22,15%
C8: Leis Sociais Mensalistas: | D8: =IF($D$5="c/desoneração",'Encargos Sociais'!D42,'Encargos Sociais'!F42) -> 0.6916
A10: =+E17 -> JUNHO / 2021 | C10: Vem da aba Comp.SINAPI c_des. | D10: Vem da aba Comp.SINAPI s_des. | E10: Valor utilizado
A17: Código | B17: Composição | C17: Custo unitário (c/desoneração) | D17: Custo unitário (s/desoneração) | E17: JUNHO / 2021
A18: 88316 | B18: Servente | C18: 15.35 | D18: 17.11 | E18: =IF($D$5="c/desoneração",C18,(IF($D$5="s/desoneração",D18))) -> 17.11
A19: 88238 | B19: Ajudante de armador | C19: 14.11 | D19: 15.67 | E19: 15.67
A20: 88239 | B20: Ajudante de carpinteiro | C20: 15.31 | D20: 17.06 | E20: 17.06
A21: 88253 | B21: Auxiliar de topógrafo | C21: 11.98 | D21: 13.69 | E21: 13.69
A22: 88248 | B22: Auxiliar de encanador | C22: 13.98 | D22: 15.58 | E22: 15.58
A23: 88251 | B23: Auxiliar de serralheiro | C23: 14.83 | D23: 16.49 | E23: 16.49
A24: 88309 | B24: Pedreiro | C24: 18.48 | D24: 20.71 | E24: 20.71
A25: 88310 | B25: Pintor | C25: 19.48 | D25: 21.7 | E25: 21.7
A26: 88262 | B26: Carpinteiro | C26: 18.28 | D26: 20.5 | E26: 20.5
A27: 88260 | B27: Calceteiro | C27: 17.31 | D27: 19.37 | E27: 19.37
A28: 88323 | B28: Telhadista | C28: 18.64 | D28: 20.93 | E28: 20.93
A29: 88245 | B29: Armador | C29: 18.38 | D29: 20.6 | E29: 20.6
A30: 88315 | B30: Serralheiro | C30: 18.38 | D30: 20.6 | E30: 20.6
A31: 88441 | B31: Jardineiro | C31: 17.85 | D31: 20 | E31: 20
A32: 88267 | B32: Encanador | C32: 18.15 | D32: 20.39 | E32: 20.39
A33: 88281 | B33: Motorista de caminhão | C33: 19.59 | D33: 22.14 | E33: 22.14
A34: 88377 | B34: Operador de betoneira | C34: 18.37 | D34: 20.74 | E34: 20.74
A35: 88297 | B35: Operador de máq. e equip. | C35: 21.02 | D35: 23.8 | E35: 23.8
A36: 88298 | B36: Operador de martelete | C36: 20.02 | D36: 22.65 | E36: 22.65
A37: 93572 | B37: Encarregado (mês) | C37: 6799.05 | D37: 7828.88 | E37: 7828.88
A38: 90778 | B38: Engenheiro Civil de Obra | C38: 92.87 | D38: 107.35 | E38: 107.35
A39: 90781 | B39: Topógrafo | C39: 27.62 | D39: 31.8 | E39: =IF($D$5="c/desoneração",C39,(IF($D$5="s/desoneração",D39))) -> 31.8
A40: 88326 | B40: VIGIA NOTURNO COM ENCARGOS COMPLEMENTARES | C40: 19.92 | D40: 22.41 | E40: =IF($D$5="c/desoneração",C40,(IF($D$5="s/desoneração",D40))) -> 22.41
A41: 88264 | B41: ELETRICISTA COM ENCARGOS COMPLEMENTARES | C41: 20.11 | D41: 22.61 | E41: =IF($D$5="c/desoneração",C41,(IF($D$5="s/desoneração",D41))) -> 22.61
A42: 88247 | B42: AUXILIAR DE ELETRICISTA COM ENCARGOS COMPLEMENTARES | C42: 15.41 | D42: 17.17 | E42: =IF($D$5="c/desoneração",C42,(IF($D$5="s/desoneração",D42))) -> 17.17

Sheet Planilha Cotações
A1: PLANILHA DE COTAÇÕES DE INSUMOS
A2: Data das Cotações: Junho2021
A4: OBJETO: | B4: =+PO!$B$9 -> Obras de Aquisição e Instalação de Academias de Ginástica ao ar livre na Praça Professor Emílio Mabilde Rípole (155/02), Praça Irene Elisalde Stricher (145/10) e Praça José Mariano de Freitas Beck (164/09).
A5: DATA: | B5: =IF(PO!$B$10="","",PO!$B$10) -> 2021-08-10
A6: ART nº: | B6: =IF(PO!$B$11="","",PO!$B$11) -> 
A8: 16 | B8: CAIBRO CEDRINHO 5 x 7 cm | C8: m | D8: CNPJ | E8: Telefone | F8: Contato | G8: Data | H8: Valor | I8: Valor Média
A9: =+Cotações!$D$7 -> Mondai Madeiras | D9: 01.434.693/0001-93 | E9: 3587-1643 | F9: Anderson R. | G9: 2021-06-15 | H9: 20 | I9: =Cotações!M11 -> 22.2
A10: =+Cotações!$F$7 -> Cunha Madeiras | D10: 14.071.368/0001-55 | E10: 3364-2778 | F10: Fábio | G10: 2021-06-15 | H10: 24.4
A11: SCHREINER MADEIRA | D11: 16.701.304/0001-16 | E11: 41-3543-1316 | F11: Carol | G11: 2021-07-07 | H11: 41.25
A13: =+Cotações!A34 -> 44 | B13: Tábua itaúba lixada e aplainada 3,5x19x1,80 | C13: pç | D13: CNPJ | E13: Telefone | F13: Contato | G13: Data | H13: Valor | I13: Valor Mediana
A14: =+Cotações!$D$7 -> Mondai Madeiras | D14: 01.434.693/0001-93 | E14: 3587-1643 | F14: Anderson R. | G14: 2021-06-15 | H14: =+Cotações!D34 -> 130.5 | I14: =Cotações!N34 -> 140.8
A15: =+Cotações!$F$7 -> Cunha Madeiras | D15: 14.071.368/0001-55 | E15: 3364-2778 | F15: Fábio | G15: 2021-06-15 | H15: =+Cotações!F34 -> 200
A16: SCHREINER MADEIRA | D16: 16.701.304/0001-16 | E16: 41-3543-1316 | F16: Carol | G16: 2021-07-07 | H16: =+Cotações!H34 -> 140.8
A18: =+Cotações!A35 -> 45 | B18: Tábua itaúba lixada e aplainada 3,5x19x2,00 | C18: pç | D18: CNPJ | E18: Telefone | F18: Contato | G18: Data | H18: Valor | I18: Valor Mediana
A19: =+Cotações!$D$7 -> Mondai Madeiras | D19: 01.434.693/0001-93 | E19: 3587-1643 | F19: Anderson R. | G19: 2021-06-15 | H19: =+Cotações!D35 -> 145 | I19: =Cotações!N35 -> 145
A20: =+Cotações!$F$7 -> Cunha Madeiras | D20: 14.071.368/0001-55 | E20: 3364-2778 | F20: Fábio | G20: 2021-06-15 | H20: =+Cotações!F35 -> 200
A21: SCHREINER MADEIRA | D21: 16.701.304/0001-16 | E21: 41-3543-1316 | F21: Carol | G21: 2021-07-07 | H21: =+Cotações!H35 -> 140.8
A23: =+Cotações!A43 -> 50 | B23: Parafuso francês zincado 5/16" x 2 1/2" c/ porca | C23: un | D23: CNPJ | E23: Telefone | F23: Contato | G23: Data | H23: Valor | I23: Valor Média
A24: =+Cotações!$D$40 -> SL Parafusos Ltda | D24: 06.046.959/0001-44 | E24: =+Cotações!$E$40 -> 3411-9800 | F24: Carina | G24: 2021-06-30 | H24: =+Cotações!D43 -> 1.39 | I24: =Cotações!M43 -> 1.06
A25: =+Cotações!$F$40 -> Guido A. Jacobus | D25: 92.690.106/0001-82 | E25: =+Cotações!$G$40 -> 3024-1200 | F25: Jéferson | G25: 2021-07-21 | H25: =+Cotações!F43 -> 0.44
A26: =+Cotações!$H$40 -> Central de Parafusos | D26: 91.526.467/0001-25 | E26: =+Cotações!$I$40 -> 3341-9353 | F26: Alexandre | G26: 2021-06-15 | H26: =+Cotações!H43 -> 1.17
A27: =+Cotações!$J$40 -> Brasil dos Parafusos | D27: 10.878.757/0001-36 | E27: =+Cotações!$K$40 -> 3326-1946 | F27: Marta Lopes | G27: 2021-06-17 | H27: =+Cotações!J43 -> 1.24
A29: =+Cotações!A44 -> 51 | B29: Parafuso francês zincado 5/16" x 4" c/ porca | C29: un | D29: CNPJ | E29: Telefone | F29: Contato | G29: Data | H29: Valor | I29: Valor Média
A30: =+Cotações!$D$40 -> SL Parafusos Ltda | D30: 06.046.959/0001-44 | E30: =+Cotações!$E$40 -> 3411-9800 | F30: Carina | G30: 2021-06-30 | H30: =+Cotações!D44 -> 1.91 | I30: =Cotações!M44 -> 1.47
A31: =+Cotações!$F$40 -> Guido A. Jacobus | D31: 92.690.106/0001-82 | E31: =+Cotações!$G$40 -> 3024-1200 | F31: Jéferson | G31: 2021-07-21 | H31: =+Cotações!F44 -> 0.61
A32: =+Cotações!$H$40 -> Central de Parafusos | D32: 91.526.467/0001-25 | E32: =+Cotações!$I$40 -> 3341-9353 | F32: Alexandre | G32: 2021-06-15 | H32: =+Cotações!H44 -> 1.65
A33: =+Cotações!$J$40 -> Brasil dos Parafusos | D33: 10.878.757/0001-36 | E33: =+Cotações!$K$40 -> 3326-1946 | F33: Marta Lopes | G33: 2021-06-17 | H33: =+Cotações!J44 -> 1.72
A35: =+Cotações!A51 -> 58 | B35: Parafuso sextavado aço zincado 1/4" x 2" c/ porca | C35: un | D35: CNPJ | E35: Telefone | F35: Contato | G35: Data | H35: Valor | I35: Valor Média
A36: =+Cotações!$D$40 -> SL Parafusos Ltda | D36: 06.046.959/0001-44 | E36: =+Cotações!$E$40 -> 3411-9800 | F36: Carina | G36: 2021-06-30 | H36: =+Cotações!D51 -> 0.8465 | I36: =Cotações!M51 -> 0.59
A37: =+Cotações!$F$40 -> Guido A. Jacobus | D37: 92.690.106/0001-82 | E37: =+Cotações!$G$40 -> 3024-1200 | F37: Jéferson | G37: 2021-07-21 | H37: =+Cotações!F51 -> 0.24
A38: =+Cotações!$H$40 -> Central de Parafusos | D38: 91.526.467/0001-25 | E38: =+Cotações!$I$40 -> 3341-9353 | F38: Alexandre | G38: 2021-06-15 | H38: =+Cotações!H51 -> 0.6
A39: =+Cotações!$J$40 -> Brasil dos Parafusos | D39: 10.878.757/0001-36 | E39: =+Cotações!$K$40 -> 3326-1946 | F39: Marta Lopes | G39: 2021-06-17 | H39: =+Cotações!J51 -> 0.68
A41: =+Cotações!A85 -> 82 | B41: Abdominal Simples | C41: un | D41: CNPJ | E41: Telefone | F41: Contato | G41: Data | H41: Valor | I41: Valor Média
A42: =+Cotações!$D$84 -> Ziober | D42: 08.374.053/0001-84 | E42: =+Cotações!$E$84 -> 44 3029-4410 | F42: Solaine Teline | G42: 2021-08-05 | H42: =Cotações!D85 -> 5610 | I42: =Cotações!N85 -> 4690
A43: =+Cotações!$F$84 -> Milla Equip. Met. | D43: 10.555.495/0001-79 | E43: =+Cotações!$G$84 -> 19 3363-1051 | F43: Tatiana Demétrio | G43: 2021-08-03 | H43: =+Cotações!F85 -> 4510
A44: =+Cotações!$H$84 -> Flex | D44: 13.898.616/0001-73 | E44: =+Cotações!$I$84 -> 17 3223-2766 | F44: Fernanda | G44: 2021-08-02 | H44: =+Cotações!H85 -> 4690
A46: =+Cotações!A86 -> 83 | B46: Adução e abdução de pernas duplo | C46: un | D46: CNPJ | E46: Telefone | F46: Contato | G46: Data | H46: Valor | I46: Valor Média
A47: =+Cotações!$D$84 -> Ziober | D47: 08.374.053/0001-84 | E47: =+Cotações!$E$84 -> 44 3029-4410 | F47: Solaine Teline | G47: 2021-08-05 | H47: =+Cotações!D86 -> 11490 | I47: =Cotações!N86 -> 9150
A48: =+Cotações!$F$84 -> Milla Equip. Met. | D48: 10.555.495/0001-79 | E48: =+Cotações!$G$84 -> 19 3363-1051 | F48: Tatiana Demétrio | G48: 2021-08-03 | H48: =+Cotações!F86 -> 9150
A49: =+Cotações!$H$84 -> Flex | D49: 13.898.616/0001-73 | E49: =+Cotações!$I$84 -> 17 3223-2766 | F49: Fernanda | G49: 2021-08-02 | H49: =+Cotações!H86 -> 6940
A51: =+Cotações!A87 -> 84 | B51: Esqui triplo conjugado | C51: un | D51: CNPJ | E51: Telefone | F51: Contato | G51: Data | H51: Valor | I51: Valor Média
A52: =+Cotações!$D$84 -> Ziober | D52: 08.374.053/0001-84 | E52: =+Cotações!$E$84 -> 44 3029-4410 | F52: Solaine Teline | G52: 2021-08-05 | H52: =+Cotações!D87 -> 18000 | I52: =Cotações!M87 -> 16140
A53: =+Cotações!$F$84 -> Milla Equip. Met. | D53: 10.555.495/0001-79 | E53: =+Cotações!$G$84 -> 19 3363-1051 | F53: Tatiana Demétrio | G53: 2021-08-03 | H53: =+Cotações!F87 -> 21430
A54: =+Cotações!$H$84 -> Flex | D54: 13.898.616/0001-73 | E54: =+Cotações!$I$84 -> 17 3223-2766 | F54: Fernanda | G54: 2021-08-02 | H54: =+Cotações!H87 -> 8990
A56: =+Cotações!A88 -> 85 | B56: Jogo de barras | C56: un | D56: CNPJ | E56: Telefone | F56: Contato | G56: Data | H56: Valor | I56: Valor Média
A57: =+Cotações!$D$84 -> Ziober | D57: 08.374.053/0001-84 | E57: =+Cotações!$E$84 -> 44 3029-4410 | F57: Solaine Teline | G57: 2021-08-05 | H57: =+Cotações!D88 -> 9600 | I57: =Cotações!M88 -> 9359.33
A58: =+Cotações!$F$84 -> Milla Equip. Met. | D58: 10.555.495/0001-79 | E58: =+Cotações!$G$84 -> 19 3363-1051 | F58: Tatiana Demétrio | G58: 2021-08-03 | H58: =+Cotações!F88 -> 11778
A59: =+Cotações!$H$84 -> Flex | D59: 13.898.616/0001-73 | E59: =+Cotações!$I$84 -> 17 3223-2766 | F59: Fernanda | G59: 2021-08-02 | H59: =+Cotações!H88 -> 6700
A61: =+Cotações!A89 -> 86 | B61: Multiexercitador conjugado 6 funções | C61: un | D61: CNPJ | E61: Telefone | F61: Contato | G61: Data | H61: Valor | I61: Valor Média
A62: =+Cotações!$D$84 -> Ziober | D62: 08.374.053/0001-84 | E62: =+Cotações!$E$84 -> 44 3029-4410 | F62: Solaine Teline | G62: 2021-08-05 | H62: =+Cotações!D89 -> 22200 | I62: =Cotações!M89 -> 16191.33
A63: =+Cotações!$F$84 -> Milla Equip. Met. | D63: 10.555.495/0001-79 | E63: =+Cotações!$G$84 -> 19 3363-1051 | F63: Tatiana Demétrio | G63: 2021-08-03 | H63: =+Cotações!F89 -> 17184
A64: =+Cotações!$H$84 -> Flex | D64: 13.898.616/0001-73 | E64: =+Cotações!$I$84 -> 17 3223-2766 | F64: Fernanda | G64: 2021-08-02 | H64: =+Cotações!H89 -> 9190
A66: =+Cotações!A90 -> 87 | B66: Peitoral duplo | C66: un | D66: CNPJ | E66: Telefone | F66: Contato | G66: Data | H66: Valor | I66: Valor Mediana
A67: =+Cotações!$D$84 -> Ziober | D67: 08.374.053/0001-84 | E67: =+Cotações!$E$84 -> 44 3029-4410 | F67: Solaine Teline | G67: 2021-08-05 | H67: =+Cotações!D90 -> 14220 | I67: =+Insumos!G44 -> 9790
A68: =+Cotações!$F$84 -> Milla Equip. Met. | D68: 10.555.495/0001-79 | E68: =+Cotações!$G$84 -> 19 3363-1051 | F68: Tatiana Demétrio | G68: 2021-08-03 | H68: =+Cotações!F90 -> 9790
A69: =+Cotações!$H$84 -> Flex | D69: 13.898.616/0001-73 | E69: =+Cotações!$I$84 -> 17 3223-2766 | F69: Fernanda | G69: 2021-08-02 | H69: =+Cotações!H90 -> 7700
A71: =+Cotações!A91 -> 88 | B71: Placa orientativa (ATI) | C71: un | D71: CNPJ | E71: Telefone | F71: Contato | G71: Data | H71: Valor | I71: Valor Média
A72: =+Cotações!$D$84 -> Ziober | D72: 08.374.053/0001-84 | E72: =+Cotações!$E$84 -> 44 3029-4410 | F72: Solaine Teline | G72: 2021-08-05 | H72: =+Cotações!D91 -> 8130 | I72: =Cotações!M91 -> 7695.33
A73: =+Cotações!$F$84 -> Milla Equip. Met. | D73: 10.555.495/0001-79 | E73: =+Cotações!$G$84 -> 19 3363-1051 | F73: Tatiana Demétrio | G73: 2021-08-03 | H73: =+Cotações!F91 -> 9966
A74: =+Cotações!$H$84 -> Flex | D74: 13.898.616/0001-73 | E74: =+Cotações!$I$84 -> 17 3223-2766 | F74: Fernanda | G74: 2021-08-02 | H74: =+Cotações!H91 -> 4990
A76: =+Cotações!A92 -> 89 | B76: Pressão de pernas triplo conjugado | C76: un | D76: CNPJ | E76: Telefone | F76: Contato | G76: Data | H76: Valor | I76: Valor Média
A77: =+Cotações!$D$84 -> Ziober | D77: 08.374.053/0001-84 | E77: =+Cotações!$E$84 -> 44 3029-4410 | F77: Solaine Teline | G77: 2021-08-05 | H77: =+Cotações!D92 -> 10860 | I77: =Cotações!M92 -> 9472
A78: =+Cotações!$F$84 -> Milla Equip. Met. | D78: 10.555.495/0001-79 | E78: =+Cotações!$G$84 -> 19 3363-1051 | F78: Tatiana Demétrio | G78: 2021-08-03 | H78: =+Cotações!F92 -> 10706
A79: =+Cotações!$H$84 -> Flex | D79: 13.898.616/0001-73 | E79: =+Cotações!$I$84 -> 17 3223-2766 | F79: Fernanda | G79: 2021-08-02 | H79: =+Cotações!H92 -> 6850
A81: =+Cotações!A93 -> 90 | B81: Puxador duplo | C81: un | D81: CNPJ | E81: Telefone | F81: Contato | G81: Data | H81: Valor | I81: Valor Mediana
A82: =+Cotações!$D$84 -> Ziober | D82: 08.374.053/0001-84 | E82: =+Cotações!$E$84 -> 44 3029-4410 | F82: Solaine Teline | G82: 2021-08-05 | H82: =+Cotações!D93 -> 14220 | I82: =+Insumos!G47 -> 10428
A83: =+Cotações!$F$84 -> Milla Equip. Met. | D83: 10.555.495/0001-79 | E83: =+Cotações!$G$84 -> 19 3363-1051 | F83: Tatiana Demétrio | G83: 2021-08-03 | H83: =+Cotações!F93 -> 10428
A84: =+Cotações!$H$84 -> Flex | D84: 13.898.616/0001-73 | E84: =+Cotações!$I$84 -> 17 3223-2766 | F84: Fernanda | G84: 2021-08-02 | H84: =+Cotações!H93 -> 7690
A86: =+Cotações!A94 -> 91 | B86: Remada (APC) | C86: un | D86: CNPJ | E86: Telefone | F86: Contato | G86: Data | H86: Valor | I86: Valor Mediana
A87: =+Cotações!$D$84 -> Ziober | D87: 08.374.053/0001-84 | E87: =+Cotações!$E$84 -> 44 3029-4410 | F87: Solaine Teline | G87: 2021-08-05 | H87: =+Cotações!D94 -> 8340 | I87: =Cotações!N94 -> 5940
A88: =+Cotações!$F$84 -> Milla Equip. Met. | D88: 10.555.495/0001-79 | E88: =+Cotações!$G$84 -> 19 3363-1051 | F88: Tatiana Demétrio | G88: 2021-08-03 | H88: =+Cotações!F94 -> 5940
A89: =+Cotações!$H$84 -> Flex | D89: 13.898.616/0001-73 | E89: =+Cotações!$I$84 -> 17 3223-2766 | F89: Fernanda | G89: 2021-08-02 | H89: =+Cotações!H94 -> 3890
A91: =+Cotações!A95 -> 92 | B91: Simulador de caminhada triplo conjugado | C91: un | D91: CNPJ | E91: Telefone | F91: Contato | G91: Data | H91: Valor | I91: Valor Média
A92: =+Cotações!$D$84 -> Ziober | D92: 08.374.053/0001-84 | E92: =+Cotações!$E$84 -> 44 3029-4410 | F92: Solaine Teline | G92: 2021-08-05 | H92: =+Cotações!D95 -> 16740 | I92: =Cotações!M95 -> 13224.66
A93: =+Cotações!$F$84 -> Milla Equip. Met. | D93: 10.555.495/0001-79 | E93: =+Cotações!$G$84 -> 19 3363-1051 | F93: Tatiana Demétrio | G93: 2021-08-03 | H93: =+Cotações!F95 -> 15134
A94: =+Cotações!$H$84 -> Flex | D94: 13.898.616/0001-73 | E94: =+Cotações!$I$84 -> 17 3223-2766 | F94: Fernanda | G94: 2021-08-02 | H94: =+Cotações!H95 -> 7800
A96: =+Cotações!A96 -> 93 | B96: Simulador de remo | C96: un | D96: CNPJ | E96: Telefone | F96: Contato | G96: Data | H96: Valor | I96: Valor Mediana
A97: =+Cotações!$D$84 -> Ziober | D97: 08.374.053/0001-84 | E97: =+Cotações!$E$84 -> 44 3029-4410 | F97: Solaine Teline | G97: 2021-08-05 | H97: =+Cotações!D96 -> 6660 | I97: =+Insumos!G50 -> 5640
A98: =+Cotações!$F$84 -> Milla Equip. Met. | D98: 10.555.495/0001-79 | E98: =+Cotações!$G$84 -> 19 3363-1051 | F98: Tatiana Demétrio | G98: 2021-08-03 | H98: =+Cotações!F96 -> 5240
A99: =+Cotações!$H$84 -> Flex | D99: 13.898.616/0001-73 | E99: =+Cotações!$I$84 -> 17 3223-2766 | F99: Fernanda | G99: 2021-08-02 | H99: =+Cotações!H96 -> 5640
A101: =+Cotações!A97 -> 94 | B101: Voador peitoral e voador dorsal (APC) | C101: un | D101: CNPJ | E101: Telefone | F101: Contato | G101: Data | H101: Valor | I101: Valor Mediana
A102: =+Cotações!$D$84 -> Ziober | D102: 08.374.053/0001-84 | E102: =+Cotações!$E$84 -> 44 3029-4410 | F102: Solaine Teline | G102: 2021-08-05 | H102: =+Cotações!D97 -> 13170 | I102: =+Insumos!G51 -> 6200
A103: =+Cotações!$F$84 -> Milla Equip. Met. | D103: 10.555.495/0001-79 | E103: =+Cotações!$G$84 -> 19 3363-1051 | F103: Tatiana Demétrio | G103: 2021-08-03 | H103: =+Cotações!F97 -> 6200
A104: =+Cotações!$H$84 -> Flex | D104: 13.898.616/0001-73 | E104: =+Cotações!$I$84 -> 17 3223-2766 | F104: Fernanda | G104: 2021-08-02 | H104: =+Cotações!H97 -> 3890
A106: =+Cotações!A105 -> 100 | B106: Piso Podotátil 25 x 25 cm | C106: un | D106: CNPJ | E106: Telefone | F106: Contato | G106: Data | H106: Valor | I106: Valor Mediana
A107: =+Cotações!$D$103 -> DPS | D107: 18.710.671/0001-01 | E107: =+Cotações!$E$103 -> 3499-1536 | F107: Janaína Guim. | G107: 2021-06-15 | H107: =+Cotações!D105 -> 3.5 | I107: =+Insumos!G155 -> 3.5
A108: =+Cotações!$F$103 -> Incorevest | D108: 10.975.310/0001-85 | E108: =+Cotações!$G$103 -> 3062-5119 | F108: Manoel | G108: 2021-06-15 | H108: =+Cotações!F105 -> 3.5
A109: =+Cotações!J103 -> RF Rede Pallet | D109: 27.657.284/0001-40 | E109: =+Cotações!K103 -> 3059-7270 | F109: Débora | G109: 2021-01-21 | H109: =+Cotações!J105 -> 4.2
A111: =+Cotações!A115 -> 106 | B111: Microfibra de polipropileno | C111: sc | D111: CNPJ | E111: Telefone | F111: Contato | G111: Data | H111: Valor | I111: Valor Mediana
A112: =+Cotações!$D$114 -> Construtec | D112: 02.062.999/0001-29 | E112: =+Cotações!$E$114 -> 3012-2333 | F112: Eliandra | G112: 2021-06-15 | H112: =+Cotações!D115 -> 33 | I112: =Cotações!N115 -> 23.2
A113: =+Cotações!$F$114 -> Reis e Reis | D113: 00.320.025/0001-72 | E113: =+Cotações!$G$114 -> 12 3966-9977 | F113: Romildo Mesquita | G113: 2021-03-31 | H113: 21.65
A114: =+Cotações!$H$114 -> TecMachine | D114: 10.913.018/0001-38 | E114: =+Cotações!$I$114 -> 11 4643-4846 | F114: Noemi | G114: 2021-06-15 | H114: 25
A116: =+Cotações!A117 -> 107 | B116: Granilha para argamassa de alta resistência (Piso duro) | C116: kg | D116: CNPJ | E116: Telefone | F116: Contato | G116: Data | H116: Valor | I116: =IF(#REF!="NÃO","Valor adotado","Valor Atualizado") -> 
A117: =+Cotações!$D$116 -> Mineração Peixoto | D117: 89.493.506/0001-93 | E117: =+Cotações!$E$116 -> 51 3678-1020 | F117: Jean | G117: 2019-04-24 | H117: =+Cotações!D117 -> 0.74 | I117: =+Insumos!#REF! -> 
A118: =+Cotações!$F$116 -> Grani Torre | D118: 49.042.302/0001-11 | E118: =+Cotações!$G$116 -> 11 2246-1250 | F118: Tamara | G118: 2019-04-09 | H118: =+Cotações!F117 -> 0.65
A119: =+Cotações!$H$116 -> Polipiso | D119: 08.114.238/0001-50 | E119: =+Cotações!$I$116 -> 99116-4697 | F119: Orivaldo | G119: 2019-04-09 | H119: =+Cotações!H117 -> 0.77
A121: =+Cotações!A119 -> 108 | B121: Fundo p/ galvanizado | C121: l | D121: CNPJ | E121: Telefone | F121: Contato | G121: Data | H121: Valor | I121: Valor Média
A122: =+Cotações!$D$118 -> Constinta | D122: 06.102.585/0001-37 | E122: =+Cotações!$E$118 -> 3341-6344 | F122: Ana Bárbara | G122: 2021-06-16 | H122: =+Cotações!D119 -> 35.27 | I122: =+Insumos!G108 -> 34.81
A123: =+Cotações!$H$118 -> Porto Cores | D123: 30.061.635/0001-60 | E123: =+Cotações!$I$118 -> 3346-3339 | F123: Fabrício | G123: 2021-06-16 | H123: =+Cotações!H119 -> 37.22
A124: =+Cotações!$J$118 -> Aquarela Tintas | D124: 92.321.785/0004-65 | E124: =+Cotações!$K$118 -> 3223-0133 | F124: Anderson | G124: 2021-06-16 | H124: =+Cotações!J119 -> 31.94
A126: =+Cotações!A121 -> 109 | B126: Manta Geotêxtil para cura do concreto | C126: m² | D126: CNPJ | E126: Telefone | F126: Contato | G126: Data | H126: Valor | I126: =IF(#REF!="NÃO","Valor adotado","Valor Atualizado") -> 
A127: =+Cotações!$D$120 -> Drenamac | D127: 05.672.634/0001-04 | E127: =+Cotações!$E$120 -> 3029-7593 | F127: Rafael | G127: 2019-04-11 | H127: =+Cotações!D121 -> 2.2 | I127: =+Insumos!#REF! -> 
A128: =+Cotações!$F$120 -> Drenotec | D128: 21.003.970/0002-00 | E128: =+Cotações!$G$120 -> 3119-1244 | F128: Mary | G128: 2019-04-11 | H128: =+Cotações!F121 -> 2.5
A129: =+Cotações!$H$120 -> Geofoco | D129: 16.953.066/0001-36 | E129: =+Cotações!$I$120 -> 0800-378-8500 | F129: Jéssica | G129: 2019-04-12 | H129: =+Cotações!H121 -> 2.1
A131: =+Cotações!A123 -> 110 | B131: Papeleira metálica basculante H-30 | C131: un | D131: CNPJ | E131: Telefone | F131: Contato | G131: Data | H131: Valor | I131: Valor *
A132: =+Cotações!$D$122 -> Prod Equipam. MB | D132: 00.929.345/0001-24 | E132: =+Cotações!$E$122 -> 3377-2035 | F132: Jean | G132: 2021-06-17 | H132: 900 | I132: =+Insumos!G132 -> 900
B133: * Único fornecedor
A135: =+Cotações!A129 -> 113 | B135: Caçamba 4,00 m3 | C135: un | D135: CNPJ | E135: Telefone | F135: Contato | G135: Data | H135: Valor | I135: Valor Média
A136: =+Cotações!$D$128 -> Gaúcha | D136: 08.101.767/0001-19 | E136: =+Cotações!$E$128 -> 3245-3500 | F136: Viviane | G136: 2021-06-14 | H136: =+Cotações!D129 -> 480 | I136: 443.33
A137: =+Cotações!$F$128 -> Pouco Entulho | D137: 25.215.615/0001-66 | E137: =+Cotações!$G$128 -> 51 99859-2250 | F137: Luciana | G137: 2021-06-17 | H137: =+Cotações!F129 -> 400
A138: =+Cotações!$H$128 -> Tirentulho | D138: 05.551.367/0001-17 | E138: =+Cotações!$I$128 -> 3475-2222 | F138: Francieli Bissolotti | G138: 2021-06-15 | H138: =+Cotações!H129 -> 450
A140: =+Cotações!A134 -> 116 | B140: Taxa instalação água DMAE | C140: cj | D140: CNPJ | E140: Telefone | F140: Contato | G140: Data | H140: Valor | I140: Valor*
A141: =+Cotações!$D$133 -> DMAE | D141: 92.924.901/0001-98 | E141: =+Cotações!$E$133 -> 3289-9537 | F141: Ricardo | G141: 2021-01-05 | H141: =+Cotações!D134 -> 465.36 | I141: =Cotações!D134 -> 465.36
B142: *Tarifa municipal
A144: =+Cotações!A136 -> 118 | B144: Água tratada | C144: m³ | D144: CNPJ | E144: Telefone | F144: Contato | G144: Data | H144: Valor | I144: Valor*
A145: =+Cotações!$D$133 -> DMAE | D145: 92.924.901/0001-98 | E145: =+Cotações!$E$133 -> 3289-9537 | F145: Ricardo | G145: 2021-01-05 | H145: =+Cotações!D136 -> 4.02 | I145: =Cotações!D136 -> 4.02
B146: *Tarifa municipal
A148: =+Cotações!A137 -> 119 | B148: Esgoto cloacal | C148: m³ | D148: CNPJ | E148: Telefone | F148: Contato | G148: Data | H148: Valor | I148: Valor*
A149: =+Cotações!$D$133 -> DMAE | D149: 92.924.901/0001-98 | E149: =+Cotações!$E$133 -> 3289-9537 | F149: Ricardo | G149: 2021-01-05 | H149: =+Cotações!D137 -> 3.216 | I149: =Cotações!D137 -> 3.216
B150: *Tarifa municipal
A152: =+Cotações!A139 -> 122 | B152: Laje de Grês 90x45 | C152: un | D152: CNPJ | E152: Telefone | F152: Contato | G152: Data | H152: Valor | I152: Valor Média
A153: =+Cotações!$D$138 -> Rodrigo Paz | D153: 16.975.098/0001-32 | E153: =+Cotações!$E$138 -> 3318-1010 | F153: Rodrigo | G153: 2021-03-31 | H153: =+Cotações!D139 -> 8 | I153: =Cotações!N139 -> 8
A154: =+Cotações!$F$138 -> Alicerce da Const | D154: 11.831.448/0001-73 | E154: =+Cotações!$G$138 -> 3318-1010 | F154: Kassiele | G154: 2021-07-02 | H154: =+Cotações!F139 -> 14.9
A155: =+Cotações!$H$138 -> Maico Pedras | D155: 03.599.794/0001-40 | E155: =+Cotações!$I$138 -> 99817-3559 | F155: Maico | G155: 2021-06-15 | H155: =+Cotações!H139 -> 6
A157: =+Cotações!A150 -> 128 | B157: ART | C157: un | D157: CNPJ | E157: Telefone | F157: Contato | G157: Data | H157: Valor | I157: Valor Atual
A158: =+Cotações!$D$149 -> CREA-RS | D158: 92.695.790/0001-95 | E158: 3320-2100 | F158: Site | G158: 2021-01-05 | H158: =+Cotações!D150 -> 226.5 | I158: =+Insumos!G38 -> 226

Sheet Insumos
A1: PLANILHA DE INSUMOS
A3: Data Base SINAPI: JUNHO / 2021 - Data das Cotações: JULHO / 2021
A5: L. S. Horistas: | C5: =+'Planilha_M.O.'!$D$7 -> 1.111 | D5: Selecionar
A6: L. S. Mensalistas: | C6: =+'Planilha_M.O.'!$D$8 -> 0.6916 | D6: MEDIANA
A8: Item | B8: Código | C8: Insumo | D8: Un | E8: Tipo | F8: Origem | G8: Valor | H8: Observações
A9: 1 | B9: 43053 | C9: Aço CA-25 8,0 mm | D9: kg | E9: MAT | F9: SINAPI | G9: 11.51
A10: =+A9+1 -> 2 | B10: 43054 | C10: Aço CA-25 10,0 mm | D10: kg | E10: MAT | F10: SINAPI | G10: 12.89
A11: =+A10+1 -> 3 | B11: 43054 | C11: Aço CA-25 12,5 mm | D11: kg | E11: MAT | F11: SINAPI | G11: 12.89
A12: =+A11+1 -> 4 | B12: 43054 | C12: Aço CA-25 16,0 mm | D12: kg | E12: MAT | F12: SINAPI | G12: 12.89
A13: =+A12+1 -> 5 | B13: 43054 | C13: Aço CA-25 20,0 mm | D13: kg | E13: MAT | F13: SINAPI | G13: 12.89
A14: =+A13+1 -> 6 | B14: 34449 | C14: Aço CA-50 1/4" (6,3 mm) - 0,248 kg/m | D14: kg | E14: MAT | F14: SINAPI | G14: 14.07
A15: =+A14+1 -> 7 | B15: 32 | C15: Aço CA-50 1/4" (6,3 mm) - 0,248 kg/m - Vergalhão | D15: kg | E15: MAT | F15: SINAPI | G15: 12.65
A16: 8 | B16: 33 | C16: Aço CA-50 5/16" (8,0 mm) - 0,393 kg/m - Vergalhão | D16: kg | E16: MAT | F16: SINAPI | G16: 12.73
A17: =+A16+1 -> 9 | B17: 43058 | C17: Aço CA-50 10 mm (3/8") dobrado e cortado - 0,624 kg/m | D17: kg | E17: MAT | F17: SINAPI | G17: 11.94
A18: 10 | B18: 43058 | C18: Aço CA-50 5/8" (16 mm) - 1,570 kg/m | D18: kg | E18: MAT | F18: SINAPI | G18: 11.94
A19: 11 | B19: 43061 | C19: Aço CA-60 4,2mm - 0,109 kg/m | D19: kg | E19: MAT | F19: SINAPI | G19: 11.89
A20: 12 | B20: 43059 | C20: Aço CA-60 4,2mm - 0,109 kg/m - Vergalhão | D20: kg | E20: MAT | F20: SINAPI | G20: 11.35
A21: 13 | B21: 43061 | C21: Aço CA-60 5,0 mm - 0,157 kg/m | D21: kg | E21: MAT | F21: SINAPI | G21: 11.89
A22: 14 | B22: 43062 | C22: Aço CA-60 6,0 mm - 0,222 kg/m | D22: kg | E22: MAT | F22: SINAPI | G22: 12.58
A23: 15 | B23: 43059 | C23: ACO CA-60, 4,2 MM, OU 5,0 MM, OU 6,0 MM, OU 7,0 MM, VERGALHAO | D23: kg | E23: MAT | F23: SINAPI | G23: 11.35
A24: 16 | B24: 122 | C24: Adesivo Plástico para PVC, frasco com 850 g | D24: un | E24: MAT | F24: SINAPI | G24: 83.11
A25: =+A24+1 -> 17 | B25: 10527 | C25: Andaime metálico, tipo torre, largura de 1 a 1,5 m e altura de 1 m locação | D25: mxmês | E25: MAT | F25: SINAPI | G25: 23.5
A26: 18 | B26: 43131 | C26: Arame Galvanizado 8 BWG (0,101 kg/m) | D26: kg | E26: MAT | F26: SINAPI | G26: 27.77
A27: 19 | B27: 43131 | C27: Arame Galvanizado 10 BWG (0,0713 kg/m) | D27: kg | E27: MAT | F27: SINAPI | G27: 27.77
A28: 20 | B28: 43130 | C28: Arame Galvanizado 12 BWG (0,048 kg / m) | D28: kg | E28: MAT | F28: SINAPI | G28: 23.91
A29: 21 | B29: 43132 | C29: ARAME RECOZIDO 16 BWG, D = 1,65 MM (0,016 KG/M) OU 18 BWG, D = 1,25 MM (0,01 KG/M) | D29: kg | E29: MAT | F29: SINAPI | G29: 25.83
A30: 22 | B30: 366 | C30: Areia fina | D30: m³ | E30: MAT | F30: SINAPI | G30: 65
A31: 23 | B31: 367 | C31: Areia grossa | D31: m³ | E31: MAT | F31: SINAPI | G31: 60
A32: 24 | B32: 370 | C32: Areia média | D32: m³ | E32: MAT | F32: SINAPI | G32: 63.5
A33: 25 | B33: 1381 | C33: Argamassa Colante AC-I | D33: kg | E33: MAT | F33: SINAPI | G33: 0.5
A34: 26 | B34: 38546 | C34: ARGAMASSA USINADA AUTOADENSAVEL E AUTONIVELANTE PARA CONTRAPISO, INCLUI BOMBEAMENTO | D34: m³ | E34: MAT | F34: SINAPI | G34: 376.44
A35: 27 | B35: 6081 | C35: Argila ou Barro para aterro ou reaterro | D35: m³ | E35: MAT | F35: SINAPI | G35: 31.59
A36: 28 | B36: 1094 | C36: ARMAÇÃO VERTICAL C/HASTE E CONTRA-PINO, EM CHAPA DE FG 3/16", C/1 ESTRIBO | D36: un | E36: MAT | F36: SINAPI | G36: 13.98
A37: 29 | B37: 11267 | C37: ARRUELA LISA, DE LATÃO POLIDO, DIÂMETRO NOMINAL 5/8", DIÂMETRO DO FURO = 17 mm | D37: un | E37: MAT | F37: SINAPI | G37: 0.8
A38: 30 | B38: =+Cotações!A150 -> 128 | C38: ART | D38: un | E38: MAT | F38: Cotação | G38: =TRUNC((IF($D$6="MÉDIA",Cotações!M150,Cotações!N150))) -> 226
A39: 31 | B39: =+Cotações!A85 -> 82 | C39: (ATI) Abdominal | D39: un | E39: MAT | F39: Cotação | G39: =Cotações!M85 -> 4936.66
A40: 32 | B40: =+Cotações!A86 -> 83 | C40: (ATI) Adução e abdução de pernas duplo | D40: un | E40: MAT | F40: Cotação | G40: =Cotações!M86 -> 9193.33
A41: 33 | B41: =+Cotações!A87 -> 84 | C41: (ATI) Esqui triplo conjugado | D41: un | E41: MAT | F41: Cotação | G41: =Cotações!M87 -> 16140
A42: 34 | B42: =+Cotações!A88 -> 85 | C42: (ATI) Jogo de barras | D42: un | E42: MAT | F42: Cotação | G42: =Cotações!M88 -> 9359.33
A43: 35 | B43: =+Cotações!A89 -> 86 | C43: (ATI) Multiexercitador conjugado 6 funções | D43: un | E43: MAT | F43: Cotação | G43: =Cotações!M89 -> 16191.33
A44: 36 | B44: =+Cotações!A90 -> 87 | C44: (ATI) Peitoral duplo | D44: un | E44: MAT | F44: Cotação | G44: =Cotações!N90 -> 9790
A45: 37 | B45: =+Cotações!A91 -> 88 | C45: (ATI) Placa orientativa | D45: un | E45: MAT | F45: Cotação | G45: =Cotações!M91 -> 7695.33
A46: 38 | B46: =+Cotações!A92 -> 89 | C46: (ATI) Pressão de pernas triplo conjugado | D46: un | E46: MAT | F46: Cotação | G46: =Cotações!M92 -> 9472
A47: 39 | B47: =+Cotações!A93 -> 90 | C47: (ATI) Puxador duplo | D47: un | E47: MAT | F47: Cotação | G47: =TRUNC((IF($D$6="MÉDIA",Cotações!M93,Cotações!N93))) -> 10428
A48: 40 | B48: =+Cotações!A94 -> 91 | C48: (APC) Remada | D48: un | E48: MAT | F48: Cotação | G48: =Cotações!N94 -> 5940
A49: 41 | B49: =+Cotações!A95 -> 92 | C49: (ATI) Simulador de caminhada triplo conjugado | D49: un | E49: MAT | F49: Cotação | G49: =Cotações!M95 -> 13224.66
A50: 42 | B50: =+Cotações!A96 -> 93 | C50: (ATI) Simulador de remo | D50: un | E50: MAT | F50: Cotação | G50: =TRUNC((IF($D$6="MÉDIA",Cotações!M96,Cotações!N96))) -> 5640
A51: 43 | B51: =+Cotações!A97 -> 94 | C51: (APC) Voador peitoral e voador dorsal | D51: un | E51: MAT | F51: Cotação | G51: =Cotações!N97 -> 6200
A52: 44 | B52: 546 | C52: Barra de ferro chata, retangular (qualquer bitola) | D52: kg | E52: MAT | F52: SINAPI | G52: 9.87
A53: 45 | B53: 563 | C53: Barra ferro chato 1 1/2" x 3/8" | D53: m | E53: MAT | F53: SINAPI | G53: 28.31
A54: 46 | B54: 547 | C54: Barra ferro chato 2" x 3/8" | D54: kg | E54: MAT | F54: SINAPI | G54: 37.78
A55: 47 | B55: =+Cotações!A99 -> 95 | C55: Basalto irregular | D55: m² | E55: MAT | F55: Cotação | G55: =Cotações!N99 -> 60
A56: 48 | B56: =+Cotações!A100 -> 96 | C56: Basalto irregular meio retalhão | D56: m² | E56: MAT | F56: Cotação | G56: =TRUNC((IF($D$6="MÉDIA",Cotações!M100,Cotações!N100))) -> 115
A57: 49 | B57: =+Cotações!A101 -> 97 | C57: Basalto regular talhado | D57: m² | E57: MAT | F57: Cotação | G57: =Cotações!N101 -> 87.5
A58: 50 | B58: =+Cotações!A102 -> 98 | C58: Basalto regular serrado | D58: m² | E58: MAT | F58: Cotação | G58: =TRUNC((IF($D$6="MÉDIA",Cotações!M102,Cotações!N102))) -> 115
A59: 51 | B59: 36155 | C59: Bloco concreto tipo holandês cor natural - 6 cm - 35 MPa | D59: m² | E59: MAT | F59: SINAPI | G59: 31.66
A60: 52 | B60: 38783 | C60: BLOCO CERAMICO DE VEDACAO COM FUROS NA HORIZONTAL, 11,5 X 19 X 19 CM - 4,5 MPA (NBR 15270) | D60: un | E60: MAT | F60: SINAPI | G60: 0.96
A61: 53 | B61: 20086 | C61: Bucha de redução de PVC, longa 50 x 40 mm, esgoto predial | D61: un | E61: MAT | F61: SINAPI | G61: 2.79
A62: 54 | B62: 4375 | C62: Bucha nylon S-6 4,2 x 38 | D62: un | E62: MAT | F62: SINAPI | G62: 0.16
A63: 55 | B63: 4376 | C63: Bucha nylon S-8 4,8 x 45 | D63: un | E63: MAT | F63: SINAPI | G63: 0.31
A64: 56 | B64: 11950 | C64: BUCHA NYLON S/ABA S6, C/PARAFUSO DE 4,2 x 40 mm EM AÇO ZINCADO C/ROSCA SOBERBA | D64: un | E64: MAT | F64: SINAPI | G64: 0.37
A65: 57 | B65: 41954 | C65: Cabo de aço galvanizado, diâmetro 9,53 mm | D65: kg | E65: MAT | F65: SINAPI | G65: 75.64
A66: 58 | B66: =+Cotações!A129 -> 113 | C66: Caçamba 4,00 m³ | D66: un | E66: MAT | F66: Cotação | G66: =Cotações!M129 -> 443.33
A67: 59 | B67: 4400 | C67: CAIBRO NAO APARELHADO, *6 X 8* CM, EM MACARANDUBA, ANGELIM OU EQUIVALENTE DA REGIAO - BRUTA | D67: m | E67: MAT | F67: SINAPI | G67: 16.87
A68: 60 | B68: 4430 | C68: Caibro de madeira não aparelhada 5 x 6 cm | D68: m | E68: MAT | F68: SINAPI | G68: 10.6
A69: 61 | B69: 34643 | C69: CAIXA INSPEÇÃO EM POLIETILENO PARA ATERRAMENTO E PÁRA RAIOS DIÂMETRO = 300 mm | D69: un | E69: MAT | F69: SINAPI | G69: 20.08
A70: 62 | B70: 39809 | C70: CAIXA P/MEDIDOR POLIFÁSICO, EM POLICARBONATO/TERMOPLÁSTICO, P/1 DISJUNTOR | D70: un | E70: MAT | F70: SINAPI | G70: 138.18
A71: 63 | B71: 25963 | C71: CALCARIO DOLOMITICO A (POSTO PEDREIRA/FORNECEDOR, SEM FRETE) | D71: kg | E71: MAT | F71: SINAPI | G71: 0.08
A72: =+A71+1 -> 64 | B72: 4777 | C72: Cantoneira aço (abas iguais) qualquer bitola, espessura entre 1/8" e 1/4" | D72: kg | E72: MAT | F72: SINAPI | G72: 10.65
A73: =+A72+1 -> 65 | B73: 4777 | C73: Cantoneira ferro 1 1/4" x 3/16" | D73: kg | E73: MAT | F73: SINAPI | G73: 10.65
A74: 66 | B74: 4777 | C74: Cantoneira ferro 1 1/2" x 1/4" | D74: kg | E74: MAT | F74: SINAPI | G74: 10.65
A75: 67 | B75: 11046 | C75: CHAPA DE ACO GALVANIZADA BITOLA GSG 18, E = 1,25 MM (10,00 KG/M2) | D75: kg | E75: MAT | F75: SINAPI | G75: 15.77
A76: 68 | B76: 11049 | C76: CHAPA DE ACO GALVANIZADA BITOLA GSG 22, E = 0,80 MM (6,40 KG/M2) | D76: kg | E76: MAT | F76: SINAPI | G76: 16.43
A77: 69 | B77: 11051 | C77: CHAPA DE ACO GALVANIZADA BITOLA GSG 26, E = 0,50 MM (4,00 KG/M2) | D77: kg | E77: MAT | F77: SINAPI | G77: 17.25
A78: 70 | B78: 1355 | C78: Chapa compensado resinado 14 mm | D78: m² | E78: MAT | F78: SINAPI | G78: 28.72
A79: 71 | B79: 1347 | C79: Chapa de madeira compensada plastificada 12 mm | D79: m² | E79: MAT | F79: SINAPI | G79: 27.6
A80: 72 | B80: 1342 | C80: Chapa compensado plastificado 14 mm | D80: m² | E80: MAT | F80: SINAPI | G80: 71.14
A81: 73 | B81: 1333 | C81: Chapa de aço 1/2" | D81: kg | E81: MAT | F81: SINAPI | G81: 12.53
A82: 74 | B82: 1330 | C82: Chapa de aço 1/4" | D82: kg | E82: MAT | F82: SINAPI | G82: 12.41
A83: 75 | B83: 34353 | C83: CIMENTO COLA AC-2 | D83: kg | E83: MAT | F83: SINAPI | G83: 0.98
A84: 76 | B84: 1379 | C84: Cimento Portland CP-II 32 | D84: kg | E84: MAT | F84: SINAPI | G84: 0.65
A85: 77 | B85: 1527 | C85: Concreto usinado bombeável, fck=25 MPa, slump = 100 +/- 20 mm, inclui serviço de bombeamento | D85: m³ | E85: MAT | F85: SINAPI | G85: 384.28
A86: 78 | B86: 34498 | C86: Cone de sinalização em PVC flexível, h=70/76 cm | D86: un | E86: MAT | F86: SINAPI | G86: 114.77
A87: 79 | B87: 11864 | C87: CONECTOR METÁLICO TIPO PARAFUSO FENDIDO (SPLIT BOLT), PARA CABOS ATÉ 95 mm2 | D87: un | E87: MAT | F87: SINAPI | G87: 29.18
A88: 80 | B88: =+Cotações!A76 -> 76 | C88: Corrente aço galvanizado 5 mm elo longo 22 x 45 mm | D88: kg | E88: MAT | F88: Cotação | G88: =Cotações!M76 -> 23.08
A89: 81 | B89: =+Cotações!A144 -> 125 | C89: Cuba inox p/bebedouro 38 cm | D89: un | E89: MAT | F89: Cotação | G89: =Cotações!M144 -> 189.7
A90: 82 | B90: 1970 | C90: Curva PVC longa 90 esgoto predial 100 mm | D90: un | E90: MAT | F90: SINAPI | G90: 55.87
A91: 83 | B91: 2692 | C91: Desmoldante p/formas de madeira | D91: l | E91: MAT | F91: SINAPI | G91: 4.46
A92: =+A91+1 -> 84 | B92: 25931 | C92: DISCO DE CORTE DIAMANTADO SEGMENTADO DIAMETRO DE 180 MM PARA ESMERILHADEIRA 7 " | D92: un | E92: MAT | F92: SINAPI | G92: 92.37
A93: 85 | B93: 2421 | C93: Dobradiça ferro galvanizado 4" x 3" | D93: un | E93: MAT | F93: SINAPI | G93: 23.91
A94: 86 | B94: 11002 | C94: ELETRODO REVESTIDO AWS - E6013, DIAMETRO IGUAL A 2,50 MM | D94: kg | E94: MAT | F94: SINAPI | G94: 41.2
A95: =A94+1 -> 87 | B95: 2705 | C95: ENERGIA ELÉTRICA ATÉ 2000 kWh INDUSTRIAL, SEM DEMANDA | D95: kWh | E95: MAT | F95: SINAPI | G95: 0.91
A96: =A95+1 -> 88 | B96: 6141 | C96: ENGATE/RABICHO FLEXIVEL PLASTICO (PVC OU ABS) BRANCO 1/2 " X 30 CM | D96: un | E96: MAT | F96: SINAPI | G96: 4.91
A97: 89 | B97: 39017 | C97: Espaçador circular em plástico, 4,2 a 12,5 mm | D97: m | E97: MAT | F97: SINAPI | G97: 0.13
A98: 90 | B98: 10886 | C98: EXTINTOR DE INCENDIO PORTATIL COM CARGA DE AGUA PRESSURIZADA DE 10 L, CLASSE A | D98: un | E98: MAT | F98: SINAPI | G98: 183.75
A99: 91 | B99: 10891 | C99: EXTINTOR DE INCENDIO PORTATIL COM CARGA DE PO QUIMICO SECO (PQS) DE 4 KG, CLASSE BC | D99: un | E99: MAT | F99: SINAPI | G99: 177.69
A100: 92 | B100: 38125 | C100: Fertilizante orgânico composto, classe A | D100: kg | E100: MAT | F100: SINAPI | G100: 1.33
A101: 93 | B101: 25951 | C101: FERTILIZANTE NPK - 10:10:10 | D101: kg | E101: MAT | F101: SINAPI | G101: 2.25
A102: 94 | B102: 12815 | C102: Fita crepe rolo 25 mm x 50 m | D102: un | E102: MAT | F102: SINAPI | G102: 7.28
A103: 95 | B103: 14153 | C103: FITA METÁLICA PERFURADA, L = 18 mm, ROLO DE 30 m, CARGA RECOMENDADA = 30 kgf | D103: un | E103: MAT | F103: SINAPI | G103: 52.81
A104: 96 | B104: 3148 | C104: Fita veda rosca em rolos de 18 mm x 50 m | D104: un | E104: MAT | F104: SINAPI | G104: 18.4
A105: 97 | B105: 42015 | C105: Fita zebrada | D105: m | E105: MAT | F105: SINAPI | G105: 1.12
A106: 98 | B106: =+Cotações!A83 -> 81 | C106: Fradinho em ferro fundido | D106: un | E106: MAT | F106: Cotação | G106: =Cotações!M83 -> 314
A107: 99 | B107: 7307 | C107: Fundo anticorrosivo tipo zarcão | D107: l | E107: MAT | F107: SINAPI | G107: 29.63
A108: =+A107+1 -> 100 | B108: =+Cotações!A119 -> 108 | C108: Fundo p/galvanizado | D108: l | E108: MAT | F108: Cotação | G108: =Cotações!M119 -> 34.81
A109: 101 | B109: 6086 | C109: Fundo sintético nivelador branco fosco | D109: gl | E109: MAT | F109: SINAPI | G109: 90.88
A110: 102 | B110: 4011 | C110: GEOTEXTIL NAO TECIDO AGULHADO DE FILAMENTOS CONTINUOS 100% | D110: m² | E110: MAT | F110: SINAPI | G110: 6.75
A111: 103 | B111: 3322 | C111: Grama catarina (Grama São Carlos) | D111: m² | E111: MAT | F111: SINAPI | G111: 20.45
A112: 104 | B112: =+Cotações!A12 -> 20 | C112: Guia cedrinho 2,5 x 10 cm | D112: m | E112: MAT | F112: Cotação | G112: =Cotações!N12 -> 14.37
A113: 105 | B113: =+Cotações!A13 -> 22 | C113: Guia cedrinho 2,5 x 20 cm | D113: m | E113: MAT | F113: Cotação | G113: =Cotações!N13 -> 28.75
A114: 106 | B114: 3398 | C114: ISOLADOR DE PORCELANA, TIPO ROLDANA, DIMENSÕES DE 72 x 72 mm | D114: un | E114: MAT | F114: SINAPI | G114: 4.77
A115: 107 | B115: 3505 | C115: Joelho PVC roscável 90⁰ 3/4" | D115: un | E115: MAT | F115: SINAPI | G115: 4.64
A116: 108 | B116: =+Cotações!A139 -> 122 | C116: Laje de grês 90 x 45 cm | D116: un | E116: MAT | F116: Cotação | G116: =Cotações!M139 -> 9.63
A117: 109 | B117: =+Cotações!A104 -> 99 | C117: Lajota concreto | D117: m² | E117: MAT | F117: Cotação | G117: =Cotações!N104 -> 32.9
A118: 110 | B118: =+Cotações!A37 -> 46 | C118: Laminado melamínico fosco esp = 2,8 mm | D118: m² | E118: MAT | F118: Cotação | G118: =Cotações!N37 -> 32.25
A119: 111 | B119: 3768 | C119: Lixa p/ferro | D119: fl | E119: MAT | F119: SINAPI | G119: 3.37
A120: 112 | B120: 3767 | C120: Lixa p/madeira | D120: fl | E120: MAT | F120: SINAPI | G120: 0.79
A121: 113 | B121: 89.50.09 | C121: BANHEIRO QUIMICO 2 MANUT. 2 ROLOS PAPEL HIGIENICO | D121: mês | E121: MAT | F121: SUDECAP | G121: 680
A122: 114 | B122: 3777 | C122: LONA PLASTICA PESADA PRETA, E = 150 MICRA | D122: m² | E122: MAT | F122: SINAPI | G122: 1.47
A123: 115 | B123: 4011 | C123: Manta Bidim RT-10 | D123: m² | E123: MAT | F123: SINAPI | G123: 5.29
A124: 116 | B124: 3288 | C124: Meia cana cedrinho 2,5 x 2,5 cm | D124: m | E124: MAT | F124: SINAPI | G124: 4.29
A125: 117 | B125: 4059 | C125: Meio-fio pré-moldado, comp. 1 m, 30 x 15/12 cm (h x l1/l2) | D125: m | E125: MAT | F125: SINAPI | G125: 22.86
A126: 118 | B126: =+Cotações!A115 -> 106 | C126: Microfibra de polipropileno | D126: sc | E126: MAT | F126: Cotação | G126: =Cotações!N115 -> 23.2
A127: 119 | B127: 4107 | C127: Mourão de concreto reto, 10 x 10 cm, h= 2,30 m | D127: un | E127: MAT | F127: SINAPI | G127: 43.99
A128: 120 | B128: 36797 | C128: Mourão de concreto curvo, 10 x 10 cm, h= 2,60 m + curva de 0,40 m | D128: un | E128: MAT | F128: SINAPI | G128: 46.66
A129: 121 | B129: 4211 | C129: Nipel PVC roscável 3/4" | D129: un | E129: MAT | F129: SINAPI | G129: 1.93
A130: 122 | B130: 7252 | C130: LOCACAO DE NIVEL OPTICO, COM PRECISAO DE 0,7 MM, AUMENTO DE 32X | D130: un | E130: MAT | F130: SINAPI | G130: 2.03
A131: =+A129+1 -> 122 | B131: 4227 | C131: Óleo lubrificante para motores | D131: l | E131: MAT | F131: SINAPI | G131: 1.93
A132: =+A131+1 -> 123 | B132: =+Cotações!A123 -> 110 | C132: Papeleira externa metálica H-30 | D132: un | E132: MAT | F132: Cotação | G132: =TRUNC((IF($D$6="MÉDIA",Cotações!M123,Cotações!N123))) -> 900
A133: 124 | B133: =+Cotações!A41 -> 48 | C133: Parafuso aço inox 1/4" x 3" c/porca | D133: un | E133: MAT | F133: Cotação | G133: =Cotações!M41 -> 2.03
A134: 125 | B134: =+Cotações!A42 -> 49 | C134: Parafuso francês zincado 5/16" x 2" c/porca | D134: un | E134: MAT | F134: Cotação | G134: =Cotações!M42 -> 0.91
A135: 126 | B135: =+Cotações!A43 -> 50 | C135: Parafuso francês zincado 5/16" x 2 1/2" c/porca | D135: un | E135: MAT | F135: Cotação | G135: =Cotações!M43 -> 1.06
A136: 127 | B136: =+Cotações!A44 -> 51 | C136: Parafuso francês zincado 5/16" x 4" c/porca | D136: un | E136: MAT | F136: Cotação | G136: =Cotações!M44 -> 1.47
A137: 128 | B137: =+Cotações!A45 -> 52 | C137: Parafuso francês zincado 5/16" x 5" c/porca | D137: un | E137: MAT | F137: Cotação | G137: =Cotações!M45 -> 1.74
A138: 129 | B138: =+Cotações!A46 -> 53 | C138: Parafuso inox auto atarraxante 4,8 x 70 | D138: un | E138: MAT | F138: Cotação | G138: =Cotações!N46 -> 1.01
A139: =+A138+1 -> 130 | B139: =+Cotações!A47 -> 54 | C139: Parafuso inox auto atarraxante 4,8 x 100 | D139: un | E139: MAT | F139: Cotação | G139: =Cotações!M47 -> 2.52
A140: =+A139+1 -> 131 | B140: 4346 | C140: PARAFUSO FERRO POLIDO, SEXTAVADO, D=5/8", C/PORCA E ARRUELA DE PRESSÃO MÉDIA | D140: un | E140: MAT | F140: SINAPI | G140: 6.93
A141: 132 | B141: 4356 | C141: Parafuso rosca soberba 4,8 x 45 mm | D141: un | E141: MAT | F141: SINAPI | G141: 0.16
A142: =+A141+1 -> 133 | B142: 4332 | C142: Parafuso sextavado aço zincado 3/8"x 2" | D142: un | E142: MAT | F142: SINAPI | G142: 0.68
A143: 134 | B143: =+Cotações!A48 -> 55 | C143: Parafuso sextavado aço zincado 1/2" x 1 1/2" | D143: un | E143: MAT | F143: Cotação | G143: =Cotações!M48 -> 1.7
A144: 135 | B144: =+Cotações!A49 -> 56 | C144: Parafuso sextavado aço zincado 1/2" x 3 1/2" | D144: un | E144: MAT | F144: Cotação | G144: =Cotações!M49 -> 3.38
A145: 136 | B145: =+Cotações!A51 -> 58 | C145: Parafuso sextavado aço zincado c/porca 1/4" x 2" | D145: un | E145: MAT | F145: Cotação | G145: =Cotações!M51 -> 0.59
A146: 137 | B146: 4385 | C146: Paralelepípedo granítico ou basáltico | D146: un | E146: MAT | F146: SINAPI | G146: 1.52
A147: 138 | B147: 4813 | C147: PLACA DE OBRA (PARA CONSTRUCAO CIVIL) EM CHAPA GALVANIZADA *N. 22* | D147: un | E147: MAT | F147: SINAPI | G147: 225
A148: 139 | B148: 4720 | C148: Pedra britada nº 0 | D148: m³ | E148: MAT | F148: SINAPI | G148: 63.85
A149: 140 | B149: 4721 | C149: Pedra britada nº 1 | D149: m³ | E149: MAT | F149: SINAPI | G149: 55.3
A150: 141 | B150: 4718 | C150: PEDRA BRITADA N. 2 (19 A 38 MM) POSTO PEDREIRA/FORNECEDOR, SEM FRETE | D150: m³ | E150: MAT | F150: SINAPI | G150: 55.6
A151: 142 | B151: =+Cotações!A142 -> 124 | C151: Pedra de alicerce 20 x 20 x 20 cm | D151: un | E151: MAT | F151: Cotação | G151: =Cotações!M142 -> 5.25
A152: 143 | B152: =+Cotações!A140 -> 123 | C152: Pedra de grês 43 x 21 x 12 cm | D152: un | E152: MAT | F152: Cotação | G152: =Cotações!M140 -> 2.09
A153: 144 | B153: 4708 | C153: PEDRA PORTUGUESA OU PETIT PAVE, BRANCA OU PRETA | D153: m² | E153: MAT | F153: SINAPI | G153: 217.56
A154: 145 | B154: 37395 | C154: PINO DE ACO COM FURO, HASTE = 27 MM (ACAO DIRETA) | D154: m | E154: MAT | F154: SINAPI | G154: 38.39
A155: 146 | B155: =+Cotações!A105 -> 100 | C155: Piso podotátil 25x25 cm | D155: un | E155: MAT | F155: Cotação | G155: =Cotações!N105 -> 3.5
A156: 147 | B156: =+Cotações!A127 -> 112 | C156: Placa de granito | D156: un | E156: MAT | F156: Cotação | G156: =Cotações!M127 -> 697.5
A157: 148 | B157: 4813 | C157: PLACA DE OBRA (PARA CONSTRUCAO CIVIL) EM CHAPA GALVANIZADA *N. 22*, ADESIVADA, DE *2,0 X 1,125* M | D157: m² | E157: MAT | F157: SINAPI | G157: 225
A158: 149 | B158: 4741 | C158: Pó de pedra | D158: m³ | E158: MAT | F158: SINAPI | G158: 52.24
A159: 150 | B159: 2745 | C159: PONTALETE ROLIÇO SEM TRATAMENTO, D = 8 A 11 CM, H = 3 M, EM EUCALIPTO OU EQUIVALENTE DA REGIAO - BRUTA (PARA ESCORAMENTO) | D159: m | E159: MAT | F159: SINAPI | G159: 3.39
A160: 151 | B160: 4491 | C160: PONTALETE EM PINUS 7,5 x 7,5 cm | D160: m | E160: MAT | F160: SINAPI | G160: 4.07
A161: 152 | B161: 4339 | C161: Porca sextavada aço zincado 1/2" | D161: un | E161: MAT | F161: SINAPI | G161: 0.34
A162: 153 | B162: 4342 | C162: Porca sextavada aço zincado 3/8" | D162: un | E162: MAT | F162: SINAPI | G162: 0.14
A163: 154 | B163: 39997 | C163: PORCA ZINCADA, SEXTAVADA, DIÂMETRO 1/4" | D163: un | E163: MAT | F163: SINAPI | G163: 0.2
A164: 155 | B164: 20247 | C164: Prego de aço 15 x 15 c/cabeça | D164: kg | E164: MAT | F164: SINAPI | G164: 22.47
A165: 156 | B165: 5074 | C165: Prego de aço 15 x 18 c/cabeça | D165: kg | E165: MAT | F165: SINAPI | G165: 22.74
A166: 157 | B166: 5075 | C166: PREGO DE AÇO 18 x 30 C/CABEÇA | D166: kg | E166: MAT | F166: SINAPI | G166: 21.11
A167: 158 | B167: 5068 | C167: PREGO DE ACO POLIDO COM CABECA 17 X 21 (2 X 11) | D167: kg | E167: MAT | F167: SINAPI | G167: 21.11
A168: 159 | B168: 5073 | C168: Prego de aço 17 x 24 c/cabeça | D168: kg | E168: MAT | F168: SINAPI | G168: 20.68
A169: =+A168+1 -> 160 | B169: 40304 | C169: Prego de aço 17 x 27 c/cabeça dupla | D169: kg | E169: MAT | F169: SINAPI | G169: 25.05
A170: 161 | B170: 5061 | C170: PREGO DE AÇO 18 x 27 C/CABEÇA | D170: kg | E170: MAT | F170: SINAPI | G170: 20.75
A171: 162 | B171: 39027 | C171: Prego de aço 19 x 36 c/cabeça | D171: kg | E171: MAT | F171: SINAPI | G171: 20.27
A172: 163 | B172: 5044 | C172: POSTE DE CONCRETO CIRCULAR, 200 kg, H = 9 m | D172: un | E172: MAT | F172: SINAPI | G172: 920.7
A173: 164 | B173: 20043 | C173: REDUÇÃO EXCÊNTRICA PVC P/ ESGOTO PREDIAL 100 x 50 mm | D173: un | E173: MAT | F173: SINAPI | G173: 8.94
A174: 165 | B174: 6016 | C174: REGISTRO GAVETA BRUTO EM LATÃO FORJADO, BITOLA 3/4" | D174: un | E174: MAT | F174: SINAPI | G174: 32.79
A175: 166 | B175: =+Cotações!A107 -> 101 | C175: Saibro rosa - posto obra | D175: m³ | E175: MAT | F175: Cotação | G175: =Cotações!M107 -> 59
A176: 167 | B176: =+Cotações!A8 -> 27 | C176: Sarrafo cedrinho 2,5 x 2,5 cm | D176: m | E176: MAT | F176: Cotação | G176: =Cotações!N8 -> 4.6
A177: 168 | B177: =+Cotações!A9 -> 28 | C177: Sarrafo cedrinho 2,5 x 5,0 cm | D177: m | E177: MAT | F177: Cotação | G177: =Cotações!N9 -> 7.5
A178: 169 | B178: 4417 | C178: Sarrafo de madeira não aparelhada 2,5x7 cm | D178: m | E178: MAT | F178: SINAPI | G178: 32.79
A179: 170 | B179: 4460 | C179: Sarrafo não aparelhado 2,5x10 cm | D179: m | E179: MAT | F179: SINAPI | G179: 7.48
A180: 171 | B180: 4512 | C180: SARRAFO DE MADEIRA NAO APARELHADA 2,5 X 5 CM (1 X 2 ") PINUS, MISTA OU EQUIVALENTE DA REGIAO | D180: m | E180: MAT | F180: SINAPI | G180: 0.98
A181: 172 | B181: 4517 | C181: Sarrafo pinus 2,5 x 7,5 cm | D181: m | E181: MAT | F181: SINAPI | G181: 1.53
A182: 173 | B182: 5318 | C182: Solvente Diluente a base de aguarrás | D182: l | E182: MAT | F182: SINAPI | G182: 17.98
A183: 174 | B183: 6193 | C183: Tábua de madeira não aparelhada cedrinho 2,5 x 20 cm | D183: m | E183: MAT | F183: SINAPI | G183: 14.98
A184: 175 | B184: 6189 | C184: Tábua de madeira não aparelhada cedrinho 2,5 x 30 cm | D184: m | E184: MAT | F184: SINAPI | G184: 21.86
A185: 176 | B185: =+Cotações!$A$154 -> 130 | C185: Tabuleiro p/mesa de damas 40 x 40 cm | D185: un | E185: MAT | F185: Cotação | G185: =TRUNC((IF($D$6="MÉDIA",Cotações!M154,Cotações!N154))) -> 950 | H185: VALOR ATUALIZADO
A186: 177 | B186: 1163 | C186: CAP OU TAMPAO DE FERRO GALVANIZADO, COM ROSCA BSP, DE 3/4" | D186: un | E186: MAT | F186: SINAPI | G186: 5.43
A187: 178 | B187: 1164 | C187: Tampão de ferro galvanizado de 1 1/4" | D187: un | E187: MAT | F187: SINAPI | G187: 12.08
A188: 179 | B188: 1165 | C188: Tampão de ferro galvanizado de 1 1/2" | D188: un | E188: MAT | F188: SINAPI | G188: 14.92
A189: 180 | B189: 1166 | C189: Tampão de ferro galvanizado de 2" | D189: un | E189: MAT | F189: SINAPI | G189: 21.55
A190: 181 | B190: 1169 | C190: Tampão de ferro galvanizado de 2 1/2" | D190: un | E190: MAT | F190: SINAPI | G190: 41.16
A191: 182 | B191: 1168 | C191: Tampão de ferro galvanizado de 3" | D191: un | E191: MAT | F191: SINAPI | G191: 55.4
A192: 183 | B192: 34558 | C192: TELA DE ACO SOLDADA GALVANIZADA/ZINCADA PARA ALVENARIA, FIO D = *1,20 A 1,70* MM, MALHA 15 X 15 MM, (C X L) *50 X 10,5* CM | D192: m² | E192: MAT | F192: SINAPI | G192: 5.76
A193: 184 | B193: 37411 | C193: TELA DE ACO SOLDADA GALVANIZADA/ZINCADA PARA ALVENARIA, FIO D = *1,24 MM, MALHA 25 X 25 MM | D193: m² | E193: MAT | F193: SINAPI | G193: 32.79
A194: 185 | B194: 37524 | C194: TELA PLASTICA LARANJA, TIPO TAPUME PARA SINALIZACAO, MALHA RETANGULAR, ROLO 1.20 X 50 M (L X C) | D194: m | E194: MAT | F194: SINAPI | G194: 2.06
A195: 186 | B195: 7155 | C195: Tela de aço soldada CA-60 4,2 mm 10 x 10 cm (Q-138) | D195: m² | E195: MAT | F195: SINAPI | G195: 35.27
A196: 187 | B196: 7158 | C196: TELA DE ARAME GALVANIZADA QUADRANGULAR / LOSANGULAR, FIO 2,77 MM (12 BWG), MALHA 5 X 5 CM, H = 2 M | D196: m² | E196: MAT | F196: SINAPI | G196: 23.48
A197: 188 | B197: 21141 | C197: Tela de aço soldada CA-60 4,2 mm 15 x 15 cm (Q-92) | D197: m² | E197: MAT | F197: SINAPI | G197: 24.18
A198: 189 | B198: 7156 | C198: Tela de aço soldada CA-60 5,0 mm 10 x 10 cm (Q-196) | D198: m² | E198: MAT | F198: SINAPI | G198: 51.7
A199: 190 | B199: 7258 | C199: TIJOLO CERAMICO MACICO *5 X 10 X 20* CM | D199: un | E199: MAT | F199: SINAPI | G199: 0.62
A200: 191 | B200: 10617 | C200: Tijolo cerâmico refratário 6,3 x 11,4 x 22,9 cm | D200: un | E200: MAT | F200: SINAPI | G200: 5.05
A201: 192 | B201: 34401 | C201: TIJOLO CERÂMICO LAMINADO 5,5 x 11 x 23 cm | D201: un | E201: MAT | F201: SINAPI | G201: 1.71
A202: 193 | B202: 7311 | C202: TINTA ESMALTE SINTETICO PREMIUM ACETINADO | D202: l | E202: MAT | F202: SINAPI | G202: 28.37
A203: 194 | B203: 7348 | C203: Tinta acrílica premium para piso | D203: l | E203: MAT | F203: SINAPI | G203: 17.12
... 29 more rows

Sheet Cotações
A1: COTAÇÕES DE INSUMOS
A3: *Na célula comentário com o nome do fornecedor, e-mail e data da cotação. | K3: Data Cotações: | N3: Junho / 2021
A6: Código | B6: Insumo | C6: un | D6: Fornecedor 1 | E6: Fone | F6: Fornecedor 2 | G6: Fone | H6: Fornecedor 3 | I6: Fone | J6: Reserva | L6: Observações | M6: Média | N6: Mediana
D7: Mondai Madeiras | E7: 3587-1643 | F7: Cunha Madeiras | G7: 3364-2778 | H7: Madereira Guarujá | I7: 3246-5955
A8: 27 | B8: Sarrafo cedrinho 2,5 x 2,5 cm | C8: m | D8: 4 | F8: 4.9 | H8: 4.6 | M8: =TRUNC((AVERAGE(D8,F8,H8)),2) -> 4.5 | N8: =TRUNC((MEDIAN(D8:I8)),2) -> 4.6
A9: =+A8+1 -> 28 | B9: Sarrafo cedrinho 2,5 x 5,0 cm | C9: m | D9: 7.5 | F9: 8.1 | H9: 6.2 | M9: =TRUNC((AVERAGE(D9,F9,H9)),2) -> 7.26 | N9: =TRUNC((MEDIAN(D9:I9)),2) -> 7.5
D10: Mondai Madeiras | E10: 3587-1643 | F10: Cunha Madeiras | G10: 3364-2778 | H10: Schreiner Madeiras | I10: 41-3543-1316
A11: =+A9+1 -> 29 | B11: CAIBRO CEDRINHO 5 x 7 cm | C11: m | D11: 20 | F11: 24.4 | H11: 41.25 | M11: =TRUNC((AVERAGE(D11,F11)),2) -> 22.2 | N11: =TRUNC((MEDIAN(D11:I11)),2) -> 24.4
A12: 20 | B12: Guia cedrinho 2,5 x 10 cm | C12: m | D12: 12.5 | F12: 16.3 | H12: 14.37 | M12: =TRUNC((AVERAGE(D12,F12,H12)),2) -> 14.39 | N12: =TRUNC((MEDIAN(D12:I12)),2) -> 14.37
A13: 22 | B13: Guia cedrinho 2,5 x 20 cm | C13: m | D13: 25 | F13: 32.5 | H13: 28.75 | M13: =TRUNC((AVERAGE(D13,F13,H13)),2) -> 28.75 | N13: =TRUNC((MEDIAN(D13:I13)),2) -> 28.75
D14: Mad. Guarujá | E14: (51) 3246-5944 | F14: Cunha Madeiras | G14: 3364-2778 | H14: Schreiner Madeiras | I14: (47) 991164445
A15: 25 | B15: Tábua itaúba lixada e aplainada 2,5x20x5,50 | C15: pç | D15: 245 | F15: 343.8 | H15: 246.4 | L15: Bitolas das tábuas brutas: | M15: =TRUNC((AVERAGE(D15,F15,H15)),2) -> 278.4 | N15: =TRUNC((MEDIAN(D15:I15)),2) -> 246.4
A16: 26 | B16: Tábua itaúba lixada e aplainada 3x22x3,00 | C16: pç | D16: 267 | F16: 375 | H16: 264 | L16: Esp.: 2,5 , 4 , 5 , 8 , 10 , 15 cm | M16: =TRUNC((AVERAGE(D16,F16,H16)),2) -> 302 | N16: =TRUNC((MEDIAN(D16:I16)),2) -> 267
A17: =+A16+1 -> 27 | B17: Tábua itaúba lixada e aplainada 3x22x4,00 | C17: pç | D17: 356 | F17: 500 | H17: 352 | L17: Larg.: 5, 7, 10, 15, 20, 25, 30 cm | M17: =TRUNC((AVERAGE(D17,F17,H17)),2) -> 402.66 | N17: =TRUNC((MEDIAN(D17:I17)),2) -> 356
A18: 28 | B18: Tábua itaúba lixada e aplainada 3x22x4,50 | C18: pç | D18: 401 | F18: 562.5 | H18: 396 | L18: Comp.: 1, 1,5 , 2, 2,5 , 3, 3,5 , 4, 4,5 , 5, 5,5 m | M18: 453.16 | N18: 401
A19: 29 | B19: Tábua itaúba lixada e aplainada 3x30x3,00 | C19: pç | D19: 321 | F19: 450 | H19: 325.6 | M19: 365.53 | N19: =TRUNC((MEDIAN(D19:I19)),2) -> 325.6
A20: 30 | B20: Tábua itaúba lixada e aplainada 3,5x15x5,50 | C20: pç | D20: 295 | F20: 412.5 | H20: 290.4 | M20: 332.63 | N20: 295
A21: 31 | B21: Tábua itaúba lixada e aplainada 3,5x25x2,00 | C21: pç | D21: 223 | F21: 250 | H21: 176 | M21: 216.33 | N21: 223
A22: 32 | B22: Tábua itaúba lixada e aplainada 4x10x4,00 | C22: pç | D22: 142.55 | F22: 200 | H22: 140.8 | M22: 161.11 | N22: 142.55
A23: 33 | B23: Tábua itaúba lixada e aplainada 4x10x5,50 | C23: pç | D23: 196 | F23: 275 | H23: 193.6 | M23: 221.53 | N23: 196
A24: 34 | B24: Tábua itaúba lixada e aplainada 4x30x3,00 | C24: pç | D24: 321 | F24: 450 | H24: 325.6 | M24: 365.53 | N24: 325.6
A25: 35 | B25: Tábua itaúba lixada e aplainada 4x30x4,00 | C25: pç | D25: 430 | F25: 600 | H25: 431.2 | M25: 487.06 | N25: 431.2
A26: 36 | B26: Tábua itaúba lixada e aplainada 4x30x4,50 | C26: pç | D26: 485 | F26: 675 | H26: 484 | M26: 548 | N26: 485
A27: =+A26+1 -> 37 | B27: Sarrafo itaúba 2,5x5 | C27: m | D27: 13.3 | F27: 15 | H27: 11 | M27: 13.1 | N27: 13.3
A28: 38 | B28: Caibro itaúba 5x5 | C28: m | D28: 26.7 | F28: 24 | H28: 26.4 | M28: 25.7 | N28: 26.4
A29: 39 | B29: Caibro itaúba 5x7 | C29: m | D29: 33.5 | F29: 36 | H29: 35.2 | M29: 34.9 | N29: 35.2
A30: 40 | B30: Caibro itaúba 5x10 | C30: m | D30: 45 | F30: 48 | H30: 44 | M30: 45.66 | N30: 45
A31: 41 | B31: Tábua itaúba 4x15 | C31: m | D31: 55 | F31: 72 | H31: 52.8 | M31: 59.93 | N31: 55
A32: 42 | B32: Tábua itaúba 4x25 | C32: m | D32: 112 | F32: 120 | H32: 88 | M32: 106.66 | N32: 112
A33: 43 | B33: Tábua itaúba 4x30 | C33: m | D33: 107 | F33: 144 | H33: 105.6 | M33: 118.86 | N33: 107
A34: 44 | B34: Tábua itaúba lixada e aplainada 3,5x19x1,80 | C34: pç | D34: 130.5 | F34: 200 | H34: 140.8 | M34: 157.1 | N34: 140.8
A35: 45 | B35: Tábua itaúba lixada e aplainada 3,5x19x2,00 | C35: pç | D35: 145 | F35: 200 | H35: 140.8 | M35: 161.93 | N35: 145
D36: Delei Madeiras | E36: 3395-1868 | F36: Madelei | G36: 3373-8888 | H36: Cofel | I36: 3222-2255
A37: =+A35+1 -> 46 | B37: Laminado melamínico texturizado chapa 1,25 x 3,08 m esp=0,8 mm | C37: m² | D37: 25.71 | F37: 32.25 | H37: 40.26 | L37: Dividir o valor pela área da chapa (3,85 m²) | M37: =TRUNC((AVERAGE(D37,F37,H37)),2) -> 32.74 | N37: =TRUNC((MEDIAN(D37:K37)),2) -> 32.25
D38: Mariani | E38: 3403-2222 | F38: Flosul | G38: 51 3681-0100 | H38: MSA | I38: 3556-3711
A39: =+A37+1 -> 47 | B39: Tora eucalipto tratada d=20 cm | C39: m | D39: 57 | F39: 28.41 | H39: 30.1 | L39: Total=frete/m+tora (frete/ 99 m (cancha de bocha)) | M39: =TRUNC((AVERAGE(F39,H39)),2) -> 29.25 | N39: =TRUNC((MEDIAN(D39:K39)),2) -> 30.1
D40: SL Parafusos Ltda | E40: 3411-9800 | F40: Guido A. Jacobus | G40: 3024-1200 | H40: Central de Parafusos | I40: 3341-9353 | J40: Brasil dos Parafusos | K40: 3326-1946
A41: =+A39+1 -> 48 | B41: Parafuso aço inox 1/4" x 3" c/porca | C41: un | D41: =1.71 -> 1.71 | F41: 3.18 | H41: 0.85 | J41: 2.4 | L41: Acrescentar o valor da porca quando vier separado (R$ ___) | M41: =TRUNC((AVERAGE(D41,F41,H41,J41)),2) -> 2.03 | N41: =TRUNC((MEDIAN(D41:K41)),2) -> 2.05
A42: 49 | B42: Parafuso francês zincado 5/16" x 2" c/porca | C42: un | D42: 1.2 | F42: 0.38 | H42: 1 | J42: 1.09 | M42: =TRUNC((AVERAGE(D42,F42,H42,J42)),2) -> 0.91 | N42: =TRUNC((MEDIAN(D42:K42)),2) -> 1.04
A43: 50 | B43: Parafuso francês zincado 5/16" x 2 1/2" c/ porca | C43: un | D43: 1.39 | F43: 0.44 | H43: 1.17 | J43: 1.24 | M43: =TRUNC((AVERAGE(D43,F43,H43,J43)),2) -> 1.06 | N43: =TRUNC((MEDIAN(D43:K43)),4) -> 1.205
A44: 51 | B44: Parafuso francês zincado 5/16" x 4" c/ porca | C44: un | D44: 1.91 | F44: 0.61 | H44: 1.65 | J44: 1.72 | M44: 1.47 | N44: 1.68
A45: 52 | B45: Parafuso francês zincado 5/16" x 5" c/porca | C45: un | D45: 2.25 | F45: 0.71 | H45: 2 | J45: 2.01 | M45: 1.74 | N45: 2
A46: 53 | B46: Parafuso inox auto atarraxante 4,8 x 70 cabeça chata | C46: un | D46: 0.88 | F46: 0.62 | H46: 1.88 | J46: 1.14 | M46: 1.13 | N46: 1.01
A47: 54 | B47: Parafuso inox auto atarraxante 4,8 x 100 cabeça chata | C47: un | D47: 2.32 | F47: - | H47: - | J47: 2.73 | M47: =TRUNC((AVERAGE(D47,F47,H47,J47)),2) -> 2.52 | N47: 2.52
A48: 55 | B48: Parafuso sextavado aço zincado 1/2" x 1 1/2" | C48: un | D48: =1.96 -> 1.96 | F48: 0.7 | H48: 2.2 | J48: 1.97 | M48: 1.7 | N48: 1.96
A49: 56 | B49: Parafuso sextavado aço zincado 1/2" x 3 1/2" | C49: un | D49: 4.48 | F49: 1.46 | H49: 4 | J49: 3.6 | M49: 3.38 | N49: 3.8
A50: 57 | B50: Parafuso sextavado aço zincado 1/2" x 8" | C50: un | D50: 10.66 | F50: 3.33 | H50: - | J50: 9.88 | M50: 7.95 | N50: 9.88
A51: 58 | B51: Parafuso sextavado aço zincado 1/4" x 2" c/ porca | C51: un | D51: =0.52+32.65/100 -> 0.8465 | F51: 0.24 | H51: 0.6 | J51: 0.68 | L51: Acrescentar o valor da porca quando vier separado (R$ ___) | M51: 0.59 | N51: =TRUNC((MEDIAN(D51:K51)),4) -> 0.64
A52: 59 | B52: Parafuso sextavado rosca soberba 1/4" x 30 mm | C52: un | D52: 0.42 | F52: 0.13 | H52: 0.4 | J52: 0.38 | M52: 0.33 | N52: 0.39
D53: Gerdau | E53: 3373-2500 | F53: Arcelor Mittal | G53: 2121-7777 | H53: Sidersul | I53: 3041-6565
A54: =+A52+1 -> 60 | B54: Barra ferro chato 7/8" x 1/8" | C54: kg | D54: 4.63 | F54: 4.14 | H54: 4.96 | M54: =TRUNC((AVERAGE(D54,F54,H54)),2) -> 4.57 | N54: =TRUNC((MEDIAN(D54:I54)),2) -> 4.63
A55: 61 | B55: Barra ferro chato 7/8" x 1/4" | C55: kg | D55: 4.67 | F55: 4.35 | H55: 4.96 | M55: 4.66 | N55: 4.67
A56: 62 | B56: Barra ferro chato 1 1/4" x 1/4" | C56: kg | D56: 4.67 | F56: 4.14 | H56: 4.96 | M56: 4.59 | N56: 4.67
A57: 63 | B57: Barra ferro chato 2" x 1/8" | C57: kg | D57: 5.21 | F57: 4.83 | H57: 4.96 | M57: 5 | N57: 4.96
A58: 64 | B58: Chapa aço 1/2" | C58: kg | D58: 4.14 | F58: 5.08 | H58: 4.95 | M58: 4.72 | N58: 4.95
A59: 65 | B59: Chapa aço 1/4" | C59: kg | D59: 4.14 | F59: 5.08 | H59: 4.95 | M59: 4.72 | N59: 4.95
A60: 66 | B60: Chapa aço 3/16" | C60: kg | D60: 4.14 | F60: 5.08 | H60: 4.95 | M60: 4.72 | N60: 4.95
D61: Redinox | E61: 3020-0707 | F61: Steel Sul | G61: 3059-8744 | H61: Galeazi | I61: 4042-8322
A62: =+A60+1 -> 67 | B62: Chapa aço inox e=1,00 mm (AISI 304) | C62: m² | D62: 156 | F62: 164.5 | H62: 199.62 | M62: =TRUNC((AVERAGE(D62,F62,H62)),2) -> 173.37 | N62: =TRUNC((MEDIAN(D62:K62)),2) -> 164.5
D63: Chapas aço + galvanização
A64: =+A62+1 -> 68 | B64: Chapa galvanizada 1/2" | C64: kg | L64: Insumo 71 + galvanização/kg (R$ 2,30) | M64: =TRUNC(IF(Cotações!M58<Cotações!N58,Cotações!M58,Cotações!N58)+((IF(Cotações!$M$68<Cotações!$N$68,Cotações!$M$68,Cotações!$N$68))),2) -> 7.12
A65: =+A64+1 -> 69 | B65: Chapa galvanizada 1/4" | C65: kg | L65: Insumo 72 + galvanização/kg (R$ 2,30) | M65: =TRUNC(IF(Cotações!M59<Cotações!N59,Cotações!M59,Cotações!N59)+((IF(Cotações!$M$68<Cotações!$N$68,Cotações!$M$68,Cotações!$N$68))),2) -> 7.12
A66: =+A65+1 -> 70 | B66: Chapa galvanizada 3/16" | C66: kg | L66: Insumo 73 + galvanização/kg (R$ 2,30) | M66: =TRUNC(IF(Cotações!M60<Cotações!N60,Cotações!M60,Cotações!N60)+((IF(Cotações!$M$68<Cotações!$N$68,Cotações!$M$68,Cotações!$N$68))),2) -> 7.12
D67: Beretta | E67: 3479-2222 | F67: ATN | G67: 3470-0000 | H67: Bento Sul | I67: 54 3453-5053
A68: =+A66+1 -> 71 | B68: Processo de Galvanização | C68: kg | D68: 2.5 | F68: 2.5 | H68: 2.2 | L68: preço por kg de chapa + 10% relativo ao peso total após galvanização | M68: =TRUNC((AVERAGE(D68,F68,H68)),2) -> 2.4 | N68: =TRUNC((MEDIAN(D68:K68)),2) -> 2.5
D69: Sulfer | E69: 3470-4004 | F69: Scharlau | G69: 3091-1525 | H69: Global Aço | I69: 3470-3522 | J69: Imp. Americana | K69: 3337-4611
A70: =+A68+1 -> 72 | B70: Cumeeira galvalume ondulada 0,50 mm | C70: un | D70: 28.6 | F70: 29.34 | H70: 30 | J70: 23.6 | L70: Cumeeira com 1 m de comprimento | M70: =TRUNC((AVERAGE(D70,F70,H70,J70)),2) -> 27.88 | N70: =TRUNC((MEDIAN(D70:K70)),2) -> 28.97
A71: 73 | B71: Telha galvalume ondulada 0,50 mm x 1,03 m x 1 m | C71: m | D71: 34.9 | F71: 26.3 | H71: 30 | J71: 23.6 | M71: =TRUNC((AVERAGE(D71,F71,H71,J71)),2) -> 28.7 | N71: =TRUNC((MEDIAN(D71:K71)),2) -> 28.15
D72: Sulfer | E72: 3470-4004 | F72: Aço Tubo | G72: 2126-9400 | H72: Açoduto | I72: 3058-5353 | J72: Ipiranga | K72: 3303-2100
A73: =+A71+1 -> 74 | B73: Tubo aço carbono 6" e=6,35 mm (NBR 6591) | C73: m | D73: - | F73: 206.34 | H73: 182.35 | J73: 150.15 | L73: tubo condutor | M73: =TRUNC((AVERAGE(F73,H73,J73)),2) -> 179.61 | N73: =TRUNC((MEDIAN(D73:K73)),2) -> 182.35
A74: 75 | B74: Tubo ferro preto quadrado 7x7 cm esp=3,00 mm | C74: m | D74: 73.71 | F74: - | H74: 56 | J74: 40.6 | L74: tubo / 6,00 m | M74: =TRUNC((AVERAGE(D74,H74,J74)),2) -> 56.77 | N74: =TRUNC((MEDIAN(D74:K74)),2) -> 56
D75: FG | E75: 3358-1213 | H75: CPM Representações | J75: RAV Correntes | K75: 54-3019-1436
A76: =+A74+1 -> 76 | B76: Corrente aço galvanizado d=5 mm elo longo 22x45 mm | C76: kg | D76: 23.6 | H76: 22.23 | J76: 23.43 | L76: Na próxima atualização utilizar elo curto e=6 mm 22x40 mm | M76: =TRUNC((AVERAGE(D76,H76,J76)),2) -> 23.08 | N76: =TRUNC((MEDIAN(D76:K76)),2) -> 23.43
A77: 77 | B77: Disco de Corte MR832 - 7" - Norton uso geral | C77: un | D77: 22.9 | F77: 26.34 | H77: 16.5 | M77: =TRUNC((AVERAGE(D77,F77)),2) -> 24.62 | N77: =TRUNC((MEDIAN(D77:K77)),2) -> 22.9
D78: Telas Caxias | E78: 3364-1688 | F78: Rio Branco | G78: 3466-8095 | H78: Renovar | I78: 3342-7711 | J78: Sul Tela | K78: 3372-1475
A79: =+A77+1 -> 78 | B79: Esticador de arame | C79: un | D79: 5 | F79: - | H79: 5 | J79: 7 | M79: =TRUNC((AVERAGE(D79,F79,H79,J79)),2) -> 5.66 | N79: =TRUNC((MEDIAN(D79:K79)),2) -> 5
A80: =+A79+1 -> 79 | B80: Tela arame galvanizado 5x5 cm fio 12 BWG | C80: m² | D80: 22 | F80: 21 | H80: 26.5 | J80: 28.6 | M80: =TRUNC((AVERAGE(D80,F80,H80,J80)),2) -> 24.52 | N80: =TRUNC((MEDIAN(D80:K80)),2) -> 24.25
A81: =+A80+1 -> 80 | B81: Tela arame galvanizado 4x4 cm fio 10 BWG | C81: m² | D81: 33 | F81: 49 | H81: 63 | J81: - | M81: =TRUNC((AVERAGE(D81,F81,H81)),2) -> 48.33 | N81: =TRUNC((MEDIAN(D81:K81)),2) -> 49
D82: Fundição Silva Três Rios | E82: (24) 2255-3130 | F82: Fundição Zenah | G82: (54) 3228-5669
A83: =+A81+1 -> 81 | B83: Fradinho em ferro fundido | C83: un | D83: 314 | F83: 600 | M83: =TRUNC((AVERAGE(D83)),2) -> 314 | N83: =TRUNC((MEDIAN(D83:K83)),2) -> 457
D84: Ziober | E84: 44 3029-4410 | F84: Milla Equip. Met. | G84: 19 3363-1051 | H84: Flex | I84: 17 3223-2766
A85: =+A83+1 -> 82 | B85: Abdominal Simples | C85: un | D85: 5610 | F85: 4510 | H85: 4690 | L85: Galvanizados | M85: =TRUNC((AVERAGE(D85,F85:I85)),2) -> 4936.66 | N85: =TRUNC((MEDIAN(D85:I85)),2) -> 4690
A86: =+A85+1 -> 83 | B86: Adução e abdução de pernas duplo | C86: un | D86: 11490 | F86: 9150 | H86: 6940 | M86: =TRUNC((AVERAGE(D86,F86:I86)),2) -> 9193.33 | N86: =TRUNC((MEDIAN(D86:I86)),2) -> 9150
A87: 84 | B87: Esqui triplo conjugado | C87: un | D87: 18000 | F87: 21430 | H87: 8990 | M87: 16140 | N87: 18000
A88: 85 | B88: Jogo de barras | C88: un | D88: 9600 | F88: 11778 | H88: 6700 | M88: 9359.33 | N88: 9600
A89: 86 | B89: Multiexercitador conjugado 6 funções | C89: un | D89: 22200 | F89: 17184 | H89: 9190 | M89: 16191.33 | N89: 17184
A90: 87 | B90: Peitoral duplo | C90: un | D90: 14220 | F90: 9790 | H90: 7700 | M90: 10570 | N90: 9790
A91: 88 | B91: Placa orientativa (ATI) | C91: un | D91: 8130 | F91: 9966 | H91: 4990 | M91: 7695.33 | N91: 8130
A92: 89 | B92: Pressão de pernas triplo conjugado | C92: un | D92: 10860 | F92: 10706 | H92: 6850 | M92: 9472 | N92: 10706
A93: 90 | B93: Puxador duplo | C93: un | D93: 14220 | F93: 10428 | H93: 7690 | M93: 10779.33 | N93: 10428
A94: 91 | B94: Remada (APC) | C94: un | D94: 8340 | F94: 5940 | H94: 3890 | M94: 6056.66 | N94: 5940
A95: 92 | B95: Simulador de caminhada triplo conjugado | C95: un | D95: 16740 | F95: 15134 | H95: 7800 | M95: 13224.66 | N95: 15134
A96: 93 | B96: Simulador de remo | C96: un | D96: 6660 | F96: 5240 | H96: 5640 | M96: 5846.66 | N96: 5640
A97: =+A96+1 -> 94 | B97: Voador peitoral e voador dorsal (APC) | C97: un | D97: 13170 | F97: 6200 | H97: 3890 | M97: 7753.33 | N97: 6200
D98: Shopping de Pedras | E98: 3249-1111 | F98: Eládio | G98: 3328-5858 | H98: São Cristóvão | I98: 54 3477-1305 | J98: Coloretti | K98: 54 3477-1369
A99: =+A97+1 -> 95 | B99: Basalto Irregular | C99: m² | D99: 60 | F99: 50 | H99: 97 | J99: 60 | M99: =TRUNC((AVERAGE(D99,F99,H99,J99)),2) -> 66.75 | N99: =TRUNC((MEDIAN(D99:K99)),2) -> 60
A100: =+A99+1 -> 96 | B100: Basalto Irregular meio retalhão | C100: m² | D100: 110 | F100: 150 | H100: 107 | J100: 120 | M100: =TRUNC((AVERAGE(D100,F100,H100,J100)),2) -> 121.75 | N100: =TRUNC((MEDIAN(D100:K100)),2) -> 115
A101: =+A100+1 -> 97 | B101: Basalto Regular talhado | C101: =C100 -> m² | D101: 95 | F101: 110 | H101: 77 | J101: 80 | M101: 90.5 | N101: 87.5
A102: =+A101+1 -> 98 | B102: Basalto Regular serrado | C102: m² | D102: 110 | F102: 120 | H102: 163 | J102: 98 | M102: 122.75 | N102: 115
D103: DPS | E103: 3499-1536 | F103: Incorevest | G103: 3062-5119 | J103: RF Rede Pallet | K103: 3059-7270
A104: =+A102+1 -> 99 | B104: Lajota de concreto 45x45cm esp.=2,5cm | C104: m² | D104: 32.9 | F104: 52 | J104: 25.9 | M104: =TRUNC((AVERAGE(D104,F104,J104)),2) -> 36.93 | N104: =TRUNC((MEDIAN(D104:K104)),2) -> 32.9
A105: =+A104+1 -> 100 | B105: Piso Podotátil 25 x 25 cm | C105: un | D105: 3.5 | F105: 3.5 | J105: 4.2 | M105: =TRUNC((AVERAGE(D105,F105,J105)),2) -> 3.73 | N105: =TRUNC((MEDIAN(D105:K105)),2) -> 3.5
D106: Simil - Maquitel | E106: 3403-3232
A107: =+A105+1 -> 101 | B107: Saibro rosa - posto obra | C107: m³ | D107: 59 | L107: Fazer média dos fretes (Centro, Ipanema, Sarandi) | M107: =TRUNC((AVERAGE(D107)),2) -> 59 | N107: 59
D108: Rossatto | E108: 3250-5076 | F108: Jardins da Aldeia | G108: 3488-6251 | H108: Gramados Vargas | I108: 3367-2625 | J108: Canoas Garden | K108: 3472-4931
A109: =+A107+1 -> 102 | B109: Composto Orgânico | C109: m³ | D109: 180 | F109: 130 | H109: 120 | J109: 160 | M109: =TRUNC((AVERAGE(D109,F109,H109,J109)),2) -> 147.5 | N109: 145
A110: =+A109+1 -> 103 | B110: Grama catarina (Axonopus compressus) | C110: m² | D110: 9.5 | F110: 12 | H110: 8 | J110: 12 | M110: =TRUNC((AVERAGE(D110,F110,H110,J110)),2) -> 10.37 | N110: 10.75
A111: =+A110+1 -> 104 | B111: Grama de campo ( 1ª qualidade) | C111: =C110 -> m² | D111: - | F111: 6 | H111: 6 | J111: 6.5 | M111: =TRUNC((AVERAGE(F111,H111,J111)),2) -> 6.16 | N111: 6
D112: Sulcopy | E112: 2103-4660 | F112: Impacto | G112: 3334-9900 | H112: Sul10 | I112: 4061-1001 | J112: Pino | K112: 3012-9090
A113: =+A111+1 -> 105 | B113: Placa em lona impressa c/ 6 m² | C113: m² | D113: 80 | F113: 50 | H113: 70 | J113: 51.75 | L113: Solicitar valor de placa com 6,00 m/2 (Dividir valor por 6) | M113: =TRUNC((AVERAGE(D113,F113,H113,J113)),2) -> 62.93 | N113: 60.87
D114: Construtec | E114: 3012-2333 | F114: Reis e Reis | G114: 12 3966-9977 | H114: TecMachine | I114: 11 4643-4846
A115: =+A113+1 -> 106 | B115: Microfibra de polipropileno (sc 600 g) | C115: sc | D115: 33 | F115: 21.65 | H115: 23.2 | L115: Saco de 600 g (600 g/m³ de concreto) | M115: =TRUNC((AVERAGE(D115,F115,H115)),2) -> 25.95 | N115: 23.2
D116: Mineração Peixoto | E116: 51 3678-1020 | F116: Grani Torre | G116: 11 2246-1250 | H116: Polipiso | I116: 99116-4697
A117: =+A115+1 -> 107 | B117: Argamassa de alta resistência (Piso duro) | C117: kg | D117: 0.74 | F117: 0.65 | H117: 0.77 | L117: Frete para 1800,00 kg | M117: =TRUNC((AVERAGE(D117,F117,H117)),2) -> 0.72 | N117: 0.74
D118: Constinta | E118: 3341-6344 | H118: Porto Cores | I118: 3346-3339 | J118: Aquarela Tintas | K118: 3223-0133
A119: =+A117+1 -> 108 | B119: Fundo p/ galvanizado | C119: l | D119: 35.27 | H119: 37.22 | J119: 31.94 | M119: =TRUNC((AVERAGE(D119,H119,J119)),2) -> 34.81 | N119: =TRUNC((MEDIAN(D119,H119,J119)),2) -> 35.27
D120: Drenamac | E120: 3029-7593 | F120: Drenotec | G120: 3119-1244 | H120: Geofoco | I120: 0800-378-8500
A121: =+A119+1 -> 109 | B121: Manta Geotêxtil para cura do concreto | C121: m² | D121: 2.2 | F121: 2.5 | H121: 2.1 | L121: Bidim CC-10 | M121: =TRUNC((AVERAGE(D121,F121,H121)),2) -> 2.26 | N121: =TRUNC((MEDIAN(D121:K121)),2) -> 2.2
D122: Prod Equipam. MB | E122: 3377-2035
A123: =+A121+1 -> 110 | B123: Papeleira metálica basculante H-30 | C123: un | D123: 900 | M123: =TRUNC((AVERAGE(D123)),2) -> 900 | N123: 900
D124: Elevato | E124: 3349-0200 | F124: SIA | G124: 3375-3800 | H124: Mil Torneiras | I124: 3371-3200
A125: =+A123+1 -> 111 | B125: Válvula de mictório anti-vandalismo alta pressão Docol | C125: un | D125: 557.81 | F125: 362.1 | H125: 413.9 | M125: =TRUNC((AVERAGE(D125,F125,H125)),2) -> 444.6 | N125: 413.9
D126: Lourenço Mármores | E126: 3217-1323 | F126: De Grandi | G126: 3307-7724 | H126: Bello | I126: 3217-5900 | J126: Belotto | K126: 3541-5521
A127: =+A125+1 -> 112 | B127: Placa de granito | C127: un | D127: 550 | F127: 650 | H127: 840 | J127: 750 | M127: =TRUNC((AVERAGE(D127,F127,H127,J127)),2) -> 697.5 | N127: 700
D128: Gaúcha | E128: 3245-3500 | F128: Pouco Entulho | G128: 51 99859-2250 | H128: Tirentulho | I128: 3475-2222
A129: =+A127+1 -> 113 | B129: Caçamba 4,00 m3 | C129: un | D129: 480 | F129: 400 | H129: 450 | L129: Média Centro com Zona Sul caliça e terra | M129: =TRUNC((AVERAGE(D129,F129,H129)),2) -> 443.33 | N129: 450
D130: Transguga | E130: 3337-6060 | F130: Britas do Sul | G130: 3245-2093 | H130: Areia Norte | I130: 3340-9032 | J130: Balinha | K130: 3434-0059
A131: =+A129+1 -> 114 | B131: Areia Peneirada - posto obra | C131: m³ | D131: 65 | F131: 90 | H131: 65 | J131: 70 | M131: =TRUNC((AVERAGE(D131,F131,H131,J131)),2) -> 72.5 | N131: =TRUNC((MEDIAN(D131:K131)),2) -> 67.5
A132: =+A131+1 -> 115 | B132: Brita 1 ou 2 - posto obra | C132: m³ | D132: 65 | F132: 75 | H132: 65 | J132: 65 | M132: =TRUNC((AVERAGE(D132,F132,H132,J132)),2) -> 67.5 | N132: 65
D133: DMAE | E133: 3289-9537
A134: =+A132+1 -> 116 | B134: Taxa instalação água DMAE | C134: cj | D134: 465.36 | L134: Engª Ana | M134: =TRUNC((AVERAGE(D134)),2) -> 465.36 | N134: 465.36
A135: =+A134+1 -> 117 | B135: Taxa instalação esgoto DMAE | C135: cj | D135: 300.94 | M135: =TRUNC((AVERAGE(D135)),2) -> 300.94 | N135: 300.94
A136: =+A135+1 -> 118 | B136: Água tratada | C136: m³ | D136: 4.02 | M136: =TRUNC((AVERAGE(D136)),2) -> 4.02 | N136: 4.02
A137: =+A136+1 -> 119 | B137: Esgoto cloacal | C137: m³ | D137: =0.8*D136 -> 3.216 | M137: =TRUNC((AVERAGE(D137)),2) -> 3.21 | N137: 3.21
D138: Rodrigo Paz | E138: 3318-1010 | F138: Alicerce da Const | G138: 3318-1010 | H138: Maico Pedras | I138: 99817-3559
A139: 122 | B139: Laje de Grês 90x45 | C139: un | D139: 8 | F139: 14.9 | H139: 6 | M139: =TRUNC((AVERAGE(D139,F139,H139)),2) -> 9.63 | N139: =TRUNC((MEDIAN(D139:I139)),2) -> 8
A140: =+A139+1 -> 123 | B140: Pedra de Grês 43x21x12 | C140: un | D140: 1.9 | F140: 2.2 | H140: 2.28 | J140: 2 | M140: =TRUNC((AVERAGE(D140,F140,H140,J140)),2) -> 2.09 | N140: =TRUNC((MEDIAN(D140:K140)),2) -> 2.1
D141: Ponte Pedras | E141: 11 4485-3034 | F141: Balinha | G141: 3434-0059
A142: =+A140+1 -> 124 | B142: Pedra de Alicerce | C142: un | D142: 6 | F142: 4.5 | M142: =TRUNC((AVERAGE(D142,F142)),2) -> 5.25 | N142: =TRUNC((MEDIAN(D142:G142)),2) -> 5.25
D143: Supreme | E143: 3012-9962 | F143: Via Inox | G143: 3275-1111 | H143: Magazine do Inox | I143: 3060-2074 | J143: Stilo Elevato | K143: 3333-8200
A144: =+A142+1 -> 125 | B144: Cuba Inox polida d=38 cm c/válvula 3 1/2" | C144: un | D144: 249 | F144: 169.9 | H144: 150.2 | J144: 301.03 | M144: =TRUNC((AVERAGE(D144,F144,H144)),2) -> 189.7 | N144: =TRUNC((MEDIAN(D144:K144)),2) -> 209.45
D145: RZ | E145: 3212-7911 | F145: Copyserv | G145: 3212-1612 | H145: DWG | I145: 3022-7978 | J145: MI Digital | K145: 3574-8012
A146: =+A144+1 -> 126 | B146: Plotagem | C146: m² | D146: 11.89 | F146: 12 | H146: 10.7 | J146: 10.58 | L146: PB, Papel sulfite, gramatura | M146: =TRUNC((AVERAGE(D146,F146,H146,J146)),2) -> 11.29 | N146: =TRUNC((MEDIAN(D146:K146)),2) -> 11.29
D147: Sinduscon | E147: Site
A148: =+A146+1 -> 127 | B148: CUB-RS R 16-N | C148: un | D148: 1477.13 | M148: =TRUNC((AVERAGE(D148)),2) -> 1477.13 | N148: =TRUNC((MEDIAN(D148:K148)),2) -> 1477.13
D149: CREA-RS | E149: Site
A150: =+A148+1 -> 128 | B150: ART | C150: un | D150: 226.5 | M150: =TRUNC((AVERAGE(D150)),2) -> 226.5 | N150: =TRUNC((MEDIAN(D150:K150)),2) -> 226.5
D151: PMPA | E151: Site
A152: =+A150+1 -> 129 | B152: UFM | C152: un | D152: 4.1771 | M152: =TRUNC((AVERAGE(D152)),2) -> 4.17 | N152: =TRUNC((MEDIAN(D152:K152)),2) -> 4.17
D153: Casa do Granito | E153: 3233-0052 | F153: La Pietra | G153: 3334-6544 | H153: Bonapedras | I153: 3012-4393 | J153: AGPetrea | K153: 3126-3792
A154: =+A152+1 -> 130 | B154: Tabuleiro damas | C154: un | D154: 1500 | F154: 320 | H154: 1601.8 | J154: 400 | M154: =TRUNC((AVERAGE(D154,F154,H154,J154)),2) -> 955.45 | N154: =TRUNC((MEDIAN(D154:K154)),2) -> 950

Sheet BDI
A1: Composição do BDI
A3: *Conforme Decreto nº 19.224, de 25 de novembro de 2015 (PMPA)
A5: TOMADOR: | B5: PREFEITURA MUNICIPAL DE PORTO ALEGRE
A6: Nº CONTRATO:
A7: OBJETO: | B7: =+PO!B9 -> Obras de Aquisição e Instalação de Academias de Ginástica ao ar livre na Praça Professor Emílio Mabilde Rípole (155/02), Praça Irene Elisalde Stricher (145/10) e Praça José Mariano de Freitas Beck (164/09).
A8: DATA: | B8: =IF(PO!$B$10="","",PO!$B$10) -> 2021-08-10 | C8: =IF(PO!$C$10="","",PO!$C$10) ->  | D8: =IF(PO!$C$10="","",PO!$C$10) ->  | E8: =IF(PO!$C$10="","",PO!$C$10) ->  | F8: =IF(PO!$C$10="","",PO!$C$10) -> 
A9: ART: | B9: =IF(PO!$B$11="","",PO!$B$11) -> 
A10: CONTRIBUIÇÃO PREVIDENCIÁRIA: | D10: =IF('Planilha_M.O.'!$D$5="c/desoneração","Orçamento COM DESONERAÇÃO (Lei 13.161/2015)","Orçamento SEM DESONERAÇÃO (Lei 13.161/2015)") -> Orçamento SEM DESONERAÇÃO (Lei 13.161/2015)
A12: TIPO DE OBRA | D12: Contratação de obras e serviços de INFRAESTRUTURA, incluindo pavimentação, iluminação pública, praças, saneamento, sistemas de água, esgoto cloacal e pluvial e seus respectivos serviços de conservação e manutenção
A13: Parcelas
A14: (AC) - Administração Central | D14: 4.03
A15: (S) + (G) - Seguro e Garantia | D15: 0.65
A16: (R) - Risco | D16: 1.33
A17: (DF) - Despesas Financeiras | D17: 1.52
A18: (L) - Lucro | D18: 8
A19: (I1) - PIS | D19: 0.65
A20: (I2) - COFINS | D20: 3
A21: (I3) - ISSQN | D21: 1.2
A22: (I4) - Contrib. Previdenciária | D22: 4.5
A23: BDI Calculado, incluindo I4 - com desoneração | D23: 0.2821
A24: BDI Calculado, desconsiderando I4 - sem desoneração | D24: 0.2215
A26: Os valores de BDI foram calculados com o emprego da fórmula abaixo (Acórdão 2622/2013 - TCU):
A33: Declaro para os devidos fins que, conforme legislação tributária municipal, a base de cálculo para o ISS das atividades Pavimentação, Iluminação Pública, Praças, Saneamento, Sistemas de água, Esgoto Cloacal e Pluvial e seus respectivos serviços de conservação e manutenção é de 30%, com a respectiva alíquota de 4%.
A39: Declaro para os devidos fins que o detalhamento de encargos sociais atende ao estabelecido no SINAPI/RS de
C40: =CONCATENATE('Planilha_M.O.'!$E$17,",") -> JUNHO / 2021, | E40: sendo utilizada a opção de mão-de-obra horista e mensalista | F40: =IF('Planilha_M.O.'!$D$5="c/desoneração","com desoneração,","sem desoneração,") -> sem desoneração,
A41: e que esta é a alternativa mais adequada para a Administração Pública.

Sheet Quadro_Comparativo
A6: Obras de Aquisição e Instalação de Academias de Ginástica ao ar livre na Praça Professor
A7: Emílio Mabilde Rípole (155/02), Praça Irene Elisalde Stricher (145/10) e Praça José Mariano
A8: de Freitas Beck (164/09).
A10: QUADRO COMPARATIVO
B12: VALOR
A13: ORCAMENTO COM DESONERAÇÃO BDI 28,21% | B13: 459296.16
A15: ORCAMENTO SEM DESONERAÇÃO BDI 22,15% | B15: =PO!L163 -> 451445.03
A17: O ORÇAMENTO MAIS VANTAJOSO PARA O MUNICÍPIO PMPA FOI O SEM DESONERAÇÃO
A18: DA FOLHA DE PAGAMENTO.

Sheet Encargos Sociais
A1: Composição dos Encargos Sociais
D3: Mês de referência: | F3: JUNHO/21
A5: ENCARGOS SOCIAIS SOBRE A MÃO-DE-OBRA
A6: Código | B6: Descrição | C6: Com Desoneração | E6: Sem Desoneração
C7: Horista | D7: Mensalista | E7: Horista | F7: Mensalista
A8: GRUPO A
A9: A1 | B9: INSS | C9: 0 | D9: 0 | E9: 0.2 | F9: 0.2
A10: A2 | B10: SESI | C10: 0.015 | D10: 0.015 | E10: 0.015 | F10: 0.015
A11: A3 | B11: SENAI | C11: 0.01 | D11: 0.01 | E11: 0.01 | F11: 0.01
A12: A4 | B12: INCRA | C12: 0.002 | D12: 0.002 | E12: 0.002 | F12: 0.002
A13: A5 | B13: SEBRAE | C13: 0.006 | D13: 0.006 | E13: 0.006 | F13: 0.006
A14: A6 | B14: Salário Educação | C14: 0.025 | D14: 0.025 | E14: 0.025 | F14: 0.025
A15: A7 | B15: Seguro Contra Acidentes de Trabalho | C15: 0.03 | D15: 0.03 | E15: 0.03 | F15: 0.03
A16: A8 | B16: FGTS | C16: 0.08 | D16: 0.08 | E16: 0.08 | F16: 0.08
A17: A9 | B17: SECONCI | C17: 0 | D17: 0 | E17: 0 | F17: 0
A18: A | B18: Total | C18: =SUM(C9:C17) -> 0.168 | D18: =SUM(D9:D17) -> 0.168 | E18: 0.368 | F18: 0.368
A19: GRUPO B
A20: B1 | B20: Repouso Semanal Remunerado | C20: 0.1793 | D20: 0 | E20: 0.1793 | F20: 0
A21: B2 | B21: Feriados | C21: 0.0424 | D21: 0 | E21: 0.0424 | F21: 0
A22: B3 | B22: Auxílio - Enfermidade | C22: 0.0125 | D22: 0.0091 | E22: 0.0125 | F22: 0.0091
A23: B4 | B23: 13º Salário | C23: 0.1077 | D23: 0.0833 | E23: 0.1077 | F23: 0.0833
A24: B5 | B24: Licença Paternidade | C24: 0.0007 | D24: 0.0006 | E24: 0.0007 | F24: 0.0006
A25: B6 | B25: Faltas Justificadas | C25: 0.0072 | D25: 0.0056 | E25: 0.0072 | F25: 0.0056
A26: B7 | B26: Dias de Chuvas | C26: 0.0153 | D26: 0 | E26: 0.0153 | F26: 0
A27: B8 | B27: Auxílio Acidente de Trabalho | C27: 0.0011 | D27: 0.0009 | E27: 0.0011 | F27: 0.0009
A28: B9 | B28: Férias Gozadas | C28: 0.074 | D28: 0.0572 | E28: 0.074 | F28: 0.0572
A29: B10 | B29: Salário Maternidade | C29: 0.0003 | D29: 0.0003 | E29: 0.0003 | F29: 0.0003
A30: B | B30: Total | C30: =SUM(C20:C29) -> 0.4405 | D30: =SUM(D20:D29) -> 0.157 | E30: 0.4405 | F30: 0.157
A31: GRUPO C
A32: C1 | B32: Aviso Prévio Indenizado | C32: 0.0428 | D32: 0.0332 | E32: 0.0428 | F32: 0.0332
A33: C2 | B33: Aviso Prévio Trabalhado | C33: 0.001 | D33: 0.0008 | E33: 0.001 | F33: 0.0008
A34: C3 | B34: Férias Indenizadas | C34: 0.0529 | D34: 0.0409 | E34: 0.0529 | F34: 0.0409
A35: C4 | B35: Depósito Rescisão Sem Justa Causa | C35: 0.0363 | D35: 0.0281 | E35: 0.0363 | F35: 0.0281
A36: C5 | B36: Indenização Adicional | C36: 0.0036 | D36: 0.0028 | E36: 0.0036 | F36: 0.0028
A37: C | B37: Total | C37: =SUM(C32:C36) -> 0.1366 | D37: =SUM(D32:D36) -> 0.1058 | E37: 0.1366 | F37: 0.1058
A38: GRUPO D
A39: D1 | B39: Reincidência de Grupo A sobre Grupo B | C39: =ROUND((C18*C30),4) -> 0.074 | D39: =ROUND((D18*D30),4) -> 0.0264 | E39: 0.1621 | F39: 0.0578
A40: D2 | B40: Reincidência de Grupo A sobre Aviso Prévio Trabalhado e Reincidência do FGTS sobre Aviso Prévio Indenizado | C40: =ROUND(((C18*C33)+(C16*C32)),4) -> 0.0036 | D40: =ROUND(((D18*D33)+(D16*D32)),4) -> 0.0028 | E40: 0.0038 | F40: 0.003
A41: D | B41: Total | C41: =SUM(C39:C40) -> 0.0776 | D41: =SUM(D39:D40) -> 0.0292 | E41: 0.1659 | F41: 0.0608
A42: TOTAL (A+B+C+D) | C42: =+C18+C30+C37+C41+0.0001 -> 0.8228 | D42: =+D18+D30+D37+D41 -> 0.46 | E42: 1.111 | F42: 0.6916

Sheet Curva ABC
A1: CURVA ABC
A3: OBJETO: | B3: =+PO!$B$9 -> Obras de Aquisição e Instalação de Academias de Ginástica ao ar livre na Praça Professor Emílio Mabilde Rípole (155/02), Praça Irene Elisalde Stricher (145/10) e Praça José Mariano de Freitas Beck (164/09).
A4: DATA: | B4: =IF(PO!$B$10="","",PO!$B$10) -> 2021-08-10 | C4: =+PO!B3:L3 -> 0
A5: ART nº: | B5: =IF(PO!$B$11="","",PO!$B$11) -> 
D6: A=70% DO VALOR DO ORÇAMENTO
D7: B=20% DO VALOR DO ORÇAMENTO
D8: C=10% DO VALOR DO ORÇAMENTO
A10: ITEM | B10: DESCRIÇÃO DAS ATIVIDADES | C10: VALOR DO SERVIÇO | D10: % | E10: % Acumulado | F10: ABC
A13: 3.1 | B13: ADMINISTRAÇÃO LOCAL | C13: =PO!L29 -> 24761.29 | D13: =C13/$C$100 -> 0.05484895913 | E13: =E12+D13 -> 0.05484895913 | F13: =IF(OR(E13<0.71,D13>0.71),"A",(IF(OR(E13<0.91,D13>0.21),"B","C"))) -> A
A14: 11.1 | B14: ADMINISTRAÇÃO LOCAL | C14: =PO!L79 -> 24761.29 | D14: 0.05484895913 | E14: 0.1096979183 | F14: A
A15: 19.1 | B15: ADMINISTRAÇÃO LOCAL | C15: =PO!L127 -> 24761.29 | D15: 0.05484895913 | E15: 0.1645468774 | F15: A
A16: 15.5 | B16: MULTIEXERCITADOR CONJUGADO 6 FUNÇÕES - GALVANIZADO | C16: =PO!L99 -> 18444.18 | D16: 0.0408558712 | E16: 0.2054027486 | F16: A
A17: 7.5 | B17: ESQUI TRIPLO CONJUGADO - GALVANIZADO | C17: =PO!L49 -> 18380.59 | D17: 0.04071501241 | E17: 0.246117761 | F17: A
A18: 15.3 | B18: ESQUI TRIPLO CONJUGADO - GALVANIZADO | C18: =PO!L97 -> 18380.59 | D18: 0.04071501241 | E18: 0.2868327734 | F18: A
A19: 21.2 | B19: PISO CONCRETO ARMADO E= 10 cm - ACADEMIA AO AR LIVRE | C19: =PO!L135 -> 15439.45 | D19: 0.0342000664 | E19: 0.3210328398 | F19: A
A20: 7.4 | B20: SIMULADOR DE CAMINHADA TRIPLO CONJUGADO - GALVANIZADO | C20: =PO!L48 -> 15065.84 | D20: 0.03337247948 | E20: 0.3544053193 | F20: A
A21: 15.2 | B21: SIMULADOR DE CAMINHADA TRIPLO CONJUGADO - GALVANIZADO | C21: =PO!L96 -> 15065.84 | D21: 0.03337247948 | E21: 0.3877777988 | F21: A
A22: 24.3 | B22: SIMULADOR DE CAMINHADA TRIPLO CONJUGADO - GALVANIZADO | C22: =PO!L149 -> 15065.84 | D22: 0.03337247948 | E22: 0.4211502783 | F22: A
A23: 5.2 | B23: PISO CONCRETO ARMADO E= 10 cm - ACADEMIA AO AR LIVRE | C23: =PO!L37 -> 13723.96 | D23: 0.03040006886 | E23: 0.4515503471 | F23: A
A24: 13.2 | B24: PISO CONCRETO ARMADO E= 10 cm - ACADEMIA AO AR LIVRE | C24: =PO!L87 -> 11831 | D24: 0.02620695592 | E24: 0.477757303 | F24: A
A25: 24.2 | B25: JOGO DE BARRAS - GALVANIZADO | C25: =PO!L148 -> 10945.66 | D25: 0.02424583121 | E25: 0.5020031342 | F25: A
A26: 7.7 | B26: PRESSÃO DE PERNAS TRIPLO CONJUGADO - GALVANIZADO | C26: =PO!L51 -> 10857.79 | D26: 0.02405118958 | E26: 0.5260543238 | F26: A
A27: 24.5 | B27: PRESSÃO DE PERNAS TRIPLO CONJUGADO - GALVANIZADO | C27: =PO!L151 -> 10857.79 | D27: 0.02405118958 | E27: 0.5501055134 | F27: A
A28: 7.6 | B28: ADUÇÃO E ABDUÇÃO DE PERNAS DUPLO - GALVANIZADO | C28: =PO!L50 -> 10491.68 | D28: 0.02324021598 | E28: 0.5733457294 | F28: A
A29: 15.4 | B29: ADUÇÃO E ABDUÇÃO DE PERNAS DUPLO - GALVANIZADO | C29: =PO!L98 -> 10491.68 | D29: 0.02324021598 | E29: 0.5965859454 | F29: A
A30: 24.4 | B30: ADUÇÃO E ABDUÇÃO DE PERNAS DUPLO - GALVANIZADO | C30: =PO!L150 -> 10491.68 | D30: 0.02324021598 | E30: 0.6198261613 | F30: A
A31: 2.1 | B31: TAPUME EM CHAPA DE COMPENSADO RESINADO (L=9,90m; C=15,40m e H=2,20M) | C31: =PO!L19 -> 9187.23 | D31: 0.0203507169 | E31: 0.6401768782 | F31: A
A32: 7.1 | B32: PLACA ORIENTATIVA - GALVANIZADA | C32: =PO!L45 -> 8910.19 | D32: 0.01973704307 | E32: 0.6599139213 | F32: A
A33: 15.1 | B33: PLACA ORIENTATIVA - GALVANIZADA | C33: =PO!L95 -> 8910.19 | D33: 0.01973704307 | E33: 0.6796509644 | F33: A
A34: 24.1 | B34: PLACA ORIENTATIVA - GALVANIZADA | C34: =PO!L147 -> 8910.19 | D34: 0.01973704307 | E34: 0.6993880074 | F34: A
A35: 7.10 | B35: VOADOR PEITORAL E VOADOR DORSAL - GALVANIZADO | C35: =PO!L54 -> 7137.53 | D35: 0.01581040775 | E35: 0.7151984152 | F35: B
A36: 15.8 | B36: VOADOR PEITORAL E VOADOR DORSAL - GALVANIZADO | C36: =PO!L102 -> 7137.53 | D36: 0.01581040775 | E36: 0.7310088229 | F36: B
A37: 24.9 | B37: VOADOR PEITORAL E VOADOR DORSAL - GALVANIZADO | C37: =PO!L155 -> 7137.53 | D37: 0.01581040775 | E37: 0.7468192307 | F37: B
A38: 10.1 | B38: TAPUME EM CHAPA DE COMPENSADO RESINADO (L=7,70m; C=11,00m e H=2,20M) | C38: =PO!L68 -> 6790.56 | D38: 0.01504183134 | E38: 0.761861062 | F38: B
A39: 18.1 | B39: TAPUME EM CHAPA DE COMPENSADO RESINADO (L=7,70m; C=11,00m e H=2,20M) | C39: =PO!L116 -> 6790.56 | D39: 0.01504183134 | E39: 0.7769028934 | F39: B
A40: 7.9 | B40: REMADA ESPECIAL PPNE - GALVANIZADA | C40: =PO!L53 -> 6776.86 | D40: 0.01501148434 | E40: 0.7919143777 | F40: B
A41: 15.7 | B41: REMADA ESPECIAL PPNE - GALVANIZADA | C41: =PO!L101 -> 6776.86 | D41: 0.01501148434 | E41: 0.806925862 | F41: B
A42: 24.8 | B42: REMADA ESPECIAL PPNE - GALVANIZADA | C42: =PO!L154 -> 6776.86 | D42: 0.01501148434 | E42: 0.8219373464 | F42: B
A43: 7.8 | B43: SIMULADOR DE REMO - GALVANIZADO | C43: =PO!L52 -> 6442.09 | D43: 0.01426993227 | E43: 0.8362072787 | F43: B
A44: 15.6 | B44: SIMULADOR DE REMO - GALVANIZADO | C44: =PO!L100 -> 6442.09 | D44: 0.01426993227 | E44: 0.8504772109 | F44: B
A45: 24.6 | B45: SIMULADOR DE REMO - GALVANIZADO | C45: =PO!L152 -> 6442.09 | D45: =C45/$C$100 -> 0.01426993227 | E45: =E44+D45 -> 0.8647471432 | F45: =IF(OR(E45<0.71,D45>0.71),"A",(IF(OR(E45<0.91,D45>0.21),"B","C"))) -> B
A46: 24.7 | B46: ABDOMINAL SIMPLES - GALVANIZADO | C46: =PO!L153 -> 5701.11 | D46: 0.01262858072 | E46: 0.8773757239 | F46: B
A47: 6.1 | B47: BANCO B (C/ ENCOSTO) - L=2,00 m - PADRÃO SMAM | C47: =PO!L41 -> 3364.32 | D47: 0.007452335891 | E47: 0.8848280598 | F47: B
A48: 14.1 | B48: BANCO B (C/ ENCOSTO) - L=2,00 m - PADRÃO SMAM | C48: =PO!L91 -> 3364.32 | D48: 0.007452335891 | E48: 0.8922803957 | F48: B
A49: 23.1 | B49: BANCO B (C/ ENCOSTO) - L=2,00 m - PADRÃO SMAM | C49: =PO!L143 -> 3364.32 | D49: 0.007452335891 | E49: 0.8997327316 | F49: B
A50: 2.4 | B50: INSTALAÇÃO PROVISÓRIA DE ENERGIA, AÉREA, BIFÁSICA, COM CAIXA DE EMBUTIR C/ POSTE H=9,00M | C50: =PO!L22 -> 2979.99 | D50: 0.006601003006 | E50: 0.9063337346 | F50: B
A51: 10.4 | B51: INSTALAÇÃO PROVISÓRIA DE ENERGIA, AÉREA, BIFÁSICA, COM CAIXA DE EMBUTIR C/ POSTE H=9,00M | C51: =PO!L71 -> 2979.99 | D51: 0.006601003006 | E51: 0.9129347376 | F51: C
A52: 18.4 | B52: INSTALAÇÃO PROVISÓRIA DE ENERGIA, AÉREA, BIFÁSICA, COM CAIXA DE EMBUTIR C/ POSTE H=9,00M | C52: =PO!L119 -> 2979.99 | D52: 0.006601003006 | E52: 0.9195357406 | F52: C
A53: 7.2 | B53: ESPALDAR PADRÃO SMAMS | C53: =PO!L46 -> 2735.72 | D53: 0.006059918303 | E53: 0.9255956589 | F53: C
A54: 10.7 | B54: SINALIZAÇÃO COM TELA PLÁSTICA LARANJA FIXADA EM CONE PLÁSTICO | C54: =PO!L74 -> 1985.34 | D54: 0.004397744727 | E54: 0.9299934036 | F54: C
A55: 18.7 | B55: SINALIZAÇÃO COM TELA PLÁSTICA LARANJA FIXADA EM CONE PLÁSTICO | C55: =PO!L122 -> 1882.65 | D55: 0.004170275172 | E55: 0.9341636788 | F55: C
A56: 7.3 | B56: PRANCHA DE ABDOMINAL PADRÃO SMAMS | C56: =PO!L47 -> 1777.22 | D56: 0.003936736218 | E56: 0.938100415 | F56: C
A57: 8.1 | B57: PLANTIO DE GRAMA CATARINA COM COMPOSTO ORGANICO | C57: =PO!L57 -> 1685.97 | D57: 0.003734607511 | E57: 0.9418350225 | F57: C
A58: 25.1 | B58: PLANTIO DE GRAMA CATARINA COM COMPOSTO ORGANICO | C58: =PO!L158 -> 1685.97 | D58: 0.003734607511 | E58: 0.94556963 | F58: C
A59: 20.2 | B59: ATERRO MANUAL C/MATERIAL IMPORTADO C/COMPACTAÇÃO MANUAL | C59: =PO!L131 -> 1283.46 | D59: 0.002843003942 | E59: 0.948412634 | F59: C
A60: 6.2 | B60: LIXEIRA METÁLICA - V=30 LITROS INSTALADA | C60: =PO!L42 -> 1251.74 | D60: 0.002772740681 | E60: 0.9511853747 | F60: C
A61: 14.2 | B61: LIXEIRA METÁLICA - V=30 LITROS INSTALADA | C61: =PO!L92 -> 1251.74 | D61: 0.002772740681 | E61: 0.9539581153 | F61: C
A62: 23.2 | B62: LIXEIRA METÁLICA - V=30 LITROS INSTALADA | C62: =PO!L144 -> 1251.74 | D62: 0.002772740681 | E62: 0.956730856 | F62: C
A63: 4.2 | B63: ATERRO MANUAL C/MATERIAL IMPORTADO C/COMPACTAÇÃO MANUAL | C63: =PO!L33 -> 1180.2 | D63: 0.002614271775 | E63: 0.9593451278 | F63: C
A64: 22.1 | B64: RAMPA PPNE'S TIPO 1 - 1,80 m (ABA 1,50 m) | C64: =PO!L140 -> 1119.34 | D64: 0.002479460235 | E64: 0.961824588 | F64: C
A65: 2.3 | B65: FRETE P/ BANHEIRO QUÍMICO LOCADO (IDA E VOLTA) | C65: =PO!L21 -> 1085.48 | D65: 0.00240445664 | E65: 0.9642290447 | F65: C
A66: 10.3 | B66: FRETE P/ BANHEIRO QUÍMICO LOCADO (IDA E VOLTA) | C66: =PO!L70 -> 1085.48 | D66: 0.00240445664 | E66: 0.9666335013 | F66: C
A67: 18.3 | B67: FRETE P/ BANHEIRO QUÍMICO LOCADO (IDA E VOLTA) | C67: =PO!L118 -> 1085.48 | D67: 0.00240445664 | E67: 0.969037958 | F67: C
A68: 2.6 | B68: PLACA DE OBRA EM CHAPA GALVANIZADA | C68: =PO!L24 -> 925.52 | D68: 0.002050127786 | E68: 0.9710880857 | F68: C
A69: 10.6 | B69: PLACA DE OBRA EM CHAPA GALVANIZADA | C69: =PO!L73 -> 925.52 | D69: 0.002050127786 | E69: 0.9731382135 | F69: C
A70: 18.6 | B70: PLACA DE OBRA EM CHAPA GALVANIZADA | C70: =PO!L121 -> 925.52 | D70: 0.002050127786 | E70: 0.9751883413 | F70: C
A71: 2.5 | B71: INSTALAÇÃO PROVISÓRIA DE ÁGUA | C71: =PO!L23 -> 897.15 | D71: 0.001987285141 | E71: 0.9771756265 | F71: C
A72: 10.5 | B72: INSTALAÇÃO PROVISÓRIA DE ÁGUA | C72: =PO!L72 -> 897.15 | D72: 0.001987285141 | E72: 0.9791629116 | F72: C
A73: 18.5 | B73: INSTALAÇÃO PROVISÓRIA DE ÁGUA | C73: =PO!L120 -> 897.15 | D73: 0.001987285141 | E73: 0.9811501967 | F73: C
A74: 2.2 | B74: LOCAÇÃO DE BANHEIRO QUÍMICO | C74: =PO!L20 -> 830.62 | D74: 0.001839913931 | E74: 0.9829901107 | F74: C
A75: 18.2 | B75: LOCAÇÃO DE BANHEIRO QUÍMICO | C75: =PO!L117 -> 830.62 | D75: 0.001839913931 | E75: 0.9848300246 | F75: C
A76: 10.2 | B76: LOCAÇÃO DE BANHEIRO QUÍMICO | C76: =PO!L69 -> 830.62 | D76: 0.001839913931 | E76: 0.9866699385 | F76: C
A77: 20.1 | B77: MODELAGEM (MOVIMENTO DE TERRA ATÉ 15CM) | C77: =PO!L130 -> 540.97 | D77: =C77/$C$100 -> 0.001198307577 | E77: =E76+D77 -> 0.9878682461 | F77: =IF(OR(E77<0.71,D77>0.71),"A",(IF(OR(E77<0.91,D77>0.21),"B","C"))) -> C
A78: 4.1 | B78: MODELAGEM (MOVIMENTO DE TERRA ATÉ 15CM) | C78: =PO!L32 -> 497.07 | D78: 0.001101064287 | E78: 0.9889693104 | F78: C
A79: 12.1 | B79: MODELAGEM (MOVIMENTO DE TERRA ATÉ 15CM) | C79: =PO!L82 -> 454.3 | D79: 0.00100632407 | E79: 0.9899756345 | F79: C
A80: 21.1 | B80: EXECUÇÃO DE PASSEIO (CALÇADA) OU PISO DE CONCRETO COM CONCRETO MOLDADO IN LOCO, FEITO EM OBRA, ACABAMENTO CONVENCIONAL, ESPESSURA 8 CM, ARMADO | C80: =PO!L134 -> 420.81 | D80: 0.0009321400659 | E80: 0.9909077745 | F80: C
A81: 16.1 | B81: PLANTIO DE GRAMA CATARINA COM COMPOSTO ORGANICO | C81: =PO!L105 -> 1771.12 | D81: 0.003923224052 | E81: 0.9948309986 | F81: C
A82: 5.1 | B82: EXECUÇÃO DE PASSEIO (CALÇADA) OU PISO DE CONCRETO COM CONCRETO MOLDADO IN LOCO, FEITO EM OBRA, ACABAMENTO CONVENCIONAL, ESPESSURA 8 CM, ARMADO | C82: =PO!L36 -> 315.6 | D82: 0.0006990884361 | E82: 0.995530087 | F82: C
A83: 1.1 | B83: ART (ANOTAÇÃO DE RESPONSABILIDADE TÉCNICA PELA EXECUÇÃO TOTAL DO OBJETO) | C83: =PO!L16 -> 276.05 | D83: 0.0006114808707 | E83: 0.9961415679 | F83: C
A84: 21.3 | B84: LAJE DE GRÊS ASSENTADA NA AREIA | C84: =PO!L136 -> 270.96 | D84: 0.0006002059653 | E84: 0.9967417739 | F84: C
A85: 12.2 | B85: ATERRO MANUAL C/MATERIAL IMPORTADO C/COMPACTAÇÃO MANUAL | C85: =PO!L83 -> 245.87 | D85: 0.0005446288776 | E85: 0.9972864027 | F85: C
A86: 9.2 | B86: DEMOLIÇÃO MESA E BANCOS DE CONCRETO C/REMOÇÃO DE ENTULHOS | C86: =PO!L65 -> 205.18 | D86: 0.0004544960878 | E86: 0.9977408988 | F86: C
A87: 9.1 | B87: DEMOLIÇÃO CHURRASQUEIRA C/REMOÇÃO DE ENTULHOS | C87: =PO!L64 -> 173.58 | D87: 0.0003844986398 | E87: 0.9981253975 | F87: C
A88: 13.1 | B88: EXECUÇÃO DE PASSEIO (CALÇADA) OU PISO DE CONCRETO COM CONCRETO MOLDADO IN LOCO, FEITO EM OBRA, ACABAMENTO CONVENCIONAL, ESPESSURA 8 CM, ARMADO | C88: =PO!L86 -> 140.27 | D88: 0.0003107133553 | E88: 0.9984361108 | F88: C
A89: 13.3 | B89: PISO PODOTÁTIL 25x25 cm - E=2,5CM | C89: =PO!L88 -> 135.16 | D89: 0.0002993941477 | E89: 0.998735505 | F89: C
A90: 17.2 | B90: REMOÇÃO DE ENTULHOS COM CAÇAMBA 4M³ | C90: =PO!L113 -> 103.5 | D90: 0.0002292637932 | E90: 0.9989647688 | F90: C
A91: 5.3 | B91: PISO PODOTÁTIL 25x25 cm - E=2,5CM | C91: =PO!L38 -> 101.37 | D91: 0.0002245456108 | E91: 0.9991893144 | F91: C
A92: 17.1 | B92: REMOÇÃO DE PASSEIOS - SEM REMOÇÃO DE ENTULHOS | C92: =PO!L112 -> 69.3 | D92: 0.0001535070615 | E92: 0.9993428214 | F92: C
A93: 18.9 | B93: NIVELAMENTO | C93: =PO!L124 -> 55.01 | D93: 0.0001218531523 | E93: 0.9994646746 | F93: C
A94: 21.4 | B94: PISO PODOTÁTIL 25x25 cm - E=2,5CM | C94: =PO!L137 -> 50.68 | D94: 0.0001122617299 | E94: 0.9995769363 | F94: C
A95: 2.8 | B95: NIVELAMENTO | C95: =PO!L26 -> 50.55 | D95: 0.0001119737657 | E95: 0.9996889101 | F95: C
A96: 10.9 | B96: NIVELAMENTO | C96: =PO!L76 -> 46.2 | D96: 0.000102338041 | E96: 0.9997912481 | F96: C
A97: 10.8 | B97: LOCAÇÃO DE OBRA | C97: =PO!L75 -> 32.24 | D97: 7.141511781e-05 | E97: 0.9998626632 | F97: C
A98: 18.8 | B98: LOCAÇÃO DE OBRA | C98: =PO!L123 -> 31.62 | D98: 7.004175016e-05 | E98: 0.999932705 | F98: C
A99: 2.7 | B99: LOCAÇÃO DE OBRA | C99: =PO!L25 -> 30.38 | D99: 6.729501485e-05 | E99: 1 | F99: C
B100: VALOR TOTAL PO | C100: =SUM(C13:C99) -> 451445.03
